Service Delivery Area(T),Service Delivery Team(T),CostC,ExpenditureGroup(T),Account(T),Supplier Name(T),Trans Date,Amount,
Adult Care & Support,Access & Enablement,HOAC,Supplies & Services,Purchased Meals,APETITO LTD,23/08/2013,1013.1,
Adult Care & Support,Access & Enablement,HOAC,Supplies & Services,Purchased Meals,APETITO LTD,28/08/2013,1156.94,
Adult Care & Support,Access & Enablement,HOAC,Supplies & Services,Purchased Meals,APETITO LTD,12/08/2013,131.23,
Adult Care & Support,Access & Enablement,HOAC,Supplies & Services,Purchased Meals,APETITO LTD,12/08/2013,411.58,
Adult Care & Support,Access & Enablement,HOAC,Supplies & Services,Purchased Meals,APETITO LTD,12/08/2013,147,
Adult Care & Support,Access & Enablement,HOAC,Supplies & Services,Purchased Meals,APETITO LTD,12/08/2013,111.65,
Adult Care & Support,Access & Enablement,HOAC,Supplies & Services,Purchased Meals,APETITO LTD,12/08/2013,171.84,
Adult Care & Support,Access & Enablement,HOAC,Supplies & Services,Purchased Meals,APETITO LTD,12/08/2013,118.52,
Adult Care & Support,Access & Enablement,HOAC,Supplies & Services,Purchased Meals,APETITO LTD,12/08/2013,195.09,
Adult Care & Support,Access & Enablement,HOAC,Supplies & Services,Purchased Meals,APETITO LTD,12/08/2013,143.57,
Adult Care & Support,Access & Enablement,HOAC,Supplies & Services,Contribution to Arthog,RANDLAY PENSIONERS LUNCHEON CLUB,12/08/2013,165.6,
Adult Care & Support,Access & Enablement,HOAC,Supplies & Services,Purchased Meals,APETITO LTD,22/08/2013,166.28,
Adult Care & Support,Access & Enablement,HOAC,Supplies & Services,Purchased Meals,APETITO LTD,22/08/2013,214.14,
Adult Care & Support,Access & Enablement,HOAC,Supplies & Services,Purchased Meals,ACCORD HOUSING ASSOCIATION LIMITED,22/08/2013,272.09,
Adult Care & Support,Access & Enablement,HOAC,Supplies & Services,Purchased Meals,COVERAGE CARE SERVICES LTD,12/08/2013,915.36,
Adult Care & Support,Access & Enablement,HOAC,Supplies & Services,Purchased Meals,COVERAGE CARE SERVICES LTD,12/08/2013,2018.1,
Adult Care & Support,Access & Enablement,HOAC,Supplies & Services,Purchased Meals,APETITO LTD,30/08/2013,606.41,
Adult Care & Support,Access & Enablement,HOAC,Supplies & Services,Purchased Meals,APETITO LTD,15/08/2013,1522.91,
Adult Care & Support,Access & Enablement,HOAC,Supplies & Services,Purchased Meals,APETITO LTD,02/08/2013,997.94,
Adult Care & Support,Access & Enablement,HOAG,Supplies & Services,Aids & Appliances,SARABEC LIMITED,13/08/2013,771.8,
Adult Care & Support,Access & Enablement,HOAG,Supplies & Services,Aids & Appliances,RNIB SERVICES LIMITED,13/08/2013,100.05,
Adult Care & Support,Access & Enablement,HOAG,Supplies & Services,Aids & Appliances,PATTERSON MEDICAL LTD,14/08/2013,156.66,
Adult Care & Support,Access & Enablement,HOAG,Supplies & Services,Aids & Appliances,RNID PRODUCTS,07/08/2013,446.09,
Adult Care & Support,Access & Enablement,HOAP,Supplies & Services,Aids & Appliances,POWERGUARDS INC RAMPING SYSTEMS,28/08/2013,2600,
Adult Care & Support,Access & Enablement,HOAP,Supplies & Services,Aids & Appliances,POWERGUARDS INC RAMPING SYSTEMS,28/08/2013,889.2,
Adult Care & Support,Access & Enablement,HOAP,Supplies & Services,Aids & Appliances,Welland Medical,07/08/2013,771,
Adult Care & Support,Access & Enablement,HOAP,Supplies & Services,Equipment - Repair,HANDICARE ACCESSIBILITY LIMITED,19/08/2013,8192.09,
Adult Care & Support,Access & Enablement,HOAP,Supplies & Services,Equipment - Repair,HANDICARE ACCESSIBILITY LIMITED,19/08/2013,982.5,
Adult Care & Support,Access & Enablement,HOAP,Supplies & Services,Aids & Appliances,PRISM MEDICAL WESTHOLME DIVISION,09/08/2013,1269.23,
Adult Care & Support,Access & Enablement,HOAP,Supplies & Services,Aids & Appliances,Easylink,09/08/2013,319.16,
Adult Care & Support,Access & Enablement,HOAP,Supplies & Services,Aids & Appliances,Prism Medical UK Carefree Division,22/08/2013,349.96,
Adult Care & Support,Access & Enablement,HOAP,Supplies & Services,Aids & Appliances,BITTESWELL EMPLOYMENT ALLIANCE LTD,22/08/2013,415.6,
Adult Care & Support,Access & Enablement,HOAP,Supplies & Services,Aids & Appliances,PRISM MEDICAL WESTHOLME DIVISION,21/08/2013,581.71,
Adult Care & Support,Access & Enablement,HOAP,Supplies & Services,Aids & Appliances,PRISM MEDICAL WESTHOLME DIVISION,15/08/2013,513.46,
Adult Care & Support,Access & Enablement,HOAP,Supplies & Services,Equipment - Repair,PRISM MEDICAL WESTHOLME DIVISION,14/08/2013,135.6,
Adult Care & Support,Access & Enablement,HOAP,Supplies & Services,Equipment - Repair,PRISM MEDICAL WESTHOLME DIVISION,14/08/2013,115,
Adult Care & Support,Access & Enablement,HOAP,Supplies & Services,Aids & Appliances,PRISM MEDICAL WESTHOLME DIVISION,15/08/2013,280,
Adult Care & Support,Access & Enablement,HOAP,Supplies & Services,Adaptations,TRAVIS PERKINS TRADING CO LIMITED,15/08/2013,354,
Adult Care & Support,Access & Enablement,HOAP,Supplies & Services,Aids & Appliances,AA Moving Solutions,30/08/2013,1098.6,
Adult Care & Support,Access & Enablement,HOAP,Supplies & Services,Aids & Appliances,MANGAR INTERNATIONAL LTD,29/08/2013,1237.5,
Adult Care & Support,Access & Enablement,HOAP,Supplies & Services,Aids & Appliances,MANGAR INTERNATIONAL LTD,29/08/2013,425,
Adult Care & Support,Access & Enablement,HOAP,Supplies & Services,Aids & Appliances,BERWICK CARE EQUIPMENT LTD,07/08/2013,1052,
Adult Care & Support,Access & Enablement,HOAP,Supplies & Services,Equipment - Repair,PRISM MEDICAL WESTHOLME DIVISION,06/08/2013,195.3,
Adult Care & Support,Access & Enablement,HOAP,Supplies & Services,Equipment - Repair,HANDICARE ACCESSIBILITY LIMITED,06/08/2013,7243.75,
Adult Care & Support,Access & Enablement,HOAP,Supplies & Services,Equipment - Repair,HANDICARE ACCESSIBILITY LIMITED,06/08/2013,792.5,
Adult Care & Support,Access & Enablement,HOAP,Supplies & Services,Adaptations,TRAVIS PERKINS TRADING CO LIMITED,06/08/2013,125.09,
Adult Care & Support,Access & Enablement,HOAP,Supplies & Services,Aids & Appliances,PRISM MEDICAL WESTHOLME DIVISION,05/08/2013,481.96,
Adult Care & Support,Access & Enablement,HOAP,Supplies & Services,Aids & Appliances,PRISM MEDICAL WESTHOLME DIVISION,05/08/2013,157.5,
Adult Care & Support,Access & Enablement,HOAP,Supplies & Services,Aids & Appliances,PRISM MEDICAL WESTHOLME DIVISION,05/08/2013,100.28,
Adult Care & Support,Access & Enablement,HOAP,Supplies & Services,Aids & Appliances,PATTERSON MEDICAL LTD,05/08/2013,229,
Adult Care & Support,Access & Enablement,HOAP,Supplies & Services,Aids & Appliances,MOUNTWAY LTD,05/08/2013,312,
Adult Care & Support,Access & Enablement,HOAP,Supplies & Services,Aids & Appliances,PRISM MEDICAL WESTHOLME DIVISION,05/08/2013,438.38,
Adult Care & Support,Access & Enablement,HOAP,Supplies & Services,Equipment - Repair,TOTAL HYGIENE LIMITED,07/08/2013,195,
Adult Care & Support,Access & Enablement,HOAW,Supplies & Services,Aids & Appliances,PRISM MEDICAL WESTHOLME DIVISION,07/08/2013,552.09,
Adult Care & Support,Access & Enablement,HOAW,Third Party Payments,Nursing Expenditure,AE PROPERTY MAINTENANCE,07/08/2013,2375,
Adult Care & Support,Access & Enablement,HOBB,Supplies & Services,Equipment - Purchase,WEST MERCIA SUPPLIES Catalogue Supplies (None Utility),30/08/2013,219.13,
Adult Care & Support,Access & Enablement,HOCL,Supplies & Services,Mobile Phones,ORANGE PCS LTD,28/08/2013,135,
Adult Care & Support,Access & Enablement,JCAB,Supplies & Services,Supportive Lodgings,THEO LANGSTON,16/08/2013,480,
Adult Care & Support,Access & Enablement,JCAB,Supplies & Services,Supportive Lodgings,THEO LANGSTON,28/08/2013,5356.05,
Adult Care & Support,Access & Enablement,JCAB,Supplies & Services,Supportive Lodgings,THEO LANGSTON,28/08/2013,1507.53,
Adult Care & Support,Access & Enablement,JCAB,Supplies & Services,Supportive Lodgings,THEO LANGSTON,28/08/2013,359.94,
Adult Care & Support,Access & Enablement,JCAB,Supplies & Services,Other Services,RGT TRAINING & CONSULTANCY,28/08/2013,1330,
Adult Care & Support,Access & Enablement,JCAB,Supplies & Services,Supportive Lodgings,LEAVING CARE COMPANY,28/08/2013,2738.57,
Adult Care & Support,Access & Enablement,JCAB,Supplies & Services,Supportive Lodgings,LEAVING CARE COMPANY,28/08/2013,1849.29,
Adult Care & Support,Access & Enablement,JCAB,Supplies & Services,Supportive Lodgings,THEO LANGSTON,28/08/2013,931.24,
Adult Care & Support,Access & Enablement,JCAB,Supplies & Services,Supportive Lodgings,NEXT STEP CARE MANAGEMENT LTD,28/08/2013,3310.8,
Adult Care & Support,Access & Enablement,JCAB,Supplies & Services,Supportive Lodgings,ABC CARE LTD,28/08/2013,3352.51,
Adult Care & Support,Access & Enablement,JCAB,Supplies & Services,Supportive Lodgings,NEXT STEP CARE MANAGEMENT LTD,28/08/2013,1992.86,
Adult Care & Support,Access & Enablement,JCAB,Supplies & Services,Supportive Lodgings,NEXT STEP CARE MANAGEMENT LTD,28/08/2013,2325,
Adult Care & Support,Access & Enablement,JCAB,Supplies & Services,Supportive Lodgings,NEXT STEP CARE MANAGEMENT LTD,30/08/2013,1992.99,
Adult Care & Support,Access & Enablement,JCAB,Supplies & Services,Supportive Lodgings,THEO LANGSTON,29/08/2013,-401.35,
Adult Care & Support,Access & Enablement,JCAB,Supplies & Services,Supportive Lodgings,NEXT STEP CARE MANAGEMENT LTD,14/08/2013,227.2,
Adult Care & Support,Access & Enablement,JCAB,Supplies & Services,Supportive Lodgings,NEXT STEP CARE MANAGEMENT LTD,14/08/2013,12428.53,
Adult Care & Support,Access & Enablement,JCAB,Supplies & Services,Supportive Lodgings,THEO LANGSTON,14/08/2013,262.6,
Adult Care & Support,Access & Enablement,JCAB,Supplies & Services,Supportive Lodgings,THEO LANGSTON,30/08/2013,256.72,
Adult Care & Support,Access & Enablement,JCAB,Supplies & Services,Supportive Lodgings,THEO LANGSTON,27/08/2013,210.01,
Adult Care & Support,Access & Enablement,JCAB,Supplies & Services,Supportive Lodgings,STAY TELFORD XC SUPPORTED HOUSE,02/08/2013,1097.88,
Adult Care & Support,Access & Enablement,JCAB,Supplies & Services,Supportive Lodgings,STAY TELFORD XC SUPPORTED HOUSE,01/08/2013,731.92,
Adult Care & Support,Access & Enablement,JCAB,Supplies & Services,Supportive Lodgings,STAY TELFORD XC SUPPORTED HOUSE,01/08/2013,481.6,
Adult Care & Support,Access & Enablement,JCAB,Supplies & Services,Supportive Lodgings,THEO LANGSTON,01/08/2013,1839.54,
Adult Care & Support,Access & Enablement,JCAB,Supplies & Services,Supportive Lodgings,THEO LANGSTON,01/08/2013,282.82,
Adult Care & Support,Access & Enablement,JCAB,Supplies & Services,CL - Basic Allowance,NEXT STEP CARE MANAGEMENT LTD,28/08/2013,227.2,
Adult Care & Support,Access & Enablement,JCAB,Supplies & Services,CL - Basic Allowance,THEO LANGSTON,28/08/2013,251.72,
Adult Care & Support,Access & Enablement,JCAB,Supplies & Services,CL - Basic Allowance,NEXT STEP CARE MANAGEMENT LTD,28/08/2013,227.2,
Adult Care & Support,Access & Enablement,JCAB,Supplies & Services,CL - Basic Allowance,NEXT STEP CARE MANAGEMENT LTD,27/08/2013,227.2,
Adult Care & Support,Access & Enablement,JCAB,Supplies & Services,CL - Basic Allowance,NEXT STEP CARE MANAGEMENT LTD,02/08/2013,284,
Adult Care & Support,Access & Enablement,JCAB,Supplies & Services,CL - Basic Allowance,LEAVING CARE COMPANY,06/08/2013,227.2,
Adult Care & Support,Access & Enablement,JCAB,Supplies & Services,CL - Basic Allowance,NEXT STEP CARE MANAGEMENT LTD,01/08/2013,227.2,
Adult Care & Support,Access & Enablement,JCAB,Supplies & Services,CL - Basic Allowance,LEAVING CARE COMPANY,01/08/2013,225,
Adult Care & Support,Access & Enablement,JCAB,Supplies & Services,CL - Basic Allowance,NEXT STEP CARE MANAGEMENT LTD,01/08/2013,227.2,
Adult Care & Support,Access & Enablement,JCAB,Supplies & Services,CL - Basic Allowance,NEXT STEP CARE MANAGEMENT LTD,01/08/2013,227.2,
Adult Care & Support,Access & Enablement,JCAB,Supplies & Services,CL - Basic Allowance,LEAVING CARE COMPANY,07/08/2013,283.45,
Adult Care & Support,Access & Enablement,JCAB,Transfer Payments,Leaving Care Grant,STUBLEYS WAREHOUSE,27/08/2013,194,
Adult Care & Support,Access & Enablement,JCAB,Transport-Related Expenditure,Transport,EXPOTEL HOTEL RESERVATIONS LIMITED,29/08/2013,139.2,
Adult Care & Support,Access & Enablement,JCAF,Supplies & Services,Subsistence,EXPOTEL HOTEL RESERVATIONS LIMITED,14/08/2013,110.33,
Adult Care & Support,Adult Social Care Commissioning,HJAA,Supplies & Services,Other Grants (Expenses),SHROPSHIRE VOLUNTARY ASSOC FOR BLIND,01/08/2013,3696.11,
Adult Care & Support,Adult Social Care Commissioning,HJAA,Supplies & Services,Other Grants (Expenses),SENIOR CITIZENS FORUM,23/08/2013,30000,
Adult Care & Support,Adult Social Care Commissioning,HJAA,Supplies & Services,Other Grants (Expenses),SENIOR CITIZENS FORUM,27/08/2013,50000,
Adult Care & Support,Adult Social Care Commissioning,HJAA,Supplies & Services,Other Grants (Expenses),SENIOR CITIZENS FORUM,27/08/2013,-50000,
Adult Care & Support,Adult Social Care Commissioning,HJAA,Supplies & Services,Other Grants (Expenses),CHAIRS & SPARES,06/08/2013,5202,
Adult Care & Support,Adult Social Care Commissioning,HJAA,Supplies & Services,Other Grants (Expenses),Age UK Shropshire Telford & Wrekin,01/08/2013,61782,
Adult Care & Support,Adult Social Care Commissioning,HJAD,Supplies & Services,Consultants Fees,Support Solutions Ltd,29/08/2013,410,
Adult Care & Support,Adult Social Care Commissioning,HJAF,Supplies & Services,Other Grants (Expenses),TELFORD & WREKIN CVS,01/08/2013,26721.77,
Adult Care & Support,Adult Social Care Commissioning,HLEA,Supplies & Services,Other Grants (Expenses),REDACTED PERSONAL INFORMATION,12/08/2013,257.16,
Adult Care & Support,Adult Social Care Commissioning,HOBK,Supplies & Services,Respite Care,COVERAGE CARE SERVICES LTD,14/08/2013,4333.71,
Adult Care & Support,Adult Social Care Commissioning,HOBK,Third Party Payments,Nursing Expenditure,COVERAGE CARE SERVICES LTD,13/08/2013,13579.1,
Adult Care & Support,Adult Social Care Commissioning,HOBK,Third Party Payments,Nursing Expenditure,COVERAGE CARE SERVICES LTD,29/08/2013,13380.04,
Adult Care & Support,Adult Social Care Commissioning,HOBK,Third Party Payments,Nursing Expenditure,COVERAGE CARE SERVICES LTD,14/08/2013,89653.87,
Adult Care & Support,Adult Social Care Commissioning,HOBL,Third Party Payments,Residential Expenditure,COVERAGE CARE SERVICES LTD,14/08/2013,61475.21,
Adult Care & Support,Adult Social Care Commissioning,HOBP,Third Party Payments,Residential Expenditure,COVERAGE CARE SERVICES LTD,14/08/2013,13549.87,
Adult Care & Support,Adult Social Care Commissioning,HOBR,Third Party Payments,Homecare Expenditure,COVERAGE CARE SERVICES LTD,13/08/2013,36186.09,
Adult Care & Support,Adult Social Care Commissioning,HOBR,Third Party Payments,Homecare Expenditure,COVERAGE CARE SERVICES LTD,13/08/2013,4390.16,
Adult Care & Support,Adult Social Care Commissioning,HOBR,Third Party Payments,Homecare Expenditure,COVERAGE CARE SERVICES LTD,13/08/2013,48413.1,
Adult Care & Support,Adult Social Care Commissioning,HOBZ,Third Party Payments,Health Funded Services,DIMENSIONS (UK) LTD,23/08/2013,30996.9,
Adult Care & Support,Adult Social Care Commissioning,HOBZ,Third Party Payments,Health Funded Services,DIMENSIONS (UK) LTD,23/08/2013,27117.25,
Adult Care & Support,Adult Social Care Commissioning,HOBZ,Third Party Payments,Health Funded Services,DIMENSIONS (UK) LTD,23/08/2013,44703.24,
Adult Care & Support,Adult Social Care Commissioning,HOBZ,Third Party Payments,Health Funded Services,DIMENSIONS (UK) LTD,23/08/2013,37252.7,
Adult Care & Support,Adult Social Care Commissioning,HOBZ,Third Party Payments,Health Funded Services,ACCORD HOUSING ASSOCIATION LIMITED,01/08/2013,102337.06,
Adult Care & Support,Assessment & Case Management,HLCA,Supplies & Services,Mobile Phones,ORANGE PCS LTD,13/08/2013,135,
Adult Care & Support,Assessment & Case Management,HLCG,Third Party Payments,Nursing Expenditure,STONHAM HOUSING ASSOCIATION LIMITED,01/08/2013,540.96,
Adult Care & Support,Assessment & Case Management,HLCG,Third Party Payments,Nursing Expenditure,STONHAM HOUSING ASSOCIATION LIMITED,01/08/2013,489.32,
Adult Care & Support,Assessment & Case Management,HLCG,Third Party Payments,Nursing Expenditure,STONHAM HOUSING ASSOCIATION LIMITED,01/08/2013,366.99,
Adult Care & Support,Assessment & Case Management,HLCG,Third Party Payments,Nursing Expenditure,SHROPSHIRE PEER COUNSELLING & ADVOCACY  SERV,01/08/2013,415.8,
Adult Care & Support,Assessment & Case Management,HLCH,Third Party Payments,Homecare Expenditure,The David Lewis Centre,08/08/2013,11762.8,
Adult Care & Support,Assessment & Case Management,HLCH,Third Party Payments,Homecare Expenditure,The David Lewis Centre,08/08/2013,9331,
Adult Care & Support,Assessment & Case Management,HLCK,Third Party Payments,Nursing Expenditure,ARAN HALL SCHOOL LTD,01/08/2013,14200,
Adult Care & Support,Assessment & Case Management,HLCK,Third Party Payments,Residential Expenditure,ARAN HALL SCHOOL LTD,01/08/2013,12678.57,
Adult Care & Support,Assessment & Case Management,HLCK,Third Party Payments,Residential Expenditure,ARAN HALL SCHOOL LTD,01/08/2013,14200,
Adult Care & Support,Assessment & Case Management,HLCK,Third Party Payments,Residential Expenditure,ARAN HALL SCHOOL LTD,01/08/2013,14200,
Adult Care & Support,Assessment & Case Management,HLCL,Supplies & Services,Respite Care,BOURNVILLE VILLAGE TRUST,16/08/2013,33026.38,
Adult Care & Support,Assessment & Case Management,HLCL,Third Party Payments,Residential Expenditure,BOURNVILLE VILLAGE TRUST,16/08/2013,158875.87,
Adult Care & Support,Assessment & Case Management,HLCL,Third Party Payments,Residential Expenditure,BOURNVILLE VILLAGE TRUST,19/08/2013,61163,
Adult Care & Support,Assessment & Case Management,HOAL,Employees,Agency Supply Costs,AMG NURSING & CARE SERVICES,23/08/2013,447.6,
Adult Care & Support,Assessment & Case Management,HOAL,Employees,Agency Supply Costs,PRIORITY CARE (SHROPSHIRE) LTD,23/08/2013,135,
Adult Care & Support,Assessment & Case Management,HOBN,Third Party Payments,Homecare Expenditure,PAMELA E ARCHIBALD,14/08/2013,110,
Adult Care & Support,Assessment & Case Management,HOCR,Supplies & Services,Comp Software (Purch / Hire),OLM SYSTEMS LTD,21/08/2013,425,
Adult Care & Support,Assessment & Case Management,HOCR,Supplies & Services,Conference Expenses,bild,12/08/2013,175,
Care & Support,Assessment & Case Management,HPAB,Supplies & Services,Computer Software (Maint),CM 2000 CARE MONITORING,22/08/2013,958.77,
Adult Care & Support,Personalisation Support & Service Provision,HLBB,Premises-Related Expenditure,Clean Mats & Toilet Requisites,CARESHOP,09/08/2013,231.74,
Adult Care & Support,Personalisation Support & Service Provision,HLBB,Supplies & Services,Protective Clothing,ERIC NEVILLE CATERING SUPPLIES LTD,09/08/2013,289.81,
Adult Care & Support,Personalisation Support & Service Provision,HLBB,Supplies & Services,Provisions,G N BADLEY & SONS,13/08/2013,196.26,
Adult Care & Support,Personalisation Support & Service Provision,HLBB,Supplies & Services,Laundry & Towel Hire,PHS ALL CLEAR,13/08/2013,382.42,
Adult Care & Support,Personalisation Support & Service Provision,HLBC,Premises-Related Expenditure,Hire Of Rooms,1ST PRIORSLEE & ST GEORGES SCOUT GROUP,16/08/2013,120,
Adult Care & Support,Personalisation Support & Service Provision,HLBC,Premises-Related Expenditure,Hire Of Rooms,1ST PRIORSLEE & ST GEORGES SCOUT GROUP,13/08/2013,120,
Adult Care & Support,Personalisation Support & Service Provision,HLBC,Supplies & Services,Provisions,BIKOLD,20/08/2013,102.7,
Adult Care & Support,Personalisation Support & Service Provision,HLBC,Supplies & Services,Provisions,BIKOLD,20/08/2013,107.63,
Adult Care & Support,Personalisation Support & Service Provision,HLBC,Supplies & Services,Provisions,BIKOLD,21/08/2013,168.8,
Adult Care & Support,Personalisation Support & Service Provision,HLBC,Supplies & Services,Chemicals/Cleaning Products,WEST MERCIA SUPPLIES Catalogue Supplies (None Utility),21/08/2013,181.08,
Adult Care & Support,Personalisation Support & Service Provision,HLBC,Supplies & Services,Provisions,BIKOLD,13/08/2013,139.44,
Adult Care & Support,Personalisation Support & Service Provision,HLBC,Supplies & Services,Provisions,BIKOLD,05/08/2013,101.71,
Adult Care & Support,Personalisation Support & Service Provision,HLDD,Transport-Related Expenditure,Licences,PRS FOR MUSIC,19/08/2013,187.96,
Adult Care & Support,Personalisation Support & Service Provision,HLEB,Employees,Agency Supply Costs,AMG NURSING & CARE SERVICES,12/08/2013,1563.12,
Adult Care & Support,Personalisation Support & Service Provision,HLEB,Employees,Agency Supply Costs,AMG NURSING & CARE SERVICES,12/08/2013,1984.24,
Adult Care & Support,Personalisation Support & Service Provision,HLEB,Employees,Agency Supply Costs,AMG NURSING & CARE SERVICES,15/08/2013,850.56,
Adult Care & Support,Personalisation Support & Service Provision,HLEB,Supplies & Services,Equipment - Purchase,BERWICK CARE EQUIPMENT LTD,16/08/2013,173.65,
Adult Care & Support,Personalisation Support & Service Provision,HLEB,Supplies & Services,Equipment - Repair,BERWICK CARE EQUIPMENT LTD,16/08/2013,650,
Adult Care & Support,Personalisation Support & Service Provision,HLEB,Supplies & Services,Provisions,THE CONSORTIUM FOR PURCHASING & DISTRIBUTION LTD T/A WEST MERCIA SUPPLIES,12/08/2013,380.38,
Adult Care & Support,Personalisation Support & Service Provision,HLEB,Supplies & Services,Provisions,THE CONSORTIUM FOR PURCHASING & DISTRIBUTION LTD T/A WEST MERCIA SUPPLIES,12/08/2013,111.78,
Adult Care & Support,Personalisation Support & Service Provision,HLEC,Capital Financing Costs,Leased Equipment,LEX AUTOLEASE LTD,12/08/2013,500.14,
Adult Care & Support,Personalisation Support & Service Provision,HLEC,Employees,Agency Supply Costs,AMG NURSING & CARE SERVICES,12/08/2013,410.7,
Adult Care & Support,Personalisation Support & Service Provision,HLEG,Supplies & Services,Respite Care,REDACTED PERSONAL INFORMATION,28/08/2013,197.49,
Adult Care & Support,Personalisation Support & Service Provision,HLEG,Supplies & Services,Respite Care,REDACTED PERSONAL INFORMATION,30/08/2013,345.61,
Adult Care & Support,Personalisation Support & Service Provision,HLEG,Supplies & Services,Respite Care,REDACTED PERSONAL INFORMATION,01/08/2013,148.12,
Adult Care & Support,Personalisation Support & Service Provision,HMAA,Employees,Staff Training,REDACTED PERSONAL INFORMATION,05/08/2013,635.4,
Adult Care & Support,Personalisation Support & Service Provision,HMAA,Supplies & Services,Mobile Phones,ORANGE PCS LTD,30/08/2013,135,
Adult Care & Support,Personalisation Support & Service Provision,HMAA,Supplies & Services,Mobile Phones,ORANGE PCS LTD,09/08/2013,135,
Adult Care & Support,Personalisation Support & Service Provision,HMAA,Supplies & Services,Translation Services,PEARL LINGUISTICS LTD,14/08/2013,360,
Adult Care & Support,Personalisation Support & Service Provision,HMBB,Supplies & Services,Telephones,ADT FIRE & SECURITY PLC,15/08/2013,213.54,
Adult Care & Support,Personalisation Support & Service Provision,HMBB,Supplies & Services,Telephones,ADT FIRE & SECURITY PLC,15/08/2013,884.06,
Adult Care & Support,Personalisation Support & Service Provision,HMBC,Premises-Related Expenditure,Hire Of Rooms,MEADCROFT COMFORTS FUND,07/08/2013,130,
Adult Care & Support,Personalisation Support & Service Provision,HMBL,Premises-Related Expenditure,Water Rates,SEVERN TRENT WATER LTD,05/08/2013,165.6,
Adult Care & Support,Personalisation Support & Service Provision,HOAS,Supplies & Services,Health & Safety Expenses,ONLINE ERGONOMICS LTD,16/08/2013,196.63,
Adult Care & Support,Personalisation Support & Service Provision,HOAS,Transport-Related Expenditure,Outside Hire,GLYN UPTON REMOVALS,16/08/2013,176.8,
Adult Care & Support,Personalisation Support & Service Provision,HOAS,Transport-Related Expenditure,Outside Hire,GLYN UPTON REMOVALS,16/08/2013,221,
Adult Care & Support,Personalisation Support & Service Provision,HPAA,Supplies & Services,Comp Software (Purch / Hire),OLM SYSTEMS LTD,21/08/2013,850,
Adult Care & Support,Personalisation Support & Service Provision,WHAF,Capital Expenditure,Payments to Contractor,PRYCE (BUILDERS) LTD,05/08/2013,306,
Children's Safeguarding,Child Protection & Assessment,JMAB,Supplies & Services,Mobile Phones,ORANGE PCS LTD,28/08/2013,135,
Children's Safeguarding,Child Protection & Assessment,JMAB,Supplies & Services,Other Services,CONNECT CONTACT CENTRES,28/08/2013,1012.2,
Children's Safeguarding,Child Protection & Assessment,JMAB,Supplies & Services,Supportive Lodgings,SAAIL,06/08/2013,4088.61,
Children's Safeguarding,Child Protection & Assessment,JMAB,Supplies & Services,Supportive Lodgings,SAAIL,07/08/2013,227.2,
Children's Safeguarding,Child Protection & Assessment,JMAB,Third Party Payments,Childminders,SMILEY FACES DAY NURSERIES LTD,22/08/2013,492,
Children's Safeguarding,Child Protection & Assessment,JMAB,Transport-Related Expenditure,Taxi Costs,CORKYS CARS,15/08/2013,760,
Children's Safeguarding,Child Protection & Assessment,JMAD,Supplies & Services,Mobile Phones,ORANGE PCS LTD,28/08/2013,135,
Children's Safeguarding,Child Protection & Assessment,JMAD,Supplies & Services,Section 17 Childrens Act,REDACTED PERSONAL INFORMATION,19/08/2013,125,
Children's Safeguarding,Child Protection & Assessment,JMAD,Supplies & Services,Section 17 Childrens Act,REDACTED PERSONAL INFORMATION,23/08/2013,125,
Children's Safeguarding,Child Protection & Assessment,JMAD,Supplies & Services,Section 17 Childrens Act,REDACTED PERSONAL INFORMATION,12/08/2013,125,
Children's Safeguarding,Child Protection & Assessment,JMAD,Supplies & Services,Section 17 Childrens Act,REDACTED PERSONAL INFORMATION,05/08/2013,125,
Children's Safeguarding,Child Protection & Assessment,JMAD,Transport-Related Expenditure,Taxi Costs,CENTRAL TAXIS LTD SHREWSBURY,16/08/2013,106,
Children's Safeguarding,Child Protection & Assessment,JMAD,Transport-Related Expenditure,Taxi Costs,CENTRAL TAXIS LTD SHREWSBURY,16/08/2013,176,
Children's Safeguarding,Child Protection & Assessment,JMAD,Transport-Related Expenditure,Transport,EXPOTEL HOTEL RESERVATIONS LIMITED,01/08/2013,124,
Children's Safeguarding,Child Protection & Assessment,JMAD,Transport-Related Expenditure,Transport,EXPOTEL HOTEL RESERVATIONS LIMITED,01/08/2013,162,
Children's Safeguarding,Child Protection & Assessment,JMAD,Transport-Related Expenditure,Transport,EXPOTEL HOTEL RESERVATIONS LIMITED,01/08/2013,143,
Children's Safeguarding,Child Protection & Assessment,JMAD,Transport-Related Expenditure,Transport,EXPOTEL HOTEL RESERVATIONS LIMITED,29/08/2013,162,
Children's Safeguarding,Child Protection & Assessment,JMAD,Transport-Related Expenditure,Transport,EXPOTEL HOTEL RESERVATIONS LIMITED,14/08/2013,211.8,
Children's Safeguarding,Child Protection & Assessment,JMAD,Transport-Related Expenditure,Transport,EXPOTEL HOTEL RESERVATIONS LIMITED,14/08/2013,211.8,
Children's Safeguarding,Child Protection & Assessment,JMAE,Supplies & Services,Other Services,LIVING SPRINGS FAMILY CENTRE,16/08/2013,101.2,
Children's Safeguarding,Child Protection & Assessment,JMAE,Supplies & Services,Other Services,LIVING SPRINGS FAMILY CENTRE,01/08/2013,13568.5,
Children's Safeguarding,Child Protection & Assessment,JMAE,Supplies & Services,Other Services,VOICE,01/08/2013,379.25,
Children's Safeguarding,Child Protection & Assessment,JMAE,Supplies & Services,Other Services,CARE TODAY CHILDRENS SERVICES,22/08/2013,1120,
Children's Safeguarding,Child Protection & Assessment,JMAE,Supplies & Services,Other Services,LIVING SPRINGS FAMILY CENTRE,22/08/2013,2185.93,
Children's Safeguarding,Child Protection & Assessment,JMAE,Supplies & Services,Other Services,NEWSTART NETWORKS CIC,22/08/2013,5290,
Children's Safeguarding,Child Protection & Assessment,JMAE,Supplies & Services,Other Services,NEWSTART NETWORKS CIC,22/08/2013,1000,
Children's Safeguarding,Child Protection & Assessment,JMAE,Supplies & Services,Other Services,NEWSTART NETWORKS CIC,22/08/2013,1000,
Children's Safeguarding,Child Protection & Assessment,JMAE,Supplies & Services,Other Services,SW Expertise,28/08/2013,2013,
Children's Safeguarding,Child Protection & Assessment,JMAE,Supplies & Services,Other Services,SW Expertise,28/08/2013,1773,
Children's Safeguarding,Child Protection & Assessment,JMAE,Supplies & Services,Other Services,SW Expertise,28/08/2013,2541.5,
Children's Safeguarding,Child Protection & Assessment,JMAE,Supplies & Services,Other Services,SW Expertise,28/08/2013,2013,
Children's Safeguarding,Child Protection & Assessment,JMAE,Supplies & Services,Other Services,SW Expertise,28/08/2013,2013,
Children's Safeguarding,Child Protection & Assessment,JMAE,Supplies & Services,Other Services,VOICE,01/08/2013,407.8,
Children's Safeguarding,Child Protection & Assessment,JMAE,Supplies & Services,Other Services,LIVING SPRINGS FAMILY CENTRE,07/08/2013,7578.5,
Children's Safeguarding,Child Protection & Assessment,JMAL,Supplies & Services,Other Services,NESTOR PRIMECARE SERVICES LTD T/A ALLIED HEALTHCARE,08/08/2013,554.47,
Children's Safeguarding,Child Protection & Assessment,JMAL,Supplies & Services,Other Services,NESTOR PRIMECARE SERVICES LTD T/A ALLIED HEALTHCARE,22/08/2013,562.06,
Children's Safeguarding,Child Protection & Assessment,JMAL,Supplies & Services,Other Services,NESTOR PRIMECARE SERVICES LTD T/A ALLIED HEALTHCARE,30/08/2013,683.07,
Children's Safeguarding,Child Protection & Assessment,JMAL,Supplies & Services,Other Services,NESTOR PRIMECARE SERVICES LTD T/A ALLIED HEALTHCARE,05/08/2013,554.47,
Children's Safeguarding,Child Protection & Assessment,JMAL,Third Party Payments,Childminders,WOODVILLE DAY NURSERY,28/08/2013,743.85,
Children's Safeguarding,Child Protection & Assessment,JMAL,Third Party Payments,Childminders,WOODEN TOPS DAY NURSERY A/C 2862358,22/08/2013,398.53,
Children's Safeguarding,Child Protection & Assessment,JPAH,Supplies & Services,Adoption Allowances,WHEELSCAPE LTD,09/08/2013,276,
Children's Safeguarding,Children in Care & Fostering,JMAF,Supplies & Services,Supportive Lodgings,SAAIL,21/08/2013,2214.33,
Children's Safeguarding,Children in Care & Fostering,JMAF,Supplies & Services,Supportive Lodgings,SAAIL,21/08/2013,340.8,
Children's Safeguarding,Children in Care & Fostering,JMAF,Supplies & Services,Supportive Lodgings,IMPACTING LIVES LIMITED,15/08/2013,2799.96,
Children's Safeguarding,Children in Care & Fostering,JMAF,Supplies & Services,Supportive Lodgings,IMPACTING LIVES LIMITED,13/08/2013,282.2,
Children's Safeguarding,Children in Care & Fostering,JMAF,Supplies & Services,Supportive Lodgings,SAAIL,06/08/2013,1785.75,
Children's Safeguarding,Children in Care & Fostering,JMAF,Transport-Related Expenditure,Taxi Costs,DIAMOND CARS (TELFORD) LTD,16/08/2013,198,
Children's Safeguarding,Children in Care & Fostering,JMAF,Transport-Related Expenditure,Transport,EXPOTEL HOTEL RESERVATIONS LIMITED,01/08/2013,273.4,
Children's Safeguarding,Children in Care & Fostering,JMAF,Transport-Related Expenditure,Travelling Expenses General,EXPOTEL HOTEL RESERVATIONS LIMITED,14/08/2013,187.2,
Children's Safeguarding,Children in Care & Fostering,JPAD,Third Party Payments,External Foster Care Payments,HILLCREST CARE LTD,16/08/2013,3346.36,
Children's Safeguarding,Children in Care & Fostering,JPAD,Third Party Payments,External Foster Care Payments,SWIIS FOSTER CARE LTD,28/08/2013,895,
Children's Safeguarding,Children in Care & Fostering,JPAD,Third Party Payments,External Foster Care Payments,FOSTERING PRIORY,08/08/2013,3609.29,
Children's Safeguarding,Children in Care & Fostering,JPAD,Third Party Payments,External Foster Care Payments,PARK FOSTER CARE,09/08/2013,6200,
Children's Safeguarding,Children in Care & Fostering,JPAD,Third Party Payments,External Foster Care Payments,NATIONAL FOSTERING AGENCY,16/08/2013,3233.3,
Children's Safeguarding,Children in Care & Fostering,JPAD,Third Party Payments,External Foster Care Payments,NATIONAL FOSTERING AGENCY,16/08/2013,3077.99,
Children's Safeguarding,Children in Care & Fostering,JPAD,Third Party Payments,External Foster Care Payments,NATIONAL FOSTERING AGENCY,16/08/2013,3077.99,
Children's Safeguarding,Children in Care & Fostering,JPAD,Third Party Payments,External Foster Care Payments,SWIIS FOSTER CARE LTD,16/08/2013,895,
Children's Safeguarding,Children in Care & Fostering,JPAD,Third Party Payments,External Foster Care Payments,SWIIS FOSTER CARE LTD,08/08/2013,895,
Children's Safeguarding,Children in Care & Fostering,JPAD,Third Party Payments,External Foster Care Payments,HILLCREST CARE LTD,08/08/2013,3338.57,
Children's Safeguarding,Children in Care & Fostering,JPAD,Third Party Payments,External Foster Care Payments,ACTION FOR CHILDREN LIMITED,15/08/2013,5787.61,
Children's Safeguarding,Children in Care & Fostering,JPAD,Third Party Payments,External Foster Care Payments,RED KITE FOSTERING,06/08/2013,5247.86,
Children's Safeguarding,Children in Care & Fostering,JPAD,Third Party Payments,External Foster Care Payments,CLIFFORD HOUSE FOSTERING LTD,01/08/2013,212.8,
Children's Safeguarding,Children in Care & Fostering,JPAD,Third Party Payments,External Foster Care Payments,SWIIS FOSTER CARE LTD,01/08/2013,895,
Children's Safeguarding,Children in Care & Fostering,JPAD,Third Party Payments,External Foster Care Payments,NATIONAL FOSTERING AGENCY,20/08/2013,3167.27,
Children's Safeguarding,Children in Care & Fostering,JPAD,Third Party Payments,External Foster Care Payments,NATIONAL FOSTERING AGENCY,20/08/2013,3380.86,
Children's Safeguarding,Children in Care & Fostering,JPAD,Third Party Payments,External Foster Care Payments,NATIONAL FOSTERING AGENCY,20/08/2013,3311.73,
Children's Safeguarding,Children in Care & Fostering,JPAD,Third Party Payments,External Foster Care Payments,Compass Childrens Services,20/08/2013,3162,
Children's Safeguarding,Children in Care & Fostering,JPAD,Third Party Payments,External Foster Care Payments,FREEDOM FOSTERING,20/08/2013,2977.92,
Children's Safeguarding,Children in Care & Fostering,JPAD,Third Party Payments,External Foster Care Payments,CORE ASSETS FOSTERING LIMITED,20/08/2013,3265.6,
Children's Safeguarding,Children in Care & Fostering,JPAD,Third Party Payments,External Foster Care Payments,CORE ASSETS FOSTERING LIMITED,20/08/2013,3049.1,
Children's Safeguarding,Children in Care & Fostering,JPAD,Third Party Payments,External Foster Care Payments,CLIFFORD HOUSE FOSTERING LTD,20/08/2013,190.4,
Children's Safeguarding,Children in Care & Fostering,JPAD,Third Party Payments,External Foster Care Payments,NATIONAL FOSTERING AGENCY,20/08/2013,3380.86,
Children's Safeguarding,Children in Care & Fostering,JPAD,Third Party Payments,External Foster Care Payments,CORE ASSETS FOSTERING LIMITED,20/08/2013,3445.32,
Children's Safeguarding,Children in Care & Fostering,JPAD,Third Party Payments,External Foster Care Payments,CORE ASSETS FOSTERING LIMITED,20/08/2013,3537.1,
Children's Safeguarding,Children in Care & Fostering,JPAD,Third Party Payments,External Foster Care Payments,NATIONAL FOSTERING AGENCY,20/08/2013,3077.99,
Children's Safeguarding,Children in Care & Fostering,JPAD,Third Party Payments,External Foster Care Payments,NATIONAL FOSTERING AGENCY,20/08/2013,3077.99,
Children's Safeguarding,Children in Care & Fostering,JPAD,Third Party Payments,External Foster Care Payments,NATIONAL FOSTERING AGENCY,20/08/2013,3077.99,
Children's Safeguarding,Children in Care & Fostering,JPAD,Third Party Payments,External Foster Care Payments,CORE ASSETS FOSTERING LIMITED,20/08/2013,3537.1,
Children's Safeguarding,Children in Care & Fostering,JPAD,Third Party Payments,External Foster Care Payments,NATIONAL FOSTERING AGENCY,20/08/2013,3175.64,
Children's Safeguarding,Children in Care & Fostering,JPAD,Third Party Payments,External Foster Care Payments,NATIONAL FOSTERING AGENCY,20/08/2013,3233.3,
Children's Safeguarding,Children in Care & Fostering,JPAD,Third Party Payments,External Foster Care Payments,FREEDOM FOSTERING,20/08/2013,2929.04,
Children's Safeguarding,Children in Care & Fostering,JPAD,Third Party Payments,External Foster Care Payments,FREEDOM FOSTERING,28/08/2013,295.71,
Children's Safeguarding,Children in Care & Fostering,JPAD,Third Party Payments,External Foster Care Payments,By The Bridge,28/08/2013,4160.86,
Children's Safeguarding,Children in Care & Fostering,JPAD,Third Party Payments,External Foster Care Payments,FREEDOM FOSTERING,28/08/2013,280.93,
Children's Safeguarding,Children in Care & Fostering,JPAD,Third Party Payments,External Foster Care Payments,PROGRESS CHILDREN'S SERVICES LTD,09/08/2013,3682.8,
Children's Safeguarding,Children in Care & Fostering,JPAD,Third Party Payments,External Foster Care Payments,PROGRESS CHILDREN'S SERVICES LTD,09/08/2013,4406.34,
Children's Safeguarding,Children in Care & Fostering,JPAD,Third Party Payments,External Foster Care Payments,CORE ASSETS FOSTERING LIMITED,20/08/2013,3763.05,
Children's Safeguarding,Children in Care & Fostering,JPAD,Third Party Payments,External Foster Care Payments,CLIFFORD HOUSE FOSTERING LTD,09/08/2013,3412,
Children's Safeguarding,Children in Care & Fostering,JPAD,Third Party Payments,External Foster Care Payments,PARK FOSTER CARE,09/08/2013,3419.92,
Children's Safeguarding,Children in Care & Fostering,JPAD,Third Party Payments,External Foster Care Payments,CLIFFORD HOUSE FOSTERING LTD,09/08/2013,3412,
Children's Safeguarding,Children in Care & Fostering,JPAD,Third Party Payments,External Foster Care Payments,PARK FOSTER CARE,09/08/2013,6642.99,
Children's Safeguarding,Children in Care & Fostering,JPAD,Third Party Payments,External Foster Care Payments,INDEPENDENT CHILDCARE GROUP OF SCHOOLS L,09/08/2013,2657.01,
Children's Safeguarding,Children in Care & Fostering,JPAD,Third Party Payments,External Foster Care Payments,PARK FOSTER CARE,09/08/2013,3419.92,
Children's Safeguarding,Children in Care & Fostering,JPAD,Third Party Payments,External Foster Care Payments,FOSTERING PRIORY,09/08/2013,1727.14,
Children's Safeguarding,Children in Care & Fostering,JPAD,Third Party Payments,External Foster Care Payments,By The Bridge,21/08/2013,4738.57,
Children's Safeguarding,Children in Care & Fostering,JPAD,Third Party Payments,External Foster Care Payments,CORE ASSETS FOSTERING LIMITED,21/08/2013,3763.05,
Children's Safeguarding,Children in Care & Fostering,JPAD,Third Party Payments,External Foster Care Payments,HILLCREST CARE LTD,22/08/2013,3050.18,
Children's Safeguarding,Children in Care & Fostering,JPAD,Third Party Payments,External Foster Care Payments,RED KITE FOSTERING,22/08/2013,5247.86,
Children's Safeguarding,Children in Care & Fostering,JPAD,Third Party Payments,External Foster Care Payments,HILLCREST CARE LTD,22/08/2013,2958.68,
Children's Safeguarding,Children in Care & Fostering,JPAD,Third Party Payments,External Foster Care Payments,HILLCREST CARE LTD,22/08/2013,3050.18,
Children's Safeguarding,Children in Care & Fostering,JPAD,Third Party Payments,External Foster Care Payments,HILLCREST CARE LTD,22/08/2013,3346.36,
Children's Safeguarding,Children in Care & Fostering,JPAD,Third Party Payments,External Foster Care Payments,HILLCREST CARE LTD,22/08/2013,3520.71,
Children's Safeguarding,Children in Care & Fostering,JPAD,Third Party Payments,External Foster Care Payments,HILLCREST CARE LTD,22/08/2013,3244.32,
Children's Safeguarding,Children in Care & Fostering,JPAD,Third Party Payments,External Foster Care Payments,HILLCREST CARE LTD,22/08/2013,3344.68,
Children's Safeguarding,Children in Care & Fostering,JPAD,Third Party Payments,External Foster Care Payments,HILLCREST CARE LTD,22/08/2013,3380.86,
Children's Safeguarding,Children in Care & Fostering,JPAD,Third Party Payments,External Foster Care Payments,HILLCREST CARE LTD,22/08/2013,3450.3,
Children's Safeguarding,Children in Care & Fostering,JPAD,Third Party Payments,External Foster Care Payments,HILLCREST CARE LTD,22/08/2013,3210.71,
Children's Safeguarding,Children in Care & Fostering,JPAD,Third Party Payments,External Foster Care Payments,HILLCREST CARE LTD,22/08/2013,2932.6,
Children's Safeguarding,Children in Care & Fostering,JPAD,Third Party Payments,External Foster Care Payments,HILLCREST CARE LTD,22/08/2013,3244.33,
Children's Safeguarding,Children in Care & Fostering,JPAD,Third Party Payments,External Foster Care Payments,Childcare Bureau,13/08/2013,4130.75,
Children's Safeguarding,Children in Care & Fostering,JPAD,Third Party Payments,External Foster Care Payments,CORE ASSETS FOSTERING LIMITED,20/08/2013,3537.1,
Children's Safeguarding,Children in Care & Fostering,JPAD,Third Party Payments,External Foster Care Payments,PARK FOSTER CARE,13/08/2013,3720,
Children's Safeguarding,Children in Care & Fostering,JPAD,Third Party Payments,External Foster Care Payments,REGIONAL FOSTER PLACEMENTS,13/08/2013,3449.99,
Children's Safeguarding,Children in Care & Fostering,JPAD,Third Party Payments,External Foster Care Payments,NEXUS FOSTERING,13/08/2013,3816.1,
Children's Safeguarding,Children in Care & Fostering,JPAD,Third Party Payments,External Foster Care Payments,ACTION FOR CHILDREN LIMITED,13/08/2013,3516.29,
Children's Safeguarding,Children in Care & Fostering,JPAD,Third Party Payments,External Foster Care Payments,ACTION FOR CHILDREN LIMITED,13/08/2013,3402.86,
Children's Safeguarding,Children in Care & Fostering,JPAD,Third Party Payments,External Foster Care Payments,FREEDOM FOSTERING,23/08/2013,3009.6,
Children's Safeguarding,Children in Care & Fostering,JPAD,Third Party Payments,External Foster Care Payments,SWIIS FOSTER CARE LTD,14/08/2013,895,
Children's Safeguarding,Children in Care & Fostering,JPAD,Third Party Payments,External Foster Care Payments,HILLCREST CARE LTD,23/08/2013,3449.86,
Children's Safeguarding,Children in Care & Fostering,JPAD,Third Party Payments,External Foster Care Payments,HILLCREST CARE LTD,23/08/2013,681.43,
Children's Safeguarding,Children in Care & Fostering,JPAD,Third Party Payments,External Foster Care Payments,HILLCREST CARE LTD,27/08/2013,2576.9,
Children's Safeguarding,Children in Care & Fostering,JPAD,Third Party Payments,External Foster Care Payments,HILLCREST CARE LTD,27/08/2013,2767.86,
Children's Safeguarding,Children in Care & Fostering,JPAD,Third Party Payments,External Foster Care Payments,FOSTERING SOLUTIONS LTD,15/08/2013,3376.74,
Children's Safeguarding,Children in Care & Fostering,JPAD,Third Party Payments,External Foster Care Payments,THE ADOLESCENT & CHILDRENS TRUST,15/08/2013,3003.9,
Children's Safeguarding,Children in Care & Fostering,JPAD,Third Party Payments,External Foster Care Payments,ACTION FOR CHILDREN LIMITED,06/08/2013,4537.14,
Children's Safeguarding,Children in Care & Fostering,JPAD,Third Party Payments,External Foster Care Payments,SWIIS FOSTER CARE LTD,06/08/2013,895.02,
Children's Safeguarding,Children in Care & Fostering,JPAD,Third Party Payments,Residential Expenditure,HILLCREST CARE LTD,06/08/2013,3244.33,
Children's Safeguarding,Children in Care & Fostering,JPAD,Third Party Payments,External Foster Care Payments,HILLCREST CARE LTD,06/08/2013,3077.86,
Children's Safeguarding,Children in Care & Fostering,JPAD,Third Party Payments,External Foster Care Payments,HILLCREST CARE LTD,06/08/2013,3344.68,
Children's Safeguarding,Children in Care & Fostering,JPAD,Third Party Payments,External Foster Care Payments,CORE ASSETS FOSTERING LIMITED,01/08/2013,-3585.12,
Children's Safeguarding,Children in Care & Fostering,JPAD,Third Party Payments,External Foster Care Payments,HILLCREST CARE LTD,06/08/2013,3277.81,
Children's Safeguarding,Children in Care & Fostering,JPAD,Third Party Payments,External Foster Care Payments,HILLCREST CARE LTD,06/08/2013,3344.68,
Children's Safeguarding,Children in Care & Fostering,JPAD,Third Party Payments,External Foster Care Payments,HILLCREST CARE LTD,06/08/2013,3210.71,
Children's Safeguarding,Children in Care & Fostering,JPAD,Third Party Payments,External Foster Care Payments,HILLCREST CARE LTD,06/08/2013,3077.86,
Children's Safeguarding,Children in Care & Fostering,JPAD,Third Party Payments,External Foster Care Payments,INDEPENDENT CHILDCARE GROUP OF SCHOOLS L,05/08/2013,3538.34,
Children's Safeguarding,Children in Care & Fostering,JPAD,Third Party Payments,External Foster Care Payments,FOSTERING PRIORY,05/08/2013,3808.57,
Children's Safeguarding,Children in Care & Fostering,JPAD,Third Party Payments,External Foster Care Payments,HILLCREST CARE LTD,06/08/2013,3244.33,
Children's Safeguarding,Children in Care & Fostering,JPAD,Third Party Payments,External Foster Care Payments,FREEDOM FOSTERING,06/08/2013,1131.43,
Children's Safeguarding,Children in Care & Fostering,JPAD,Third Party Payments,External Foster Care Payments,FREEDOM FOSTERING,06/08/2013,1289.83,
Children's Safeguarding,Children in Care & Fostering,JPAD,Third Party Payments,External Foster Care Payments,FREEDOM FOSTERING,06/08/2013,556.45,
Children's Safeguarding,Children in Care & Fostering,JPAD,Third Party Payments,External Foster Care Payments,FREEDOM FOSTERING,06/08/2013,1335.43,
Children's Safeguarding,Children in Care & Fostering,JPAD,Third Party Payments,External Foster Care Payments,HILLCREST CARE LTD,06/08/2013,3520.71,
Children's Safeguarding,Children in Care & Fostering,JPAD,Third Party Payments,External Foster Care Payments,HILLCREST CARE LTD,06/08/2013,3238.41,
Children's Safeguarding,Children in Care & Fostering,JPAD,Third Party Payments,External Foster Care Payments,CORE ASSETS FOSTERING LIMITED,07/08/2013,3430.99,
Children's Safeguarding,Children in Care & Fostering,JPAD,Third Party Payments,External Foster Care Payments,SWIIS FOSTER CARE LTD,07/08/2013,895,
Children's Safeguarding,Children in Care & Fostering,JPAD,Third Party Payments,External Foster Care Payments,INDEPENDENT CHILDCARE GROUP OF SCHOOLS L,07/08/2013,2625.22,
Children's Safeguarding,Children in Care & Fostering,JPAD,Third Party Payments,External Foster Care Payments,HILLCREST CARE LTD,07/08/2013,3449.86,
Children's Safeguarding,Children in Care & Fostering,JPAM,Supplies & Services,Printing - Other,SILK GROUP LTD,23/08/2013,220,
Children's Safeguarding,Children in Care & Fostering,JPAN,Third Party Payments,External Foster Care Payments,HILLCREST CARE LTD,22/08/2013,2635,
Children's Safeguarding,Children in Care & Fostering,JPAN,Third Party Payments,External Foster Care Payments,FREEDOM FOSTERING,23/08/2013,3116,
Children's Safeguarding,Children in Care & Fostering,JPAN,Third Party Payments,External Foster Care Payments,KEYS CHILDCARE LTD,01/08/2013,850,
Children's Safeguarding,Children in Care & Fostering,JPAN,Third Party Payments,External Foster Care Payments,HILLCREST CARE LTD,01/08/2013,-166.98,
Children's Safeguarding,Children in Care & Fostering,JPAN,Third Party Payments,Residential Expenditure,COVE RESIDENTIAL CARE SERVICES LTD,08/08/2013,10371.42,
Children's Safeguarding,Children in Care & Fostering,JPAN,Third Party Payments,Residential Expenditure,PETERBOROUGH CITY COUNCIL,16/08/2013,24986,
Children's Safeguarding,Children in Care & Fostering,JPAN,Third Party Payments,Residential Expenditure,PRESTIGE ADOLESCENT CARE & EDUCATION,08/08/2013,11071.34,
Children's Safeguarding,Children in Care & Fostering,JPAN,Third Party Payments,Residential Expenditure,KEYS CHILDCARE LTD,15/08/2013,11691.34,
Children's Safeguarding,Children in Care & Fostering,JPAN,Third Party Payments,Residential Expenditure,ABC CARE LTD,06/08/2013,16602.3,
Children's Safeguarding,Children in Care & Fostering,JPAN,Third Party Payments,Residential Expenditure,ABC CARE LTD,06/08/2013,17323.21,
Children's Safeguarding,Children in Care & Fostering,JPAN,Third Party Payments,Residential Expenditure,COVE RESIDENTIAL CARE SERVICES LTD,01/08/2013,13200,
Children's Safeguarding,Children in Care & Fostering,JPAN,Third Party Payments,Residential Expenditure,CASTLE HOMES CARE LIMITED,01/08/2013,37972.58,
Children's Safeguarding,Children in Care & Fostering,JPAN,Third Party Payments,Residential Expenditure,KEYS CHILDCARE LTD,15/08/2013,11071.34,
Children's Safeguarding,Children in Care & Fostering,JPAN,Third Party Payments,Residential Expenditure,SUNFIELD CHILDRENS HOMES LTD,20/08/2013,15691.17,
Children's Safeguarding,Children in Care & Fostering,JPAN,Third Party Payments,Residential Expenditure,NEW HORIZONS (STOCKPORT) LTD,20/08/2013,13685.71,
Children's Safeguarding,Children in Care & Fostering,JPAN,Third Party Payments,Residential Expenditure,EDUCARE ADOLESCENT SERVICES LTD,28/08/2013,12642.9,
Children's Safeguarding,Children in Care & Fostering,JPAN,Third Party Payments,Residential Expenditure,EDUCARE ADOLESCENT SERVICES LTD,28/08/2013,12642.9,
Children's Safeguarding,Children in Care & Fostering,JPAN,Third Party Payments,Residential Expenditure,EDUCARE ADOLESCENT SERVICES LTD,28/08/2013,12642.9,
Children's Safeguarding,Children in Care & Fostering,JPAN,Third Party Payments,Residential Expenditure,PROGRESS CHILDREN'S SERVICES LTD,09/08/2013,14198,
Children's Safeguarding,Children in Care & Fostering,JPAN,Third Party Payments,Residential Expenditure,NEW HORIZONS (STOCKPORT) LTD,20/08/2013,-635.69,
Children's Safeguarding,Children in Care & Fostering,JPAN,Third Party Payments,Residential Expenditure,CASTLE HOMES CARE LIMITED,21/08/2013,13384.25,
Children's Safeguarding,Children in Care & Fostering,JPAN,Third Party Payments,Residential Expenditure,NEW HORIZONS (STOCKPORT) LTD,21/08/2013,13000,
Children's Safeguarding,Children in Care & Fostering,JPAN,Third Party Payments,Residential Expenditure,ST HELENS COUNCIL,13/08/2013,18602.79,
Children's Safeguarding,Children in Care & Fostering,JPAN,Third Party Payments,Residential Expenditure,Wrixon Care Escorts and Outreach,13/08/2013,383.95,
Children's Safeguarding,Children in Care & Fostering,JPAN,Third Party Payments,Residential Expenditure,AMBERLEIGH CARE LIMITED,23/08/2013,2431.43,
Children's Safeguarding,Children in Care & Fostering,JPAN,Third Party Payments,Residential Expenditure,NEW HORIZONS CHILD CARE LTD,23/08/2013,11514.33,
Children's Safeguarding,Children in Care & Fostering,JPAN,Third Party Payments,Residential Expenditure,Young Options Pathways Stoke,15/08/2013,18010.11,
Children's Safeguarding,Children in Care & Fostering,JPAN,Third Party Payments,Residential Expenditure,CARE TODAY CHILDRENS SERVICES,27/08/2013,16310.34,
Children's Safeguarding,Children in Care & Fostering,JPAN,Third Party Payments,Residential Expenditure,CARE TODAY CHILDRENS SERVICES,27/08/2013,12377.99,
Children's Safeguarding,Children in Care & Fostering,JPAN,Third Party Payments,Residential Expenditure,MGM CARE SERVICES LTD,27/08/2013,12308.8,
Children's Safeguarding,Children in Care & Fostering,JPAN,Third Party Payments,Residential Expenditure,KEYS CHILDCARE LTD,01/08/2013,1700,
Children's Safeguarding,Children in Care & Fostering,JPAN,Third Party Payments,Residential Expenditure,NEW HORIZONS CHILD CARE LTD,06/08/2013,-13728.66,
Children's Safeguarding,Children in Care & Fostering,JPAN,Third Party Payments,Residential Expenditure,EDUCARE ADOLESCENT SERVICES LTD,01/08/2013,-13064.33,
Children's Safeguarding,Children in Care & Fostering,JPAN,Third Party Payments,Residential Expenditure,ABC CARE LTD,05/08/2013,12000,
Children's Safeguarding,Children in Care & Fostering,JPAN,Third Party Payments,Residential Expenditure,ARAN HALL SCHOOL LTD,07/08/2013,19588.95,
Children's Safeguarding,Children in Care & Fostering,JPAN,Third Party Payments,Residential Expenditure,SUNFIELD CHILDRENS HOMES LTD,07/08/2013,15691.17,
Children's Safeguarding,Children in Care & Fostering,JPAN,Third Party Payments,Residential Expenditure,NEW HORIZONS (STOCKPORT) LTD,06/08/2013,13000,
Children's Safeguarding,Children in Care & Fostering,JPAN,Third Party Payments,Residential Expenditure,ABC CARE LTD,06/08/2013,19367.35,
Children's Safeguarding,Children in Care & Fostering,JPAN,Third Party Payments,Residential Expenditure,SUNFIELD CHILDRENS HOMES LTD,07/08/2013,13831.5,
Children's Safeguarding,Children in Care & Fostering,JPAN,Third Party Payments,Residential Expenditure,PRESTIGE ADOLESCENT CARE & EDUCATION,07/08/2013,7499.94,
Children's Safeguarding,Children in Care & Fostering,JPAN,Third Party Payments,Residential Expenditure,NEW HORIZONS CHILD CARE LTD,07/08/2013,3542.88,
Children's Safeguarding,Children in Care & Fostering,JPAN,Third Party Payments,Residential Expenditure,NEW HORIZONS CHILD CARE LTD,07/08/2013,8542.89,
Children's Safeguarding,Children in Care & Fostering,JPAN,Third Party Payments,Residential Expenditure,ARAN HALL SCHOOL LTD,07/08/2013,19588.95,
Children's Safeguarding,Children in Care & Fostering,JPAN,Third Party Payments,Residential Expenditure,SACCS CARE LTD,07/08/2013,20477.67,
Children's Safeguarding,Safeguarding Advisory,JAAC,Employees,Contract Staff,Andrew Mason Consultancy,20/08/2013,-1160.1,
Children's Safeguarding,Safeguarding Advisory,JAAC,Employees,Training Expenses,WHITEHOUSE HOTELS LTD,22/08/2013,1780.43,
Children's Safeguarding,Safeguarding Advisory,JAAC,Employees,Contract Staff,Andrew Mason Consultancy,20/08/2013,-1188.9,
Children's Safeguarding,Safeguarding Advisory,JAAC,Employees,Contract Staff,Andrew Mason Consultancy,20/08/2013,-1125,
Children's Safeguarding,Safeguarding Advisory,JAAC,Third Party Payments,Other Government - Services,SHROPSHIRE COMMUNITY HEALTH NHS TRUST,22/08/2013,3471.91,
Children's Safeguarding,Safeguarding Advisory,JAAD,Supplies & Services,Equipment - Purchase,Freedom of Speech Ltd,13/08/2013,355,
Children's Safeguarding,Safeguarding Advisory,JAAG,Supplies & Services,Supportive Lodgings,THEO LANGSTON,28/08/2013,154.2,
Children's Safeguarding,Safeguarding Advisory,JAAG,Supplies & Services,Supportive Lodgings,REDACTED PERSONAL INFORMATION,30/08/2013,931.24,
Children's Safeguarding,Safeguarding Advisory,JHAA,Supplies & Services,Other Grants (Expenses),SHROPSHIRE COMMUNITY HEALTH NHS TRUST,14/08/2013,9298.85,
Children's Safeguarding,Safeguarding Advisory,JHAA,Third Party Payments,Health Funded Services,SHROPSHIRE COMMUNITY HEALTH NHS TRUST,14/08/2013,3814,
Co-Operative Council,Community Engagement & Voluntary Sector,AEAH,Supplies & Services,Grant Supporting Councils Services,TELFORD & WREKIN CITIZENS ADVICE BUREAU,01/08/2013,287545,
Co-Operative Council,Community Engagement & Voluntary Sector,LEAC,Supplies & Services,Performing Rights Fees,PRS FOR MUSIC,20/08/2013,254.35,
Co-Operative Council,Community Engagement & Voluntary Sector,LEAC,Supplies & Services,Performing Rights Fees,PRS FOR MUSIC,20/08/2013,196.68,
Co-Operative Council,Community Engagement & Voluntary Sector,LEAC,Supplies & Services,Performing Rights Fees,PRS FOR MUSIC,20/08/2013,429.35,
Co-Operative Council,Community Engagement & Voluntary Sector,LEAC,Supplies & Services,Printing - Other,XEROX (UK) LTD,02/08/2013,179,
Co-Operative Council,Community Engagement & Voluntary Sector,MCAB,Supplies & Services,Translation Services,VISS LTD,13/08/2013,125,
Co-Operative Council,Corporate Communications,MMAB,Supplies & Services,Advertising,METRO PHOTOGRAPHIC,16/08/2013,275,
Co-Operative Council,Corporate Communications,MMAD,Employees,Recruitment Advertising,UBM INFORMATION LTD,16/08/2013,600,
Co-Operative Council,Corporate Communications,MMAD,Employees,Recruitment Advertising,Association of Educational Psychologist,01/08/2013,630,
Co-Operative Council,Corporate Communications,MMAD,Employees,Recruitment Advertising,THE MIDLAND NEWS ASSOCIATION LTD,01/08/2013,234,
Co-Operative Council,Corporate Communications,MMAD,Employees,Recruitment Advertising,THE MIDLAND NEWS ASSOCIATION LTD,19/08/2013,1023.75,
Co-Operative Council,Corporate Communications,MMAD,Employees,Recruitment Advertising,UBM INFORMATION LTD,19/08/2013,600,
Co-Operative Council,Corporate Communications,MMAD,Employees,Recruitment Advertising,TOTALJOBS GROUP,09/08/2013,495,
Co-Operative Council,Corporate Communications,MMAD,Employees,Recruitment Advertising,Association of Educational Psychologist,09/08/2013,630,
Co-Operative Council,Corporate Communications,MMAD,Supplies & Services,Advertising,THE MIDLAND NEWS ASSOCIATION LTD,30/08/2013,113.4,
Co-Operative Council,Corporate Communications,MMAD,Supplies & Services,Advertising,THE MIDLAND NEWS ASSOCIATION LTD,30/08/2013,473.85,
Co-Operative Council,Corporate Communications,MMAD,Supplies & Services,Advertising,THE MIDLAND NEWS ASSOCIATION LTD,16/08/2013,390,
Co-Operative Council,Corporate Communications,MMAD,Supplies & Services,Advertising,CBS OUTDOOR LIMITED,16/08/2013,510,
Co-Operative Council,Corporate Communications,MMAD,Supplies & Services,Advertising,PARTNERSHIP PUBLISHING LTD,16/08/2013,175,
Co-Operative Council,Corporate Communications,MMAD,Supplies & Services,Advertising,THE MIDLAND NEWS ASSOCIATION LTD,16/08/2013,510.3,
Co-Operative Council,Corporate Communications,MMAD,Supplies & Services,Advertising,THE MIDLAND NEWS ASSOCIATION LTD,16/08/2013,388.8,
Co-Operative Council,Corporate Communications,MMAD,Supplies & Services,Advertising,THE MIDLAND NEWS ASSOCIATION LTD,16/08/2013,194.4,
Co-Operative Council,Corporate Communications,MMAD,Supplies & Services,Advertising,UTV Media (GB) Accounts,16/08/2013,175,
Co-Operative Council,Corporate Communications,MMAD,Supplies & Services,Advertising,THE MIDLAND NEWS ASSOCIATION LTD,01/08/2013,255.15,
Co-Operative Council,Corporate Communications,MMAD,Supplies & Services,Advertising,THE MIDLAND NEWS ASSOCIATION LTD,01/08/2013,328.05,
Co-Operative Council,Corporate Communications,MMAD,Supplies & Services,Advertising,THE MIDLAND NEWS ASSOCIATION LTD,01/08/2013,128.47,
Co-Operative Council,Corporate Communications,MMAD,Supplies & Services,Advertising,THE MIDLAND NEWS ASSOCIATION LTD,01/08/2013,113.4,
Co-Operative Council,Corporate Communications,MMAD,Supplies & Services,Concessionary Travel,THE MIDLAND NEWS ASSOCIATION LTD,01/08/2013,145.8,
Co-Operative Council,Corporate Communications,MMAD,Supplies & Services,Advertising,THE MIDLAND NEWS ASSOCIATION LTD,19/08/2013,388.8,
Co-Operative Council,Corporate Communications,MMAD,Supplies & Services,Advertising,THE MIDLAND NEWS ASSOCIATION LTD,19/08/2013,113.4,
Co-Operative Council,Corporate Communications,MMAD,Supplies & Services,Advertising,THE MIDLAND NEWS ASSOCIATION LTD,19/08/2013,225,
Co-Operative Council,Corporate Communications,MMAD,Supplies & Services,Advertising,THE MIDLAND NEWS ASSOCIATION LTD,19/08/2013,328.05,
Co-Operative Council,Corporate Communications,MMAD,Supplies & Services,Advertising,WHATS ON MAGAZINES LTD,09/08/2013,500,
Co-Operative Council,Corporate Communications,MMAD,Supplies & Services,Advertising,WACKSWORKS,09/08/2013,195,
Co-Operative Council,Corporate Communications,MMAD,Supplies & Services,Advertising,ORION MEDIA,01/08/2013,1470.06,
Co-Operative Council,Corporate Communications,MMAD,Supplies & Services,Advertising,Huge Media Advertising Ltd,30/08/2013,1170,
Co-Operative Council,Corporate Communications,MMAD,Supplies & Services,Printing - Other,THE MIDLAND NEWS ASSOCIATION LTD,30/08/2013,108,
Co-Operative Council,Corporate Communications,MMAD,Supplies & Services,Advertising,Positive Media Marketing,30/08/2013,415,
Co-Operative Council,Corporate Communications,MMAD,Supplies & Services,Advertising,PARTNERSHIP PUBLISHING LTD,30/08/2013,250,
Co-Operative Council,Corporate Communications,MMAD,Supplies & Services,Advertising,ClearChannel Outdoor,30/08/2013,320,
Co-Operative Council,Corporate Communications,MMAD,Supplies & Services,Advertising,PARTNERSHIP PUBLISHING LTD,30/08/2013,500,
Co-Operative Council,Corporate Communications,MMAD,Supplies & Services,Advertising,PARTNERSHIP PUBLISHING LTD,30/08/2013,250,
Co-Operative Council,Corporate Communications,MMAD,Supplies & Services,Advertising,WHATS ON MAGAZINES LTD,30/08/2013,260,
Co-Operative Council,Corporate Communications,MMAD,Supplies & Services,Advertising,THE MIDLAND NEWS ASSOCIATION LTD,30/08/2013,698.63,
Co-Operative Council,Corporate Communications,MMAD,Supplies & Services,Advertising,THE MIDLAND NEWS ASSOCIATION LTD,30/08/2013,521.09,
Co-Operative Council,Corporate Communications,MMAD,Supplies & Services,Advertising,THE MIDLAND NEWS ASSOCIATION LTD,30/08/2013,577.49,
Co-Operative Council,Corporate Communications,MMAD,Supplies & Services,Advertising,THE MIDLAND NEWS ASSOCIATION LTD,05/08/2013,228.6,
Co-Operative Council,Corporate Communications,MMAD,Supplies & Services,Advertising,THE MIDLAND NEWS ASSOCIATION LTD,05/08/2013,255.15,
Co-Operative Council,Corporate Communications,MMAD,Supplies & Services,Advertising,THE MIDLAND NEWS ASSOCIATION LTD,05/08/2013,145.8,
Co-Operative Council,Corporate Communications,MMAD,Supplies & Services,Advertising,THE MIDLAND NEWS ASSOCIATION LTD,05/08/2013,328.05,
Co-Operative Council,Corporate Communications,MMAD,Supplies & Services,Advertising,THE MIDLAND NEWS ASSOCIATION LTD,05/08/2013,128.47,
Co-Operative Council,Corporate Communications,MMAD,Supplies & Services,Advertising,THE MIDLAND NEWS ASSOCIATION LTD,05/08/2013,180,
Co-Operative Council,Corporate Core,NOAB,Premises-Related Expenditure,R&M - Electrical,JCE & SONS LTD,06/08/2013,168.15,
Co-Operative Council,Delivery & Planning,MDAB,Supplies & Services,Systems Procurement,IBM UNITED KINGDOM LTD,28/08/2013,1100.19,
Co-Operative Council,Delivery & Planning,MDAB,Supplies & Services,Postages,ROYAL MAIL GROUP LTD,20/08/2013,199.34,
Co-Operative Council,Policy & Strategy,MMAF,Supplies & Services,Comp Hardware (Purch / Hire),EUROPEAN ELECTRONIQUE LTD,15/08/2013,490,
Co-Operative Council,Policy & Strategy,MPAA,Supplies & Services,Other Expenses,APSE,19/08/2013,2171.55,
Co-Operative Council,Policy & Strategy,MPAA,Supplies & Services,Other Expenses,APSE,19/08/2013,1402.4,
Co-Operative Council,Policy & Strategy,MPAC,Supplies & Services,Printing - Print Room,ALLWAG PROMOTIONS LTD,12/08/2013,121,
Customer & People Services,Benefits,LRSF,Transfer Payments,Crisis Assistance,DAWLEY BARGAIN CENTRE,09/08/2013,160,
Customer & People Services,Benefits,LRSF,Transfer Payments,Crisis Assistance,DAWLEY BARGAIN CENTRE,09/08/2013,135,
Customer & People Services,Benefits,LRSF,Transfer Payments,Crisis Assistance,A W HOLDINGS,19/08/2013,149,
Customer & People Services,Benefits,LRSF,Transfer Payments,Crisis Assistance,A W HOLDINGS,19/08/2013,259,
Customer & People Services,Benefits,LRSF,Transfer Payments,Crisis Assistance,A W HOLDINGS,19/08/2013,189,
Customer & People Services,Benefits,LRSF,Transfer Payments,Crisis Assistance,CHAIRS & SPARES,19/08/2013,102.5,
Customer & People Services,Benefits,LRSF,Transfer Payments,Crisis Assistance,DAWLEY BARGAIN CENTRE,09/08/2013,180,
Customer & People Services,Benefits,LRSF,Transfer Payments,Crisis Assistance,PayPoint Network Limited,21/08/2013,170,
Customer & People Services,Benefits,LRSF,Transfer Payments,Crisis Assistance,A W HOLDINGS,12/08/2013,149,
Customer & People Services,Benefits,LRSF,Transfer Payments,Crisis Assistance,A W HOLDINGS,12/08/2013,149,
Customer & People Services,Benefits,LRSF,Transfer Payments,Crisis Assistance,A W HOLDINGS,12/08/2013,120,
Customer & People Services,Benefits,LRSF,Transfer Payments,Crisis Assistance,A W HOLDINGS,12/08/2013,149,
Customer & People Services,Benefits,LRSF,Transfer Payments,Crisis Assistance,A W HOLDINGS,12/08/2013,149,
Customer & People Services,Benefits,LRSF,Transfer Payments,Crisis Assistance,A W HOLDINGS,12/08/2013,259,
Customer & People Services,Benefits,LRSF,Transfer Payments,Crisis Assistance,A W HOLDINGS,12/08/2013,120,
Customer & People Services,Benefits,LRSF,Transfer Payments,Crisis Assistance,A W HOLDINGS,12/08/2013,149,
Customer & People Services,Benefits,LRSF,Transfer Payments,Crisis Assistance,A W HOLDINGS,12/08/2013,149,
Customer & People Services,Benefits,LRSF,Transfer Payments,Crisis Assistance,A W HOLDINGS,13/08/2013,269,
Customer & People Services,Benefits,LRSF,Transfer Payments,Crisis Assistance,PayPoint Network Limited,13/08/2013,232,
Customer & People Services,Benefits,LRTC,Supplies & Services,Software,NORTHGATE INFORMATION SOLUTIONS UK LTD,12/08/2013,1545.6,
Customer & People Services,Benefits,LRTD,Supplies & Services,Subscriptions,LAIOG MIDLANDS,14/08/2013,200,
Customer & People Services,Catering & Home Care,CAHC,Employees,Training Expenses,CIEH,12/08/2013,442.7,
Customer & People Services,Catering & Home Care,CAMA,Supplies & Services,Subscriptions,APSE,20/08/2013,3450,
Customer & People Services,Catering & Home Care,CAMA,Supplies & Services,Equipment - Purchase,ERIC NEVILLE CATERING SUPPLIES LTD,13/08/2013,-142.49,
Customer & People Services,Catering & Home Care,CAMA,Supplies & Services,Printing - Other,TELFORD REPROGRAPHICS LTD,14/08/2013,125.25,
Customer & People Services,Catering & Home Care,CAMA,Supplies & Services,Printing - Other,LEXON,02/08/2013,293.15,
Customer & People Services,Catering & Home Care,CASM,Supplies & Services,EEC Whole Milk,JOHAL DAIRIES,02/08/2013,743.11,
Customer & People Services,Catering & Home Care,CASM,Supplies & Services,EEC Whole Milk,JOHAL DAIRIES,02/08/2013,1961.54,
Customer & People Services,Catering & Home Care,CASM,Supplies & Services,EEC Whole Milk,JOHAL DAIRIES,02/08/2013,1831.68,
Customer & People Services,Catering & Home Care,CASP,Premises-Related Expenditure,Clean Mats & Toilet Requisites,ERIC NEVILLE CATERING SUPPLIES LTD,13/08/2013,153,
Customer & People Services,Catering & Home Care,CASP,Supplies & Services,Equipment - Repair,ERIC NEVILLE CATERING SUPPLIES LTD,20/08/2013,125,
Customer & People Services,Catering & Home Care,CASP,Supplies & Services,Crockery/Hardware/Light Equip,ERIC NEVILLE CATERING SUPPLIES LTD,20/08/2013,106.32,
Customer & People Services,Catering & Home Care,CASP,Supplies & Services,Equipment - Repair,ERIC NEVILLE CATERING SUPPLIES LTD,13/08/2013,125,
Customer & People Services,Catering & Home Care,CASP,Supplies & Services,Equipment - Purchase,ERIC NEVILLE CATERING SUPPLIES LTD,13/08/2013,214.5,
Customer & People Services,Catering & Home Care,CASP,Supplies & Services,Equipment - Purchase,ERIC NEVILLE CATERING SUPPLIES LTD,13/08/2013,316.78,
Customer & People Services,Catering & Home Care,CASP,Supplies & Services,Provisions,G N BADLEY & SONS,08/08/2013,173.61,
Customer & People Services,Catering & Home Care,CASP,Supplies & Services,Provisions,BIKOLD,09/08/2013,307.11,
Customer & People Services,Catering & Home Care,CASP,Supplies & Services,Provisions,BIKOLD,09/08/2013,463.1,
Customer & People Services,Catering & Home Care,CASP,Supplies & Services,Provisions,BIKOLD,09/08/2013,106.74,
Customer & People Services,Catering & Home Care,CASP,Supplies & Services,Provisions,BIKOLD,09/08/2013,179.84,
Customer & People Services,Catering & Home Care,CASP,Supplies & Services,Provisions,BIKOLD,09/08/2013,151.04,
Customer & People Services,Catering & Home Care,CASP,Supplies & Services,Provisions,BIKOLD,09/08/2013,158.29,
Customer & People Services,Catering & Home Care,CASP,Supplies & Services,Provisions,BIKOLD,09/08/2013,150.55,
Customer & People Services,Catering & Home Care,CASP,Supplies & Services,Provisions,BIKOLD,09/08/2013,115.8,
Customer & People Services,Catering & Home Care,CASP,Supplies & Services,Provisions,BIKOLD,09/08/2013,101.79,
Customer & People Services,Catering & Home Care,CASP,Supplies & Services,Provisions,BIKOLD,09/08/2013,118.05,
Customer & People Services,Catering & Home Care,CASP,Supplies & Services,Provisions,BIKOLD,09/08/2013,121.71,
Customer & People Services,Catering & Home Care,CASP,Supplies & Services,Provisions,BIKOLD,20/08/2013,148.81,
Customer & People Services,Catering & Home Care,CASP,Supplies & Services,Provisions,BIKOLD,13/08/2013,149.54,
Customer & People Services,Catering & Home Care,CASP,Supplies & Services,Provisions,BIKOLD,13/08/2013,113.94,
Customer & People Services,Catering & Home Care,CASP,Supplies & Services,Provisions,BIKOLD,13/08/2013,116.68,
Customer & People Services,Catering & Home Care,CASP,Supplies & Services,Provisions,BIKOLD,13/08/2013,163.52,
Customer & People Services,Catering & Home Care,CASP,Supplies & Services,Provisions,BIKOLD,13/08/2013,114.74,
Customer & People Services,Catering & Home Care,CASP,Supplies & Services,Provisions,BIKOLD,13/08/2013,138.87,
Customer & People Services,Catering & Home Care,CASP,Supplies & Services,Provisions,BIKOLD,13/08/2013,150.51,
Customer & People Services,Catering & Home Care,CASP,Supplies & Services,Provisions,BIKOLD,13/08/2013,111.88,
Customer & People Services,Catering & Home Care,CASP,Supplies & Services,Provisions,BIKOLD,13/08/2013,202.2,
Customer & People Services,Catering & Home Care,CASP,Supplies & Services,Provisions,BIKOLD,13/08/2013,173.16,
Customer & People Services,Catering & Home Care,CASP,Supplies & Services,Provisions,BIKOLD,13/08/2013,191.05,
Customer & People Services,Catering & Home Care,CASP,Supplies & Services,Provisions,BIKOLD,13/08/2013,108,
Customer & People Services,Catering & Home Care,CASP,Supplies & Services,Provisions,BIKOLD,13/08/2013,111.75,
Customer & People Services,Catering & Home Care,CASP,Supplies & Services,Provisions,BIKOLD,13/08/2013,121.3,
Customer & People Services,Catering & Home Care,CASP,Supplies & Services,Provisions,BIKOLD,13/08/2013,166,
Customer & People Services,Catering & Home Care,CASP,Supplies & Services,Provisions,BIKOLD,13/08/2013,114,
Customer & People Services,Catering & Home Care,CASP,Supplies & Services,Provisions,BIKOLD,13/08/2013,157.75,
Customer & People Services,Catering & Home Care,CASP,Supplies & Services,Provisions,BIKOLD,13/08/2013,104.7,
Customer & People Services,Catering & Home Care,CASP,Supplies & Services,Provisions,BIKOLD,29/08/2013,124.52,
Customer & People Services,Catering & Home Care,CASP,Supplies & Services,Provisions,BIKOLD,29/08/2013,105.64,
Customer & People Services,Catering & Home Care,CASP,Supplies & Services,Provisions,BIKOLD,29/08/2013,154.82,
Customer & People Services,Catering & Home Care,CASP,Supplies & Services,Provisions,BIKOLD,29/08/2013,117.54,
Customer & People Services,Catering & Home Care,CASP,Supplies & Services,Provisions,BIKOLD,29/08/2013,122.66,
Customer & People Services,Catering & Home Care,CASP,Supplies & Services,Provisions,BIKOLD,29/08/2013,150.02,
Customer & People Services,Catering & Home Care,CASP,Supplies & Services,Provisions,BIKOLD,29/08/2013,407.06,
Customer & People Services,Catering & Home Care,CASP,Supplies & Services,Provisions,BIKOLD,29/08/2013,169.78,
Customer & People Services,Catering & Home Care,CASP,Supplies & Services,Provisions,BIKOLD,02/08/2013,101.25,
Customer & People Services,Catering & Home Care,CASS,Supplies & Services,Equipment - Purchase,BIKOLD,13/08/2013,110.81,
Customer & People Services,Catering & Home Care,CASS,Supplies & Services,Provisions,BIKOLD,13/08/2013,123.47,
Customer & People Services,Catering & Home Care,CASS,Supplies & Services,Provisions,BIKOLD,02/08/2013,136.71,
Customer & People Services,Catering & Home Care,COMM,Supplies & Services,Provisions,BIKOLD,08/08/2013,104.57,
Customer & People Services,Catering & Home Care,COMM,Supplies & Services,Provisions,G N BADLEY & SONS,08/08/2013,265.68,
Customer & People Services,Catering & Home Care,COMM,Supplies & Services,Provisions,G N BADLEY & SONS,20/08/2013,209.08,
Customer & People Services,Catering & Home Care,COMM,Supplies & Services,Provisions,BIKOLD,09/08/2013,156.98,
Customer & People Services,Catering & Home Care,COMM,Supplies & Services,Provisions,BIKOLD,09/08/2013,273.99,
Customer & People Services,Catering & Home Care,COMM,Supplies & Services,Provisions,BIKOLD,09/08/2013,200.08,
Customer & People Services,Catering & Home Care,COMM,Supplies & Services,Provisions,BIKOLD,09/08/2013,168.05,
Customer & People Services,Catering & Home Care,COMM,Supplies & Services,Provisions,BIKOLD,09/08/2013,110.52,
Customer & People Services,Catering & Home Care,COMM,Supplies & Services,Provisions,BIKOLD,09/08/2013,105.36,
Customer & People Services,Catering & Home Care,COMM,Supplies & Services,Provisions,BIKOLD,09/08/2013,244.87,
Customer & People Services,Catering & Home Care,COMM,Supplies & Services,Provisions,BIKOLD,09/08/2013,429.92,
Customer & People Services,Catering & Home Care,COMM,Supplies & Services,Provisions,BIKOLD,09/08/2013,187.3,
Customer & People Services,Catering & Home Care,COMM,Supplies & Services,Provisions,BIKOLD,09/08/2013,114.54,
Customer & People Services,Catering & Home Care,COMM,Supplies & Services,Provisions,BIKOLD,09/08/2013,238.65,
Customer & People Services,Catering & Home Care,COMM,Supplies & Services,Equipment - Purchase,ERIC NEVILLE CATERING SUPPLIES LTD,20/08/2013,216,
Customer & People Services,Catering & Home Care,COMM,Supplies & Services,Equipment - Hire,SIEMENS FINANCIAL SERVICES LTD,20/08/2013,553.73,
Customer & People Services,Catering & Home Care,COMM,Supplies & Services,Equipment - Hire,SIEMENS FINANCIAL SERVICES LTD,20/08/2013,553.73,
Customer & People Services,Catering & Home Care,COMM,Supplies & Services,Provisions,Aroma Tea & Coffee Merchants,20/08/2013,135.05,
Customer & People Services,Catering & Home Care,COMM,Supplies & Services,Equipment - Repair,ERIC NEVILLE CATERING SUPPLIES LTD,13/08/2013,216,
Customer & People Services,Catering & Home Care,COMM,Supplies & Services,Provisions,G N BADLEY & SONS,14/08/2013,117.58,
Customer & People Services,Catering & Home Care,COMM,Supplies & Services,Provisions,BIKOLD,29/08/2013,108.69,
Customer & People Services,Catering & Home Care,COMM,Supplies & Services,Provisions,BIKOLD,29/08/2013,140.55,
Customer & People Services,Catering & Home Care,COMM,Supplies & Services,Provisions,BIKOLD,29/08/2013,322.47,
Customer & People Services,Catering & Home Care,COMM,Supplies & Services,Provisions,BIKOLD,29/08/2013,127.74,
Customer & People Services,Catering & Home Care,COMM,Supplies & Services,Provisions,BIKOLD,29/08/2013,138.27,
Customer & People Services,Catering & Home Care,COMM,Supplies & Services,Provisions,BIKOLD,29/08/2013,159.11,
Customer & People Services,Catering & Home Care,COMM,Supplies & Services,Provisions,BIKOLD,29/08/2013,301.11,
Customer & People Services,Catering & Home Care,COMM,Supplies & Services,Provisions,BIKOLD,29/08/2013,280.8,
Customer & People Services,Catering & Home Care,COMM,Supplies & Services,Provisions,BIKOLD,29/08/2013,224.5,
Customer & People Services,Catering & Home Care,COMM,Supplies & Services,Provisions,BIKOLD,29/08/2013,236.26,
Customer & People Services,Catering & Home Care,COMM,Supplies & Services,Provisions,BIKOLD,29/08/2013,134.48,
Customer & People Services,Catering & Home Care,COMM,Supplies & Services,Provisions,BIKOLD,29/08/2013,116.87,
Customer & People Services,Catering & Home Care,COMM,Supplies & Services,Provisions,BIKOLD,29/08/2013,130.29,
Customer & People Services,Customer & Registrars Services,LMAA,Supplies & Services,Security Services,BUSINESS WATCH GUARDING LIMITED,29/08/2013,3730.86,
Customer & People Services,Customer & Registrars Services,LMAA,Supplies & Services,Security Services,BUSINESS WATCH GUARDING LIMITED,27/08/2013,5092.92,
Customer & People Services,Customer & Registrars Services,LMAA,Supplies & Services,Translation Services,VISS LTD,27/08/2013,155,
Customer & People Services,Customer & Registrars Services,LMAA,Supplies & Services,Comp Hardware (Purch / Hire),SPECIALIST COMPUTERS CENTRES PLC,05/08/2013,148.89,
Customer & People Services,Customer & Registrars Services,LMAD,Supplies & Services,Conference Expenses,CAPITA BUSINESS SERVICES LTD,07/08/2013,399,
Customer & People Services,Customer & Registrars Services,LSAB,Premises-Related Expenditure,Grounds Maintenance - Cemeteries,P & W MAINTENANCE CONTRACTING LTD,14/08/2013,1794.9,
Customer & People Services,Customer & Registrars Services,LSAB,Premises-Related Expenditure,Grounds Maintenance - Cemeteries,P & W MAINTENANCE CONTRACTING LTD,14/08/2013,3376.14,
Customer & People Services,Customer & Registrars Services,LSAB,Supplies & Services,Equipment - Purchase,WEST MERCIA SUPPLIES Catalogue Supplies (None Utility),01/08/2013,379.8,
Customer & People Services,Customer & Registrars Services,LSAB,Supplies & Services,Subscriptions,ICCM,13/08/2013,310,
Customer & People Services,Customer & Registrars Services,LSAB,Supplies & Services,Subscriptions,NCC SERVICES LIMITED,13/08/2013,225,
Customer & People Services,ICT,CBAB,Employees,Agency Supply Costs,EVOLUTION RECRUITMENT SOLUTIONS LTD,16/08/2013,671.5,
Customer & People Services,ICT,CBAB,Employees,Agency Supply Costs,EVOLUTION RECRUITMENT SOLUTIONS LTD,30/08/2013,595,
Customer & People Services,ICT,CBAB,Employees,Agency Supply Costs,EVOLUTION RECRUITMENT SOLUTIONS LTD,30/08/2013,407,
Customer & People Services,ICT,CBAB,Employees,Agency Supply Costs,EVOLUTION RECRUITMENT SOLUTIONS LTD,23/08/2013,442,
Customer & People Services,ICT,CBAB,Employees,Agency Supply Costs,EVOLUTION RECRUITMENT SOLUTIONS LTD,09/08/2013,459,
Customer & People Services,ICT,CBAB,Employees,Agency Supply Costs,EVOLUTION RECRUITMENT SOLUTIONS LTD,09/08/2013,415.25,
Customer & People Services,ICT,CBAB,Employees,Agency Supply Costs,EVOLUTION RECRUITMENT SOLUTIONS LTD,09/08/2013,561,
Customer & People Services,ICT,CBAB,Employees,Agency Supply Costs,EVOLUTION RECRUITMENT SOLUTIONS LTD,13/08/2013,407,
Customer & People Services,ICT,CBAB,Employees,Agency Supply Costs,EVOLUTION RECRUITMENT SOLUTIONS LTD,13/08/2013,654.5,
Customer & People Services,ICT,CBAB,Employees,Agency Supply Costs,EVOLUTION RECRUITMENT SOLUTIONS LTD,13/08/2013,578,
Customer & People Services,ICT,CBAB,Employees,Agency Supply Costs,EVOLUTION RECRUITMENT SOLUTIONS LTD,23/08/2013,667.25,
Customer & People Services,ICT,CBAB,Employees,Agency Supply Costs,EVOLUTION RECRUITMENT SOLUTIONS LTD,23/08/2013,300.67,
Customer & People Services,ICT,CBAF,Supplies & Services,Comp Hardware (Purch / Hire),ORANGE PERSONAL COMM SERVICES LTD,09/08/2013,-166.6,
Customer & People Services,ICT,CBAF,Supplies & Services,Comp Hardware (Purch / Hire),ORANGE PERSONAL COMM SERVICES LTD,09/08/2013,300.74,
Customer & People Services,ICT,CBAF,Supplies & Services,Equipment - Purchase,SPECIALIST COMPUTERS CENTRES PLC,21/08/2013,3541.5,
Customer & People Services,ICT,CBAF,Supplies & Services,Equipment - Purchase,EUROPEAN ELECTRONIQUE LTD,23/08/2013,102,
Customer & People Services,ICT,CBAF,Supplies & Services,Equipment - Purchase,SPECIALIST COMPUTERS CENTRES PLC,15/08/2013,170.37,
Customer & People Services,ICT,CBAF,Supplies & Services,Equipment - Purchase,EUROPEAN ELECTRONIQUE LTD,07/08/2013,1613,
Customer & People Services,ICT,CBAG,Supplies & Services,Mobile Phones,ORANGE PERSONAL COMM SERVICES LTD,09/08/2013,1836.23,
Customer & People Services,ICT,CBAG,Supplies & Services,Mobile Phones,ORANGE PERSONAL COMM SERVICES LTD,09/08/2013,18622.78,
Customer & People Services,ICT,CBAG,Supplies & Services,Mobile Phones,ORANGE PERSONAL COMM SERVICES LTD,09/08/2013,1294.85,
Customer & People Services,ICT,CBAG,Supplies & Services,Mobile Phones,ORANGE PERSONAL COMM SERVICES LTD,09/08/2013,533.5,
Customer & People Services,ICT,CBAG,Supplies & Services,Mobile Phones,ORANGE PERSONAL COMM SERVICES LTD,09/08/2013,160.75,
Customer & People Services,ICT,CBAG,Supplies & Services,Mobile Phones,ORANGE PERSONAL COMM SERVICES LTD,09/08/2013,5844.24,
Customer & People Services,ICT,CBAG,Supplies & Services,Telephones,VIRGIN MEDIA BUSINESS,09/08/2013,10296.21,
Customer & People Services,ICT,CBAG,Supplies & Services,Telephones,VIRGIN MEDIA BUSINESS,23/08/2013,125,
Customer & People Services,ICT,CBAG,Supplies & Services,Comp Hardware (Purch / Hire),SPECIALIST COMPUTERS CENTRES PLC,05/08/2013,143.34,
Customer & People Services,ICT,CBAJ,Supplies & Services,Equipment - Repair,IBM UNITED KINGDOM LTD,08/08/2013,384.99,
Customer & People Services,ICT,CBAJ,Supplies & Services,Telephones,BRITISH TELECOMMUNICATIONS PLC,30/08/2013,3744.02,
Customer & People Services,ICT,CBAJ,Supplies & Services,Comp Hardware (Purch / Hire),SPECIALIST COMPUTERS CENTRES PLC,09/08/2013,404.4,
Customer & People Services,ICT,CBAJ,Supplies & Services,Comp Hardware (Purch / Hire),SPECIALIST COMPUTERS CENTRES PLC,09/08/2013,4259.6,
Customer & People Services,ICT,CBAJ,Supplies & Services,Telephones,BRITISH TELECOMMUNICATIONS PLC,09/08/2013,3711.82,
Customer & People Services,ICT,CBAJ,Supplies & Services,Comp Software (Purch / Hire),PHOENIX SOFTWARE LTD,09/08/2013,5000,
Customer & People Services,ICT,CBAJ,Supplies & Services,Comp Hardware (Purch / Hire),SPECIALIST COMPUTERS CENTRES PLC,21/08/2013,122.8,
Customer & People Services,ICT,CBAJ,Supplies & Services,Comp Hardware (Purch / Hire),SPECIALIST COMPUTERS CENTRES PLC,22/08/2013,8732.9,
Customer & People Services,ICT,CBAJ,Supplies & Services,Telephones,VIRGIN MEDIA BUSINESS,22/08/2013,125,
Customer & People Services,ICT,CBAJ,Supplies & Services,Comp Hardware (Purch / Hire),SPECIALIST COMPUTERS CENTRES PLC,30/08/2013,592,
Customer & People Services,ICT,CBAJ,Supplies & Services,Comp Software (Purch / Hire),AQ LIMITED,13/08/2013,105.15,
Customer & People Services,ICT,CBAJ,Supplies & Services,Comp Hardware (Purch / Hire),SPECIALIST COMPUTERS CENTRES PLC,29/08/2013,31029.6,
Customer & People Services,ICT,CBAJ,Supplies & Services,Comp Hardware (Purch / Hire),SPECIALIST COMPUTERS CENTRES PLC,29/08/2013,360,
Customer & People Services,ICT,CBAJ,Supplies & Services,Comp Hardware (Purch / Hire),SPECIALIST COMPUTERS CENTRES PLC,29/08/2013,427.8,
Customer & People Services,ICT,CBAJ,Supplies & Services,Comp Hardware (Purch / Hire),SPECIALIST COMPUTERS CENTRES PLC,15/08/2013,524.1,
Customer & People Services,ICT,CBAJ,Supplies & Services,Computer Hardware (Maint),ESTEEM SYSTEMS PLC,15/08/2013,2865.53,
Customer & People Services,ICT,CBAJ,Transport-Related Expenditure,Transport,EXPOTEL HOTEL RESERVATIONS LIMITED,01/08/2013,105.6,
Customer & People Services,ICT,CBAL,Supplies & Services,Stationery,PREMIER PAPER GROUP LTD,08/08/2013,141.33,
Customer & People Services,ICT,CBAL,Supplies & Services,Stationery,PREMIER PAPER GROUP LTD,01/08/2013,469,
Customer & People Services,ICT,CBAL,Supplies & Services,Stationery,WEST MERCIA SUPPLIES Catalogue Supplies (None Utility),20/08/2013,120,
Customer & People Services,ICT,CBAL,Supplies & Services,Stationery,WEST MERCIA SUPPLIES Catalogue Supplies (None Utility),09/08/2013,288,
Customer & People Services,ICT,CBAL,Supplies & Services,Stationery,PREMIER PAPER GROUP LTD,09/08/2013,586.25,
Customer & People Services,ICT,CBAL,Supplies & Services,Equipment - Hire,CIT VENDOR FINANCE (UK) LIMITED,22/08/2013,261.06,
Customer & People Services,ICT,CBAL,Supplies & Services,Stationery,WEST MERCIA SUPPLIES Catalogue Supplies (None Utility),13/08/2013,288,
Customer & People Services,ICT,CBAL,Supplies & Services,Stationery,WEST MERCIA SUPPLIES Catalogue Supplies (None Utility),13/08/2013,288,
Customer & People Services,ICT,CBAL,Supplies & Services,Stationery,WEST MERCIA SUPPLIES Catalogue Supplies (None Utility),13/08/2013,480,
Customer & People Services,ICT,CBAL,Supplies & Services,Stationery,WEST MERCIA SUPPLIES Catalogue Supplies (None Utility),13/08/2013,288,
Customer & People Services,ICT,CBAL,Supplies & Services,Stationery,WEST MERCIA SUPPLIES Catalogue Supplies (None Utility),13/08/2013,480,
Customer & People Services,ICT,CBAL,Supplies & Services,Stationery,PREMIER PAPER GROUP LTD,13/08/2013,281.4,
Customer & People Services,ICT,CBAL,Supplies & Services,Equipment - Hire,CIT VENDOR FINANCE (UK) LIMITED,13/08/2013,708.31,
Customer & People Services,ICT,CBAL,Supplies & Services,Equipment - Hire,CIT VENDOR FINANCE (UK) LIMITED,13/08/2013,4865.36,
Customer & People Services,ICT,CBAL,Supplies & Services,Equipment - Hire,CIT VENDOR FINANCE (UK) LIMITED,13/08/2013,278.68,
Customer & People Services,ICT,CBAL,Supplies & Services,Stationery,PREMIER PAPER GROUP LTD,13/08/2013,117.25,
Customer & People Services,ICT,CBAL,Supplies & Services,Stationery,PREMIER PAPER GROUP LTD,30/08/2013,293.13,
Customer & People Services,ICT,CBAL,Supplies & Services,Stationery,WEST MERCIA SUPPLIES Catalogue Supplies (None Utility),14/08/2013,720,
Customer & People Services,ICT,CBAL,Supplies & Services,Stationery,PREMIER PAPER GROUP LTD,27/08/2013,329.55,
Customer & People Services,ICT,CBAL,Supplies & Services,Stationery,PREMIER PAPER GROUP LTD,30/08/2013,586.25,
Customer & People Services,ICT,WCAG,Capital Expenditure,Payments to Contractor,SPECIALIST COMPUTERS CENTRES PLC,09/08/2013,5312,
Customer & People Services,ICT,WCAG,Capital Expenditure,Payments to Contractor,SPECIALIST COMPUTERS CENTRES PLC,09/08/2013,770,
Customer & People Services,ICT,WCAG,Capital Expenditure,Computer Software,BOTTOMLINE TECHNOLOGIES,22/08/2013,2000,
Customer & People Services,ICT,WCAG,Capital Expenditure,Payments to Contractor,SPECIALIST COMPUTERS CENTRES PLC,15/08/2013,13810,
Customer & People Services,ICT,WCAG,Capital Expenditure,Payments to Contractor,CIVICA SERVICES LTD,29/08/2013,152.7,
Customer & People Services,ICT,WCAG,Capital Expenditure,Payments to Contractor,SPECIALIST COMPUTERS CENTRES PLC,09/08/2013,2148,
Customer & People Services,ICT,WCAG,Capital Expenditure,Payments to Contractor,SPECIALIST COMPUTERS CENTRES PLC,09/08/2013,1120,
Customer & People Services,Library Services,LBMA,Premises-Related Expenditure,Trade Refuse,FCC RECYCLING (UK) LIMITED,01/08/2013,107.5,
Customer & People Services,Library Services,LBWE,Supplies & Services,Equipment - Repair,openingthebook,23/08/2013,115,
Customer & People Services,Library Services,LLAA,Supplies & Services,Equipment - Purchase,WEST MERCIA SUPPLIES Catalogue Supplies (None Utility),22/08/2013,130.81,
Customer & People Services,Library Services,LLAA,Supplies & Services,Libraries Book Fund,BERTRAMS LIBRARY SERVICES,08/08/2013,495.68,
Customer & People Services,Library Services,LLAA,Supplies & Services,Libraries Book Fund,BERTRAMS LIBRARY SERVICES,08/08/2013,421.02,
Customer & People Services,Library Services,LLAA,Supplies & Services,Libraries Book Fund,BERTRAMS LIBRARY SERVICES,08/08/2013,371.5,
Customer & People Services,Library Services,LLAA,Supplies & Services,Libraries Book Fund,LIBRARY MAGNA BOOKS LIMITED,08/08/2013,249.76,
Customer & People Services,Library Services,LLAA,Supplies & Services,Libraries Book Fund,LIBRARY MAGNA BOOKS LIMITED,08/08/2013,266.23,
Customer & People Services,Library Services,LLAA,Supplies & Services,Libraries Book Fund,BERTRAMS LIBRARY SERVICES,08/08/2013,376.66,
Customer & People Services,Library Services,LLAA,Supplies & Services,Libraries Book Fund,BERTRAMS LIBRARY SERVICES,08/08/2013,467.88,
Customer & People Services,Library Services,LLAA,Supplies & Services,Libraries Book Fund,BERTRAMS LIBRARY SERVICES,20/08/2013,146.72,
Customer & People Services,Library Services,LLAA,Supplies & Services,Libraries Book Fund,BERTRAMS LIBRARY SERVICES,20/08/2013,624.18,
Customer & People Services,Library Services,LLAA,Supplies & Services,Libraries Book Fund,BERTRAMS LIBRARY SERVICES,20/08/2013,205.42,
Customer & People Services,Library Services,LLAA,Supplies & Services,Libraries Book Fund,LIBRARY MAGNA BOOKS LIMITED,20/08/2013,150.47,
Customer & People Services,Library Services,LLAA,Supplies & Services,Marketing & Publicity,THE READING AGENCY LTD,20/08/2013,1434.1,
Customer & People Services,Library Services,LLAA,Supplies & Services,Libraries Book Fund,BERTRAMS LIBRARY SERVICES,23/08/2013,249.63,
Customer & People Services,Library Services,LLAA,Supplies & Services,Libraries Book Fund,ULVERSCROFT LARGE PRINT BOOKS LIMITED,27/08/2013,180.4,
Customer & People Services,Library Services,LLAA,Supplies & Services,Libraries Book Fund,AUDIOGO LIMITED,27/08/2013,119.98,
Customer & People Services,Library Services,LLAA,Supplies & Services,Libraries Book Fund,BERTRAMS LIBRARY SERVICES,27/08/2013,242.38,
Customer & People Services,Library Services,LLAA,Supplies & Services,Libraries Book Fund,AUDIOGO LIMITED,27/08/2013,101.5,
Customer & People Services,Library Services,LLAA,Supplies & Services,Libraries Book Fund,ULVERSCROFT LARGE PRINT BOOKS LIMITED,27/08/2013,244,
Customer & People Services,Library Services,LLAA,Supplies & Services,Libraries Book Fund,ULVERSCROFT LARGE PRINT BOOKS LIMITED,27/08/2013,127.04,
Customer & People Services,Library Services,LLAA,Supplies & Services,Libraries Book Fund,ULVERSCROFT LARGE PRINT BOOKS LIMITED,27/08/2013,111.68,
Customer & People Services,Library Services,LLAA,Supplies & Services,Libraries Book Fund,ULVERSCROFT LARGE PRINT BOOKS LIMITED,27/08/2013,107.04,
Customer & People Services,Library Services,LLAA,Supplies & Services,Libraries Book Fund,BERTRAMS LIBRARY SERVICES,02/08/2013,365.67,
Customer & People Services,Library Services,LLAA,Supplies & Services,Libraries Book Fund,BERTRAMS LIBRARY SERVICES,02/08/2013,183.49,
Customer & People Services,Library Services,LLAA,Supplies & Services,Libraries Book Fund,BERTRAMS LIBRARY SERVICES,02/08/2013,160.82,
Customer & People Services,Library Services,LLAA,Supplies & Services,Libraries Book Fund,AUDIOGO LIMITED,07/08/2013,212.88,
Customer & People Services,Library Services,LLAC,Supplies & Services,Computer Software (Maint),AXIELL LTD,01/08/2013,6192.93,
Customer & People Services,Library Services,LLAC,Supplies & Services,Computer Hardware (Maint),AXIELL LTD,01/08/2013,1263.96,
Customer & People Services,Library Services,LLAF,Supplies & Services,Other Expenses,Authors aloud,23/08/2013,825,
Customer & People Services,People Services,NHAC,Premises-Related Expenditure,Trade Refuse,W N LTD,09/08/2013,102,
Customer & People Services,People Services,NHAC,Supplies & Services,Subscriptions,CHARTERED INST OF PERSONNEL DEVELOPMENT,01/08/2013,138,
Customer & People Services,People Services,NHAC,Supplies & Services,Subscriptions,CHARTERED INST OF PERSONNEL DEVELOPMENT,01/08/2013,138,
Customer & People Services,People Services,NHAC,Supplies & Services,Subscriptions,CHARTERED INST OF PERSONNEL DEVELOPMENT,05/08/2013,138,
Customer & People Services,People Services,NHAC,Supplies & Services,Subscriptions,CHARTERED INST OF PERSONNEL DEVELOPMENT,05/08/2013,138,
Customer & People Services,People Services,NHAC,Supplies & Services,Subscriptions,CHARTERED INST OF PERSONNEL DEVELOPMENT,05/08/2013,138,
Customer & People Services,People Services,NOAH,Supplies & Services,Computer Software (Maint),Oaresome LTD,29/08/2013,5750,
Customer & People Services,People Services,NOAH,Supplies & Services,Recruitment and Training,WEST MIDLANDS COUNCILS,02/08/2013,5950,
Customer & People Services,People Services,NOAH,Supplies & Services,Recruitment and Training,WEST MIDLANDS COUNCILS,02/08/2013,2200,
Customer & People Services,People Services,NOAT,Employees,Training Exp's (Facilitators),SHROPSHIRE PARTNERS IN CARE LTD,16/08/2013,500,
Customer & People Services,People Services,NOAT,Employees,Training Exp's (Facilitators),West Midlands Employers,16/08/2013,450,
Customer & People Services,People Services,NOAT,Employees,Course Fees,ILX Group Plc,19/08/2013,125,
Customer & People Services,People Services,NOAT,Employees,Training Exp's (Facilitators),MENTAL HEALTH TRAINING GROUP,14/08/2013,500,
Customer & People Services,People Services,NOAT,Employees,Training Exp's (Facilitators),TELFORD OCCUPATIONAL HEALTH SERVICE LTD,05/08/2013,105,
Customer & People Services,Revenues,CBAK,Supplies & Services,Laminated Pouches,VIVID LAMINATING TECHNOLOGIES LTD,08/08/2013,178.11,
Customer & People Services,Revenues,CBAK,Supplies & Services,Printer rental,CIT VENDOR FINANCE (UK) LIMITED,12/08/2013,620.33,
Customer & People Services,Revenues,CBAK,Supplies & Services,Printer rental,XEROX FINANCE,22/08/2013,5261.84,
Customer & People Services,Revenues,CBAK,Supplies & Services,Stationery,LYRECO UK LIMITED,23/08/2013,137.82,
Customer & People Services,Revenues,CBAK,Supplies & Services,Printing - Other,TELFORD REPROGRAPHICS LTD,14/08/2013,200,
Customer & People Services,Revenues,CBAK,Supplies & Services,Printer rental,XEROX (UK) LTD,15/08/2013,251.39,
Customer & People Services,Revenues,CBAK,Supplies & Services,Printer rental,XEROX FINANCE,29/08/2013,14096.47,
Customer & People Services,Revenues,CBAK,Supplies & Services,Printing - Other,TY3 MEDIA LTD,15/08/2013,660,
Customer & People Services,Revenues,CBAK,Supplies & Services,envelopes,PREMIER PAPER GROUP LTD,06/08/2013,281.4,
Customer & People Services,Revenues,CBAK,Supplies & Services,Printer rental,XEROX (UK) LTD,02/08/2013,103.8,
Customer & People Services,Revenues,CBAK,Supplies & Services,Printer rental,XEROX (UK) LTD,05/08/2013,160.54,
Customer & People Services,Revenues,COAB,Supplies & Services,Courier,FREELANCE BUSINESS ASSOCIATES,12/08/2013,345,
Customer & People Services,Revenues,COAB,Supplies & Services,Courier,FREELANCE BUSINESS ASSOCIATES,12/08/2013,345,
Customer & People Services,Revenues,COAC,Supplies & Services,Postage credit,FRANCOTYP-POSTALIA LIMITED,19/08/2013,8028.8,
Customer & People Services,Revenues,LRTA,Supplies & Services,courier,G FORCE EXPRESS PARCELS LTD,20/08/2013,472.79,
Customer & People Services,Revenues,LRTA,Supplies & Services,Postages,ROYAL MAIL GROUP LTD,20/08/2013,2573.39,
Customer & People Services,Revenues,LRTA,Supplies & Services,Postages,ROYAL MAIL GROUP LTD,12/08/2013,3478.85,
Customer & People Services,Revenues,LRTA,Supplies & Services,Postages,ROYAL MAIL GROUP LTD,12/08/2013,2340,
Customer & People Services,Revenues,LRTA,Supplies & Services,Postages,ROYAL MAIL GROUP LTD,13/08/2013,5438.6,
Customer & People Services,Revenues,LRTA,Supplies & Services,Scanning Services,NORTHGATE INFORMATION SOLUTIONS UK LTD,13/08/2013,-1300,
Customer & People Services,Revenues,LRTA,Supplies & Services,Postages,ROYAL MAIL GROUP LTD,29/08/2013,3297.79,
Customer & People Services,Revenues,LRTA,Supplies & Services,Printing - Print Room,GRAPHICS & PRINT (TELFORD) LTD,29/08/2013,180,
Customer & People Services,Revenues,LRTA,Third Party Payments,Scanning Services,NORTHGATE INFORMATION SOLUTIONS UK LTD,12/08/2013,390.93,
Customer & People Services,Revenues,LRTB,Supplies & Services,Printing - Other,GRAPHICS & PRINT,22/08/2013,108,
Customer & People Services,Revenues,LRTB,Supplies & Services,Court Costs,TELFORD COUNTY COURT ONLY,07/08/2013,840,
"Development, Business & Housing","AD - Development, Business & Housing",WCAK,Capital Expenditure,Payments to Contractor,Shoosmiths,22/08/2013,755.58,
"Development, Business & Housing","AD - Development, Business & Housing",WCAN,Capital Expenditure,Payments to Contractor,VPS (UK) LTD,15/08/2013,892,
"Development, Business & Housing","AD - Development, Business & Housing",WCAN,Capital Expenditure,Payments to Contractor,360 SKYLENS LIMITED,15/08/2013,195,
"Development, Business & Housing","AD - Development, Business & Housing",WCAN,Capital Expenditure,Payments to Contractor,LOCSAFE SECURITY SYSTEMS,15/08/2013,682.56,
"Development, Business & Housing","AD - Development, Business & Housing",WCAN,Capital Expenditure,Payments to Contractor,SHROPSHIRE HEATING SERVICES LTD,15/08/2013,200,
"Development, Business & Housing","AD - Development, Business & Housing",WCAN,Capital Expenditure,Payments to Contractor,JONES & HAMPTON LTD,09/08/2013,109.4,
"Development, Business & Housing","AD - Development, Business & Housing",WCAN,Capital Expenditure,Payments to Contractor,JONES & HAMPTON LTD,09/08/2013,160.63,
"Development, Business & Housing","AD - Development, Business & Housing",WCAN,Capital Expenditure,Payments to Contractor,MARLOW CONSULTING LTD,20/08/2013,360,
"Development, Business & Housing","AD - Development, Business & Housing",WCAN,Capital Expenditure,Payments to Contractor,MARLOW CONSULTING LTD,20/08/2013,460,
"Development, Business & Housing","AD - Development, Business & Housing",WCAN,Capital Expenditure,Payments to Contractor,KNOWLES,19/08/2013,175,
"Development, Business & Housing","AD - Development, Business & Housing",WCAN,Capital Expenditure,Payments to Contractor,JORDAN LEWIS ASSOCIATES LTD,19/08/2013,2000,
"Development, Business & Housing","AD - Development, Business & Housing",WCAN,Capital Expenditure,Site Purchase,THE WREKIN HOUSING TRUST,28/08/2013,30000,
"Development, Business & Housing",Building Schools for the Future (BSF),GFAA,Premises-Related Expenditure,Hire Of Rooms,UNIVERSITY OF WOLVERHAMPTON,08/08/2013,276,
"Development, Business & Housing",Building Schools for the Future (BSF),GFAA,Premises-Related Expenditure,Gas,West Mercia Energy (WME),07/08/2013,6571.86,
"Development, Business & Housing",Building Schools for the Future (BSF),GFAA,Supplies & Services,Legal,WARD HADAWAY SOLICITORS,28/08/2013,417.36,
"Development, Business & Housing",Building Schools for the Future (BSF),GFAA,Supplies & Services,Legal,WARD HADAWAY SOLICITORS,28/08/2013,639.6,
"Development, Business & Housing",Building Schools for the Future (BSF),GFAA,Supplies & Services,Legal,WARD HADAWAY SOLICITORS,28/08/2013,1114.6,
"Development, Business & Housing",Building Schools for the Future (BSF),GFAA,Supplies & Services,Legal,WARD HADAWAY SOLICITORS,28/08/2013,1542.8,
"Development, Business & Housing",Building Schools for the Future (BSF),GFAA,Supplies & Services,Legal,WARD HADAWAY SOLICITORS,28/08/2013,673.4,
"Development, Business & Housing",Building Schools for the Future (BSF),GFAA,Supplies & Services,Legal,WARD HADAWAY SOLICITORS,28/08/2013,718.8,
"Development, Business & Housing",Building Schools for the Future (BSF),GFAA,Supplies & Services,Legal,WARD HADAWAY SOLICITORS,29/08/2013,335.9,
"Development, Business & Housing",Building Schools for the Future (BSF),GFAA,Supplies & Services,Legal,WARD HADAWAY SOLICITORS,29/08/2013,3254.25,
"Development, Business & Housing",Building Schools for the Future (BSF),WGAD,Capital Expenditure,Payments to Contractor,MOTT MACDONALD LIMITED,05/08/2013,1400,
"Development, Business & Housing",Building Schools for the Future (BSF),WGAE,Capital Expenditure,Legal Fees,WARD HADAWAY SOLICITORS,28/08/2013,6899.38,
"Development, Business & Housing",Building Schools for the Future (BSF),WGAG,Capital Expenditure,Legal Fees,WARD HADAWAY SOLICITORS,29/08/2013,1278.6,
"Development, Business & Housing",Building Schools for the Future (BSF),WGAG,Capital Expenditure,Payments to Contractor,KIER CONSTRUCTION LTD,28/08/2013,1870409.84,
"Development, Business & Housing",Building Schools for the Future (BSF),WGAJ,Capital Expenditure,Payments to Contractor,Shepherd Construction Ltd,27/08/2013,789058,
"Development, Business & Housing",Building Schools for the Future (BSF),WGAK,Capital Expenditure,Site Investigation,ABSOLUTE ECOLOGY,29/08/2013,3712,
"Development, Business & Housing",Building Schools for the Future (BSF),WGAK,Capital Expenditure,Site Investigation,ABSOLUTE ECOLOGY,29/08/2013,575,
"Development, Business & Housing",Building Schools for the Future (BSF),WGAK,Capital Expenditure,Site Investigation,ABSOLUTE ECOLOGY,29/08/2013,1800,
"Development, Business & Housing",Building Schools for the Future (BSF),WGAL,Capital Expenditure,Legal Fees,WARD HADAWAY SOLICITORS,29/08/2013,1847.27,
"Development, Business & Housing",Building Schools for the Future (BSF),WGAL,Capital Expenditure,Legal Fees,WARD HADAWAY SOLICITORS,29/08/2013,1151.3,
"Development, Business & Housing",Building Schools for the Future (BSF),WGAM,Capital Expenditure,Legal Fees,WARD HADAWAY SOLICITORS,28/08/2013,1311.13,
"Development, Business & Housing",Building Schools for the Future (BSF),WGAS,Capital Expenditure,Payments to Contractor,Shepherd Construction Ltd,27/08/2013,360014,
"Development, Business & Housing",Building Schools for the Future (BSF),WGAS,Capital Expenditure,Legal Fees,WARD HADAWAY SOLICITORS,29/08/2013,4996.2,
"Development, Business & Housing",Building Schools for the Future (BSF),WGAS,Capital Expenditure,Legal Fees,WARD HADAWAY SOLICITORS,29/08/2013,1683.6,
"Development, Business & Housing",Building Schools for the Future (BSF),WGAS,Capital Expenditure,Legal Fees,WARD HADAWAY SOLICITORS,28/08/2013,2525.61,
"Development, Business & Housing",Building Schools for the Future (BSF),WGAS,Capital Expenditure,Legal Fees,WARD HADAWAY SOLICITORS,28/08/2013,489.9,
"Development, Business & Housing",Building Schools for the Future (BSF),WGAS,Capital Expenditure,Legal Fees,WARD HADAWAY SOLICITORS,29/08/2013,2315.4,
"Development, Business & Housing",Business & Development Planning,AEAG,Supplies & Services,Marketing & Publicity,Zen Communications (UK) Ltd,13/08/2013,2000,
"Development, Business & Housing",Business & Development Planning,AEAJ,Supplies & Services,Web Services,Alcium Software Ltd,16/08/2013,7750,
"Development, Business & Housing",Business & Development Planning,AEAJ,Supplies & Services,Printing - Other,LION FPG LIMITED,09/08/2013,1519,
"Development, Business & Housing",Business & Development Planning,AEAJ,Supplies & Services,Business Sector Development,YOUNG ENTERPRISE,22/08/2013,350,
"Development, Business & Housing",Business & Development Planning,AEAR,Premises-Related Expenditure,Hire Of Rooms,MEETING POINT TRUST LTD,14/08/2013,1197.04,
"Development, Business & Housing",Business & Development Planning,AEAX,Supplies & Services,Other Grants (Expenses),Good2Great Ltd,12/08/2013,5250,
"Development, Business & Housing",Business & Development Planning,AHAC,Supplies & Services,Consultants Fees,West Midlands Employers,21/08/2013,2424,
"Development, Business & Housing",Business & Development Planning,AHAC,Supplies & Services,Other Grants (Expenses),SHROPSHIRE COUNCIL,27/08/2013,766,
"Development, Business & Housing",Business & Development Planning,AHAC,Third Party Payments,Contribution To Other La's,HEREFORDSHIRE COUNCIL,27/08/2013,13029,
"Development, Business & Housing",Business & Development Planning,DHBB,Supplies & Services,Legal Expenses,BEVAN BRITTAN,14/08/2013,25376.14,
"Development, Business & Housing",Business & Development Planning,EWAJ,Supplies & Services,Research Surveys,Housing Vision Ltd,09/08/2013,7760,
"Development, Business & Housing",Business & Development Planning,EWAK,Supplies & Services,Consultants Fees,AMEC ENVIRONMENT & INFRASTRUCTURE UK LTD,09/08/2013,1880,
"Development, Business & Housing",Business & Development Planning,WDAF,Capital Expenditure,Other Capital Expenditure,STANNAH LIFT SERVICES LTD,13/08/2013,3763,
"Development, Business & Housing",Business & Development Planning,WDAF,Capital Expenditure,Other Capital Expenditure,MP BUILDING & PLUMBING LTD,13/08/2013,1350,
"Development, Business & Housing",Business & Development Planning,WDAF,Capital Expenditure,Other Capital Expenditure,E DAVIES & SON,13/08/2013,7946.4,
"Development, Business & Housing",Business & Development Planning,WDAF,Capital Expenditure,Other Capital Expenditure,DMW ENVIRONMENTAL SAFETY LTD,13/08/2013,102,
"Development, Business & Housing",Business & Development Planning,WDAF,Capital Expenditure,Other Capital Expenditure,PILOT HEAT LTD,22/08/2013,2121.32,
"Development, Business & Housing",Business & Development Planning,WDAF,Capital Expenditure,Other Capital Expenditure,P CRUMP,22/08/2013,701.33,
"Development, Business & Housing",Business & Development Planning,WDAF,Capital Expenditure,Other Capital Expenditure,STANNAH LIFT SERVICES LTD,22/08/2013,389.96,
"Development, Business & Housing",Business & Development Planning,WDAF,Capital Expenditure,Other Capital Expenditure,DMW ENVIRONMENTAL SAFETY LTD,22/08/2013,117,
"Development, Business & Housing",Business & Development Planning,WDAF,Capital Expenditure,Other Capital Expenditure,ROSEMONT BUILDING CONTRACTORS,22/08/2013,6658.33,
"Development, Business & Housing",Business & Development Planning,WDAF,Capital Expenditure,Other Capital Expenditure,STANNAH LIFT SERVICES LTD,22/08/2013,4560,
"Development, Business & Housing",Business & Development Planning,WDAF,Capital Expenditure,Other Capital Expenditure,TOTAL HYGIENE LIMITED,22/08/2013,1145.3,
"Development, Business & Housing",Business & Development Planning,WDAF,Capital Expenditure,Other Capital Expenditure,RAM ARCHITECTURAL,13/08/2013,225,
"Development, Business & Housing",Business & Development Planning,WDAF,Capital Expenditure,Other Capital Expenditure,PRISM MEDICAL WESTHOLME DIVISION,21/08/2013,1167.23,
"Development, Business & Housing",Business & Development Planning,WDAF,Capital Expenditure,Other Capital Expenditure,STANNAH LIFT SERVICES LTD,21/08/2013,8355,
"Development, Business & Housing",Business & Development Planning,WDAF,Capital Expenditure,Other Capital Expenditure,STANNAH LIFT SERVICES LTD,21/08/2013,1521,
"Development, Business & Housing",Business & Development Planning,WDAF,Capital Expenditure,Other Capital Expenditure,MARTIN EVANS CONSTRUCTION LTD,21/08/2013,126,
"Development, Business & Housing",Business & Development Planning,WDAF,Capital Expenditure,Other Capital Expenditure,AIDS & ADAPTIONS LTD,08/08/2013,6360.81,
"Development, Business & Housing",Business & Development Planning,WDAF,Capital Expenditure,Other Capital Expenditure,P CRUMP,13/08/2013,1381.02,
"Development, Business & Housing",Business & Development Planning,WDAF,Capital Expenditure,Other Capital Expenditure,STANNAH LIFT SERVICES LTD,08/08/2013,1738,
"Development, Business & Housing",Business & Development Planning,WDAF,Capital Expenditure,Other Capital Expenditure,AIDS & ADAPTIONS LTD,13/08/2013,160,
"Development, Business & Housing",Business & Development Planning,WDAF,Capital Expenditure,Other Capital Expenditure,THE WREKIN HOUSING TRUST,07/08/2013,697.38,
"Development, Business & Housing",Business & Development Planning,WDAF,Capital Expenditure,Other Capital Expenditure,THE WREKIN HOUSING TRUST,07/08/2013,751.03,
"Development, Business & Housing",Business & Development Planning,WDAF,Capital Expenditure,Other Capital Expenditure,THE WREKIN HOUSING TRUST,07/08/2013,2230.72,
"Development, Business & Housing",Business & Development Planning,WDAF,Capital Expenditure,Other Capital Expenditure,THE WREKIN HOUSING TRUST,03/08/2013,1600,
"Development, Business & Housing",Business & Development Planning,WDAF,Capital Expenditure,Other Capital Expenditure,THE WREKIN HOUSING TRUST,03/08/2013,1600,
"Development, Business & Housing",Business & Development Planning,WDAF,Capital Expenditure,Other Capital Expenditure,THE WREKIN HOUSING TRUST,03/08/2013,1600,
"Development, Business & Housing",Business & Development Planning,WDAF,Capital Expenditure,Other Capital Expenditure,THE WREKIN HOUSING TRUST,03/08/2013,1600,
"Development, Business & Housing",Business & Development Planning,WDAF,Capital Expenditure,Other Capital Expenditure,THE WREKIN HOUSING TRUST,03/08/2013,1600,
"Development, Business & Housing",Business & Development Planning,WDAF,Capital Expenditure,Other Capital Expenditure,P CRUMP,03/08/2013,4110.16,
"Development, Business & Housing",Business & Development Planning,WDAF,Capital Expenditure,Other Capital Expenditure,DMW ENVIRONMENTAL SAFETY LTD,03/08/2013,102,
"Development, Business & Housing",Business & Development Planning,WDAF,Capital Expenditure,Other Capital Expenditure,DMW ENVIRONMENTAL SAFETY LTD,03/08/2013,1235.52,
"Development, Business & Housing",Business & Development Planning,WDAF,Capital Expenditure,Other Capital Expenditure,STANNAH LIFT SERVICES LTD,03/08/2013,4560,
"Development, Business & Housing",Business & Development Planning,WDAF,Capital Expenditure,Other Capital Expenditure,MARTIN EVANS CONSTRUCTION LTD,03/08/2013,3655.46,
"Development, Business & Housing",Business & Development Planning,WDAF,Capital Expenditure,Other Capital Expenditure,R J Hicks,15/08/2013,130,
"Development, Business & Housing",Business & Development Planning,WDAF,Capital Expenditure,Other Capital Expenditure,STANNAH LIFT SERVICES LTD,21/08/2013,1407,
"Development, Business & Housing",Business & Development Planning,WDAF,Supplies & Services,Aids & Appliances,PRISM MEDICAL WESTHOLME DIVISION,22/08/2013,1367.7,
"Development, Business & Housing",Business & Development Planning,WDAK,Employees,Employee Costs Recharged,PARK LANE CENTRE,08/08/2013,1155,
"Development, Business & Housing",Business & Development Planning,WDAK,Employees,Employee Costs Recharged,PARK LANE CENTRE,08/08/2013,1155,
"Development, Business & Housing",Business & Development Planning,WDSP,Capital Expenditure,Payments to Contractor,FITZGERALD CONTRACTORS LTD,13/08/2013,836.61,
"Development, Business & Housing",Business & Development Planning,WDST,Capital Expenditure,Legal Fees,MFG SOLICITORS,21/08/2013,1800,
"Development, Business & Housing",Business & Development Planning,WDST,Capital Expenditure,Compensation,THE WREKIN HOUSING TRUST,22/08/2013,5634.42,
"Development, Business & Housing",Business & Development Planning,WDST,Capital Expenditure,Purchase of Buildings,THE WREKIN HOUSING TRUST,21/08/2013,40000,
"Development, Business & Housing",Business & Development Planning,WDST,Capital Expenditure,Compensation,MFG SOLICITORS,21/08/2013,12110.45,
"Development, Business & Housing",Business & Development Planning,WDST,Capital Expenditure,Payments to Contractor,JORDAN LEWIS ASSOCIATES LTD,21/08/2013,1254.96,
"Development, Business & Housing",Business & Development Planning,WDST,Capital Expenditure,Purchase of Buildings,SAINTS SOLICITORS,19/08/2013,53915.58,
"Development, Business & Housing",Business & Development Planning,WDST,Capital Expenditure,Compensation,PCB SOLICITORS,19/08/2013,4700,
"Development, Business & Housing",Business & Development Planning,WDST,Capital Expenditure,Purchase of Buildings,PCB SOLICITORS,19/08/2013,73000,
"Development, Business & Housing",Business & Development Planning,WDST,Capital Expenditure,Legal Fees,PCB SOLICITORS,19/08/2013,4487.16,
"Development, Business & Housing",Business & Development Planning,WDST,Capital Expenditure,Payments to Contractor,GRANVILLE CONSTRUCTION & MAINTENANCE LTD,14/08/2013,1547,
"Development, Business & Housing",Business & Development Planning,WDST,Capital Expenditure,Payments to Contractor,PAVE AWAYS LTD,16/08/2013,107771.98,
"Development, Business & Housing",Business & Development Planning,WDST,Capital Expenditure,Site Investigation,GROUND INVESTIGATION & PILING LTD,15/08/2013,1116.5,
"Development, Business & Housing",Business & Development Planning,WDST,Capital Expenditure,Payments to Contractor,FITZGERALD CONTRACTORS LTD,14/08/2013,62622.23,
"Development, Business & Housing",Business & Development Planning,WDST,Capital Expenditure,Compensation,GLYN UPTON REMOVALS,29/08/2013,550,
"Development, Business & Housing",Development Management,DDAC,Supplies & Services,Legal Expenses,Marsh & Baxter Properties Ltd,05/08/2013,20000,
"Development, Business & Housing",Development Management,DDAD,Premises-Related Expenditure,Planned Repairs,Garvey Demolition Ltd,05/08/2013,8750,
"Development, Business & Housing",Development Management,DDAG,Employees,Professional Subs,ICSA,01/08/2013,275,
"Development, Business & Housing",Development Management,DDAG,Employees,Professional Subs,Institute of Ecology and Environmental Management,09/08/2013,135,
"Development, Business & Housing",Development Management,DDAG,Employees,Training Expenses,AFC TELFORD UNITED,05/08/2013,400,
"Development, Business & Housing",Development Management,DDAG,Employees,Course Fees,TELFORD COLLEGE OF ARTS & TECHNOLOGY,07/08/2013,300,
"Development, Business & Housing",Development Management,DDAG,Supplies & Services,Mobile Phones,ORANGE PCS LTD,16/08/2013,135,
"Development, Business & Housing",Development Management,DDAG,Supplies & Services,Print & Data Services (Print Room) - Charges,RESOLUTION DATA MANAGEMENT LTD,14/08/2013,171.81,
"Development, Business & Housing",Development Management,DDAG,Supplies & Services,Print & Data Services (Print Room) - Charges,RESOLUTION DATA MANAGEMENT LTD,01/08/2013,104.58,
"Development, Business & Housing",Development Management,DDAG,Supplies & Services,Consultants Fees,AMEC ENVIRONMENT & INFRASTRUCTURE UK LTD,05/08/2013,2472,
"Development, Business & Housing",Facilities Management and Cleaning Services,ASAB,Employees,Course Fees,NAT ASSOC OF BRITISH MARKET AUTHORITIES,22/08/2013,200,
"Development, Business & Housing",Facilities Management and Cleaning Services,ASAB,Supplies & Services,Printing - Other,CREATIVE EMPORIUM,19/08/2013,1410,
"Development, Business & Housing",Facilities Management and Cleaning Services,ASAB,Supplies & Services,Other Expenses,BUSINESS WATCH GUARDING LIMITED,09/08/2013,976,
"Development, Business & Housing",Facilities Management and Cleaning Services,CFAM,Premises-Related Expenditure,R&M -Buildings DLO Charge,SHROPSHIRE HEATING SERVICES LTD,19/08/2013,180.48,
"Development, Business & Housing",Facilities Management and Cleaning Services,CFAM,Premises-Related Expenditure,R&M -Building Other,WINDOW & DOOR CONTRACT SERVICES,05/08/2013,162.9,
"Development, Business & Housing",Facilities Management and Cleaning Services,CFAS,Supplies & Services,Printing - Other,TUDOR PRINT & SIGNS,20/08/2013,188,
"Development, Business & Housing",Facilities Management and Cleaning Services,CFAV,Capital Financing Costs,Operating Notice of Change � Facilities Management Charge,PYRAMID SCHOOLS (HADLEY) LTD,08/08/2013,864.19,
"Development, Business & Housing",Facilities Management and Cleaning Services,CFAY,Premises-Related Expenditure,R&M -Buildings DLO Charge,WHITEFOOTS LIMITED,09/08/2013,109.24,
"Development, Business & Housing",Facilities Management and Cleaning Services,CFAY,Premises-Related Expenditure,R&M -Buildings DLO Charge,WHITEFOOTS LIMITED,09/08/2013,112.54,
"Development, Business & Housing",Facilities Management and Cleaning Services,CFAY,Premises-Related Expenditure,R&M -Buildings DLO Charge,NOBRIDGE LTD,21/08/2013,-350,
"Development, Business & Housing",Facilities Management and Cleaning Services,CFAY,Premises-Related Expenditure,R&M -Buildings DLO Charge,GRA-BERN,13/08/2013,782.68,
"Development, Business & Housing",Facilities Management and Cleaning Services,CFAY,Premises-Related Expenditure,R&M -Buildings DLO Charge,SHIFNAL RECYCLING SERVICES,13/08/2013,250,
"Development, Business & Housing",Facilities Management and Cleaning Services,CFAY,Premises-Related Expenditure,R&M -Buildings DLO Charge,SHIFNAL RECYCLING SERVICES,13/08/2013,140,
"Development, Business & Housing",Facilities Management and Cleaning Services,CFAY,Premises-Related Expenditure,R&M -Buildings DLO Charge,Shutter Up Systems Ltd,02/08/2013,539.6,
"Development, Business & Housing",Facilities Management and Cleaning Services,CFAY,Premises-Related Expenditure,R&M -Buildings DLO Charge,FCC RECYCLING (UK) LIMITED,02/08/2013,-105.12,
"Development, Business & Housing",Facilities Management and Cleaning Services,CFAY,Premises-Related Expenditure,R&M -Buildings DLO Charge,FIRE MARQUE,05/08/2013,250,
"Development, Business & Housing",Facilities Management and Cleaning Services,CLCM,Premises-Related Expenditure,Clean Mats & Toilet Requisites,Border Janitorial Supplies Limited,14/08/2013,108.7,
"Development, Business & Housing",Facilities Management and Cleaning Services,CLSP,Premises-Related Expenditure,Clean Mats & Toilet Requisites,Border Janitorial Supplies Limited,05/08/2013,137.33,
"Development, Business & Housing",Property & Design,CAAG,Supplies & Services,Equipment - Purchase,SPECIALIST COMPUTERS CENTRES PLC,09/08/2013,154.32,
"Development, Business & Housing",Property & Design,CAAG,Supplies & Services,Consultants Fees,OLIVEJOYCE LTD,01/08/2013,1265.9,
"Development, Business & Housing",Property & Design,CAAG,Supplies & Services,Consultants Fees,OLIVEJOYCE LTD,12/08/2013,2009.6,
"Development, Business & Housing",Property & Design,CAAG,Supplies & Services,Consultants Fees,EMECH Consultants Ltd,13/08/2013,5034.4,
"Development, Business & Housing",Property & Design,CAAG,Supplies & Services,Consultants Fees,OLIVEJOYCE LTD,14/08/2013,1317.9,
"Development, Business & Housing",Property & Design,CAAH,Premises-Related Expenditure,R&M -Buildings DLO Charge,CHRIS BREEZE LTD,12/08/2013,241.05,
"Development, Business & Housing",Property & Design,CAAH,Premises-Related Expenditure,R&M -Buildings DLO Charge,GRANVILLE CONSTRUCTION & MAINTENANCE LTD,12/08/2013,353.64,
"Development, Business & Housing",Property & Design,CAAH,Premises-Related Expenditure,R&M -Buildings DLO Charge,SHROPSHIRE HEATING SERVICES LTD,12/08/2013,147,
"Development, Business & Housing",Property & Design,CAAH,Premises-Related Expenditure,R&M -Buildings DLO Charge,SHROPSHIRE HEATING SERVICES LTD,12/08/2013,112,
"Development, Business & Housing",Property & Design,CAAH,Premises-Related Expenditure,R&M -Buildings DLO Charge,CHUBB FIRE & SECURITY LTD,12/08/2013,525.24,
"Development, Business & Housing",Property & Design,CAAH,Premises-Related Expenditure,R&M -Buildings DLO Charge,CHUBB FIRE & SECURITY LTD,12/08/2013,267.83,
"Development, Business & Housing",Property & Design,CAAH,Premises-Related Expenditure,R&M -Buildings DLO Charge,SECURITY WISE LTD,16/08/2013,110,
"Development, Business & Housing",Property & Design,CAAH,Premises-Related Expenditure,R&M -Buildings DLO Charge,TAYLORS MECHANICAL H & P SERVICES LTD,16/08/2013,990.75,
"Development, Business & Housing",Property & Design,CAAH,Premises-Related Expenditure,R&M -Buildings DLO Charge,CONCEPT ELEVATORS (MIDLANDS) LIMITED,16/08/2013,145.93,
"Development, Business & Housing",Property & Design,CAAH,Premises-Related Expenditure,R&M -Buildings DLO Charge,GRANVILLE CONSTRUCTION & MAINTENANCE LTD,01/08/2013,709.53,
"Development, Business & Housing",Property & Design,CAAH,Premises-Related Expenditure,R&M -Buildings DLO Charge,GRANVILLE CONSTRUCTION & MAINTENANCE LTD,01/08/2013,1063,
"Development, Business & Housing",Property & Design,CAAH,Premises-Related Expenditure,R&M -Buildings DLO Charge,SHROPSHIRE HEATING SERVICES LTD,19/08/2013,169.59,
"Development, Business & Housing",Property & Design,CAAH,Premises-Related Expenditure,R&M -Buildings DLO Charge,CHRIS BREEZE LTD,19/08/2013,197.22,
"Development, Business & Housing",Property & Design,CAAH,Premises-Related Expenditure,R&M -Buildings DLO Charge,SHROPSHIRE HEATING SERVICES LTD,19/08/2013,348,
"Development, Business & Housing",Property & Design,CAAH,Premises-Related Expenditure,R&M -Buildings DLO Charge,SHROPSHIRE HEATING SERVICES LTD,19/08/2013,274.24,
"Development, Business & Housing",Property & Design,CAAH,Premises-Related Expenditure,R&M -Buildings DLO Charge,SHROPSHIRE HEATING SERVICES LTD,19/08/2013,217.5,
"Development, Business & Housing",Property & Design,CAAH,Premises-Related Expenditure,R&M -Buildings DLO Charge,SHROPSHIRE HEATING SERVICES LTD,19/08/2013,232,
"Development, Business & Housing",Property & Design,CAAH,Premises-Related Expenditure,R&M -Buildings DLO Charge,E DAVIES & SON,19/08/2013,566.1,
"Development, Business & Housing",Property & Design,CAAH,Premises-Related Expenditure,R&M -Buildings DLO Charge,SHROPSHIRE HEATING SERVICES LTD,20/08/2013,131,
"Development, Business & Housing",Property & Design,CAAH,Premises-Related Expenditure,R&M -Buildings DLO Charge,SHROPSHIRE HEATING SERVICES LTD,20/08/2013,292.25,
"Development, Business & Housing",Property & Design,CAAH,Premises-Related Expenditure,R&M -Buildings DLO Charge,SHROPSHIRE HEATING SERVICES LTD,20/08/2013,275.5,
"Development, Business & Housing",Property & Design,CAAH,Premises-Related Expenditure,R&M -Buildings DLO Charge,SHROPSHIRE HEATING SERVICES LTD,20/08/2013,246.5,
"Development, Business & Housing",Property & Design,CAAH,Premises-Related Expenditure,R&M -Buildings DLO Charge,E DAVIES & SON,20/08/2013,131.86,
"Development, Business & Housing",Property & Design,CAAH,Premises-Related Expenditure,R&M -Buildings DLO Charge,SDT ELECTRICAL LTD,20/08/2013,295,
"Development, Business & Housing",Property & Design,CAAH,Premises-Related Expenditure,R&M -Buildings DLO Charge,D P WILCOX & SON,21/08/2013,235,
"Development, Business & Housing",Property & Design,CAAH,Premises-Related Expenditure,R&M -Buildings DLO Charge,D P WILCOX & SON,21/08/2013,210,
"Development, Business & Housing",Property & Design,CAAH,Premises-Related Expenditure,R&M -Buildings DLO Charge,D P WILCOX & SON,21/08/2013,107.5,
"Development, Business & Housing",Property & Design,CAAH,Premises-Related Expenditure,R&M -Buildings DLO Charge,D P WILCOX & SON,21/08/2013,130,
"Development, Business & Housing",Property & Design,CAAH,Premises-Related Expenditure,R&M -Buildings DLO Charge,D P WILCOX & SON,21/08/2013,300,
"Development, Business & Housing",Property & Design,CAAH,Premises-Related Expenditure,R&M -Buildings DLO Charge,D P WILCOX & SON,21/08/2013,232,
"Development, Business & Housing",Property & Design,CAAH,Premises-Related Expenditure,R&M -Buildings DLO Charge,D P WILCOX & SON,21/08/2013,410,
"Development, Business & Housing",Property & Design,CAAH,Premises-Related Expenditure,R&M -Buildings DLO Charge,D P WILCOX & SON,21/08/2013,215,
"Development, Business & Housing",Property & Design,CAAH,Premises-Related Expenditure,R&M -Buildings DLO Charge,CHUBB FIRE & SECURITY LTD,12/08/2013,253.09,
"Development, Business & Housing",Property & Design,CAAH,Premises-Related Expenditure,R&M -Buildings DLO Charge,WINDOW & DOOR CONTRACT SERVICES,12/08/2013,203.2,
"Development, Business & Housing",Property & Design,CAAH,Premises-Related Expenditure,R&M -Buildings DLO Charge,TAYLORS MECHANICAL H & P SERVICES LTD,12/08/2013,250.05,
"Development, Business & Housing",Property & Design,CAAH,Premises-Related Expenditure,R&M -Buildings DLO Charge,CHUBB FIRE & SECURITY LTD,12/08/2013,278.85,
"Development, Business & Housing",Property & Design,CAAH,Premises-Related Expenditure,R&M -Buildings DLO Charge,SHROPSHIRE HEATING SERVICES LTD,12/08/2013,206,
"Development, Business & Housing",Property & Design,CAAH,Premises-Related Expenditure,R&M -Buildings DLO Charge,SHROPSHIRE HEATING SERVICES LTD,12/08/2013,121.7,
"Development, Business & Housing",Property & Design,CAAH,Premises-Related Expenditure,R&M -Buildings DLO Charge,SHROPSHIRE HEATING SERVICES LTD,12/08/2013,323.25,
"Development, Business & Housing",Property & Design,CAAH,Premises-Related Expenditure,R&M -Buildings DLO Charge,CHUBB FIRE & SECURITY LTD,12/08/2013,277.41,
"Development, Business & Housing",Property & Design,CAAH,Premises-Related Expenditure,R&M -Buildings DLO Charge,J R SLEE BUILDERS,13/08/2013,163.36,
"Development, Business & Housing",Property & Design,CAAH,Premises-Related Expenditure,R&M -Buildings DLO Charge,D P WILCOX & SON,01/08/2013,319,
"Development, Business & Housing",Property & Design,CAAH,Premises-Related Expenditure,R&M -Buildings DLO Charge,CHUBB FIRE & SECURITY LTD,12/08/2013,179.01,
"Development, Business & Housing",Property & Design,CAAH,Premises-Related Expenditure,R&M -Buildings DLO Charge,TAYLORS MECHANICAL H & P SERVICES LTD,12/08/2013,286.7,
"Development, Business & Housing",Property & Design,CAAH,Premises-Related Expenditure,R&M -Buildings DLO Charge,SHROPSHIRE HEATING SERVICES LTD,02/08/2013,144.07,
"Development, Business & Housing",Property & Design,CAAH,Premises-Related Expenditure,R&M -Buildings DLO Charge,AQUALOGIC (WC) LTD,01/08/2013,124,
"Development, Business & Housing",Property & Design,CAAH,Premises-Related Expenditure,R&M -Buildings DLO Charge,D P WILCOX & SON,01/08/2013,165,
"Development, Business & Housing",Property & Design,CAAH,Premises-Related Expenditure,R&M -Buildings DLO Charge,SDT ELECTRICAL LTD,01/08/2013,115,
"Development, Business & Housing",Property & Design,CAAH,Premises-Related Expenditure,R&M -Buildings DLO Charge,D P WILCOX & SON,01/08/2013,110,
"Development, Business & Housing",Property & Design,CAAH,Premises-Related Expenditure,R&M -Buildings DLO Charge,GRANVILLE CONSTRUCTION & MAINTENANCE LTD,07/08/2013,1869,
"Development, Business & Housing",Property & Design,CAAH,Premises-Related Expenditure,R&M -Buildings DLO Charge,SDT ELECTRICAL LTD,07/08/2013,175,
"Development, Business & Housing",Property & Design,CAAH,Premises-Related Expenditure,R&M -Buildings DLO Charge,PP ELECTRICAL SERVICES (Shropshire) Ltd,07/08/2013,324.15,
"Development, Business & Housing",Property & Design,CAAH,Premises-Related Expenditure,R&M -Buildings DLO Charge,PP ELECTRICAL SERVICES (Shropshire) Ltd,07/08/2013,108.49,
"Development, Business & Housing",Property & Design,CAAH,Premises-Related Expenditure,R&M -Buildings DLO Charge,AQUALOGIC (WC) LTD,07/08/2013,314,
"Development, Business & Housing",Property & Design,CAAH,Premises-Related Expenditure,R&M -Buildings DLO Charge,SHROPSHIRE HEATING SERVICES LTD,07/08/2013,362.5,
"Development, Business & Housing",Property & Design,CAAH,Premises-Related Expenditure,R&M -Buildings DLO Charge,A1 Glass & Glazing (Shropshire) Limited,07/08/2013,120,
"Development, Business & Housing",Property & Design,CAAH,Premises-Related Expenditure,R&M -Buildings DLO Charge,LOCSAFE SECURITY SYSTEMS,07/08/2013,146.98,
"Development, Business & Housing",Property & Design,CAAH,Premises-Related Expenditure,R&M -Buildings DLO Charge,SHROPSHIRE HEATING SERVICES LTD,07/08/2013,123,
"Development, Business & Housing",Property & Design,CAAH,Premises-Related Expenditure,R&M -Buildings DLO Charge,GRA-BERN,07/08/2013,257.29,
"Development, Business & Housing",Property & Design,CAAH,Premises-Related Expenditure,R&M -Buildings DLO Charge,A1 Glass & Glazing (Shropshire) Limited,07/08/2013,110,
"Development, Business & Housing",Property & Design,CAAH,Premises-Related Expenditure,R&M -Buildings DLO Charge,WREKIN DRAIN SERVICES LTD,07/08/2013,200,
"Development, Business & Housing",Property & Design,CAAH,Premises-Related Expenditure,R&M -Buildings DLO Charge,TAYLORS MECHANICAL H & P SERVICES LTD,07/08/2013,200,
"Development, Business & Housing",Property & Design,CAAH,Premises-Related Expenditure,R&M -Buildings DLO Charge,CHRIS BREEZE LTD,07/08/2013,107.26,
"Development, Business & Housing",Property & Design,CAAH,Premises-Related Expenditure,R&M -Buildings DLO Charge,CHUBB FIRE & SECURITY LTD,07/08/2013,322,
"Development, Business & Housing",Property & Design,CAAH,Premises-Related Expenditure,R&M -Buildings DLO Charge,SDT ELECTRICAL LTD,07/08/2013,775,
"Development, Business & Housing",Property & Design,CAAH,Premises-Related Expenditure,R&M -Buildings DLO Charge,RCS ROOFING CONSTRUCTION SERVICES LTD,07/08/2013,104.8,
"Development, Business & Housing",Property & Design,CAAH,Premises-Related Expenditure,R&M -Buildings DLO Charge,GRANVILLE CONSTRUCTION & MAINTENANCE LTD,07/08/2013,131.91,
"Development, Business & Housing",Property & Design,COAE,Premises-Related Expenditure,R&M -Buildings DLO Charge,TBL Fire Protection Ltd,13/08/2013,4682.22,
"Development, Business & Housing",Property & Design,COAE,Premises-Related Expenditure,R&M -Buildings DLO Charge,THYSSENKRUPP ELEVATOR (UK) LIMITED,13/08/2013,194.46,
"Development, Business & Housing",Property & Design,COAE,Premises-Related Expenditure,R&M -Buildings DLO Charge,PROKILL UK LIMITED,08/08/2013,295,
"Development, Business & Housing",Property & Design,COAE,Premises-Related Expenditure,R&M -Buildings DLO Charge,FCC RECYCLING (UK) LIMITED,08/08/2013,-203.7,
"Development, Business & Housing",Property & Design,COAE,Premises-Related Expenditure,Gas,West Mercia Energy (WME),13/08/2013,357.19,
"Development, Business & Housing",Property & Design,COAE,Premises-Related Expenditure,R&M -Buildings DLO Charge,FCC RECYCLING (UK) LIMITED,09/08/2013,416.26,
"Development, Business & Housing",Property & Design,COAE,Premises-Related Expenditure,R&M -Buildings DLO Charge,SDT ELECTRICAL LTD,19/08/2013,234.38,
"Development, Business & Housing",Property & Design,COAE,Premises-Related Expenditure,Electricity,West Mercia Energy (WME),19/08/2013,363.07,
"Development, Business & Housing",Property & Design,COAE,Premises-Related Expenditure,Electricity,West Mercia Energy (WME),19/08/2013,128.58,
"Development, Business & Housing",Property & Design,COAE,Premises-Related Expenditure,Electricity,West Mercia Energy (WME),19/08/2013,1086.79,
"Development, Business & Housing",Property & Design,COAE,Premises-Related Expenditure,Electricity,West Mercia Energy (WME),19/08/2013,328.86,
"Development, Business & Housing",Property & Design,COAE,Premises-Related Expenditure,Electricity,West Mercia Energy (WME),19/08/2013,1266.56,
"Development, Business & Housing",Property & Design,COAE,Premises-Related Expenditure,Electricity,West Mercia Energy (WME),19/08/2013,415.77,
"Development, Business & Housing",Property & Design,COAE,Premises-Related Expenditure,Electricity,West Mercia Energy (WME),19/08/2013,348.28,
"Development, Business & Housing",Property & Design,COAE,Premises-Related Expenditure,Electricity,West Mercia Energy (WME),19/08/2013,703.18,
"Development, Business & Housing",Property & Design,COAE,Premises-Related Expenditure,Electricity,West Mercia Energy (WME),19/08/2013,265.55,
"Development, Business & Housing",Property & Design,COAE,Premises-Related Expenditure,Electricity,West Mercia Energy (WME),19/08/2013,189.03,
"Development, Business & Housing",Property & Design,COAE,Premises-Related Expenditure,Electricity,West Mercia Energy (WME),19/08/2013,418.74,
"Development, Business & Housing",Property & Design,COAE,Premises-Related Expenditure,Electricity,West Mercia Energy (WME),19/08/2013,847.07,
"Development, Business & Housing",Property & Design,COAE,Premises-Related Expenditure,Water Rates,SEVERN TRENT WATER LTD,21/08/2013,1984.49,
"Development, Business & Housing",Property & Design,COAE,Premises-Related Expenditure,Water Rates,SEVERN TRENT WATER LTD,21/08/2013,2834.54,
"Development, Business & Housing",Property & Design,COAE,Premises-Related Expenditure,Gas,West Mercia Energy (WME),13/08/2013,5892.14,
"Development, Business & Housing",Property & Design,COAE,Premises-Related Expenditure,Gas,West Mercia Energy (WME),13/08/2013,784.85,
"Development, Business & Housing",Property & Design,COAE,Premises-Related Expenditure,R&M -Buildings DLO Charge,THYSSENKRUPP ELEVATOR (UK) LIMITED,13/08/2013,113.44,
"Development, Business & Housing",Property & Design,COAE,Premises-Related Expenditure,R&M -Buildings DLO Charge,ADT FIRE & SECURITY PLC,13/08/2013,2173.37,
"Development, Business & Housing",Property & Design,COAE,Premises-Related Expenditure,R&M -Buildings DLO Charge,ADT FIRE & SECURITY PLC,13/08/2013,216,
"Development, Business & Housing",Property & Design,COAE,Premises-Related Expenditure,R&M -Buildings DLO Charge,BUSINESS WATCH GUARDING LIMITED,13/08/2013,250,
"Development, Business & Housing",Property & Design,COAE,Premises-Related Expenditure,R&M -Buildings DLO Charge,EVAC+CHAIR INTERNATIONAL LTD,15/08/2013,255,
"Development, Business & Housing",Property & Design,COAE,Premises-Related Expenditure,R&M -Buildings DLO Charge,THYSSENKRUPP ELEVATOR (UK) LIMITED,27/08/2013,194.46,
"Development, Business & Housing",Property & Design,COAE,Premises-Related Expenditure,R&M -Buildings DLO Charge,THYSSENKRUPP ELEVATOR (UK) LIMITED,27/08/2013,300,
"Development, Business & Housing",Property & Design,COAE,Premises-Related Expenditure,Electricity,West Mercia Energy (WME),27/08/2013,396.45,
"Development, Business & Housing",Property & Design,COAE,Premises-Related Expenditure,Gas,West Mercia Energy (WME),27/08/2013,679.35,
"Development, Business & Housing",Property & Design,COAE,Premises-Related Expenditure,Gas,West Mercia Energy (WME),27/08/2013,261.78,
"Development, Business & Housing",Property & Design,COAE,Premises-Related Expenditure,Electricity,West Mercia Energy (WME),27/08/2013,1552.54,
"Development, Business & Housing",Property & Design,COAE,Premises-Related Expenditure,Electricity,West Mercia Energy (WME),27/08/2013,2456.63,
"Development, Business & Housing",Property & Design,COAE,Premises-Related Expenditure,Electricity,West Mercia Energy (WME),27/08/2013,2694.38,
"Development, Business & Housing",Property & Design,COAE,Premises-Related Expenditure,R&M -Buildings DLO Charge,FCC RECYCLING (UK) LIMITED,12/08/2013,203.7,
"Development, Business & Housing",Property & Design,COAE,Premises-Related Expenditure,R&M -Buildings DLO Charge,FBC MANBY BOWDLER LLP,02/08/2013,1250,
"Development, Business & Housing",Property & Design,COAE,Premises-Related Expenditure,R&M -Buildings DLO Charge,FBC MANBY BOWDLER LLP,05/08/2013,1000,
"Development, Business & Housing",Property & Design,COAE,Premises-Related Expenditure,R&M -Buildings DLO Charge,Wells Garden Services,05/08/2013,705,
"Development, Business & Housing",Property & Design,COAE,Premises-Related Expenditure,R&M -Buildings DLO Charge,PP ELECTRICAL SERVICES (Shropshire) Ltd,07/08/2013,208,
"Development, Business & Housing",Property & Design,COAG,Premises-Related Expenditure,Service Contracts,SHROPSHIRE HEATING SERVICES LTD,23/08/2013,269.84,
"Development, Business & Housing",Property & Design,COAG,Premises-Related Expenditure,R&M -Buildings DLO Charge,ERIC NEVILLE CATERING SUPPLIES LTD,19/08/2013,110,
"Development, Business & Housing",Property & Design,COAG,Premises-Related Expenditure,Service Contracts,SHROPSHIRE HEATING SERVICES LTD,19/08/2013,115.81,
"Development, Business & Housing",Property & Design,COAG,Premises-Related Expenditure,Service Contracts,SHROPSHIRE HEATING SERVICES LTD,19/08/2013,211.08,
"Development, Business & Housing",Property & Design,COAG,Premises-Related Expenditure,Service Contracts,SHROPSHIRE HEATING SERVICES LTD,19/08/2013,154.96,
"Development, Business & Housing",Property & Design,COAG,Premises-Related Expenditure,Service Contracts,SHROPSHIRE HEATING SERVICES LTD,19/08/2013,102.32,
"Development, Business & Housing",Property & Design,COAG,Premises-Related Expenditure,R&M -Buildings DLO Charge,D P WILCOX & SON,22/08/2013,170,
"Development, Business & Housing",Property & Design,COAG,Premises-Related Expenditure,R&M -Buildings DLO Charge,WATERCLEAN SERVICES LTD,12/08/2013,150,
"Development, Business & Housing",Property & Design,COAG,Premises-Related Expenditure,R&M -Buildings DLO Charge,EDRYD JENKINS (ELECTRICAL) LTD,15/08/2013,370.97,
"Development, Business & Housing",Property & Design,COAG,Premises-Related Expenditure,Service Contracts,CHUBB FIRE & SECURITY LTD,15/08/2013,189.84,
"Development, Business & Housing",Property & Design,COAG,Premises-Related Expenditure,Service Contracts,HERRON CLEANING SERVICES,07/08/2013,174.72,
"Development, Business & Housing",Property & Design,COAG,Premises-Related Expenditure,R&M -Buildings DLO Charge,D P WILCOX & SON,01/08/2013,205,
"Development, Business & Housing",Property & Design,COAG,Premises-Related Expenditure,R&M -Buildings DLO Charge,SDT ELECTRICAL LTD,01/08/2013,140,
"Development, Business & Housing",Property & Design,COAG,Premises-Related Expenditure,Service Contracts,SHROPSHIRE HEATING SERVICES LTD,07/08/2013,126.73,
"Development, Business & Housing",Property & Design,COAG,Premises-Related Expenditure,R&M -Buildings DLO Charge,PP ELECTRICAL SERVICES (Shropshire) Ltd,07/08/2013,190.9,
"Development, Business & Housing",Property & Design,COAG,Premises-Related Expenditure,R&M -Buildings DLO Charge,GRA-BERN,07/08/2013,295.18,
"Development, Business & Housing",Property & Design,COAG,Premises-Related Expenditure,R&M -Buildings DLO Charge,CHRIS BREEZE LTD,07/08/2013,218.5,
"Development, Business & Housing",Property & Design,COAG,Premises-Related Expenditure,R&M -Buildings DLO Charge,GRA-BERN,07/08/2013,117.28,
"Development, Business & Housing",Property & Design,COAG,Premises-Related Expenditure,R&M -Buildings DLO Charge,SHROPSHIRE HEATING SERVICES LTD,07/08/2013,157.15,
"Development, Business & Housing",Property & Design,COAH,Premises-Related Expenditure,Trade Refuse,GREEN SKIPS LTD,14/08/2013,190,
"Development, Business & Housing",Property & Design,COAH,Premises-Related Expenditure,Trade Refuse,GREEN SKIPS LTD,14/08/2013,440,
"Development, Business & Housing",Property & Design,COAH,Premises-Related Expenditure,Service Contracts,CHUBB FIRE & SECURITY LTD,15/08/2013,120.22,
"Development, Business & Housing",Property & Design,COAP,Premises-Related Expenditure,Gas,BUDGET GAS LTD,16/08/2013,148.55,
"Development, Business & Housing",Property & Design,COAP,Premises-Related Expenditure,R&M -Buildings DLO Charge,JONES & HAMPTON LTD,13/08/2013,311.65,
"Development, Business & Housing",Property & Design,COAP,Premises-Related Expenditure,Service Contracts,WELLINGTON INSULATION CO. LTD,13/08/2013,150,
"Development, Business & Housing",Property & Design,COAP,Premises-Related Expenditure,Service Contracts,WELLINGTON INSULATION CO. LTD,13/08/2013,867.27,
"Development, Business & Housing",Property & Design,COAP,Premises-Related Expenditure,R&M -Buildings DLO Charge,JONES & HAMPTON LTD,07/08/2013,402.86,
"Development, Business & Housing",Property & Design,COAP,Premises-Related Expenditure,R&M -Buildings DLO Charge,JONES & HAMPTON LTD,07/08/2013,362.5,
"Development, Business & Housing",Property & Design,COAP,Premises-Related Expenditure,R&M -Buildings DLO Charge,JONES & HAMPTON LTD,07/08/2013,105.44,
"Development, Business & Housing",Property & Design,COAP,Premises-Related Expenditure,Gas,West Mercia Energy (WME),19/08/2013,257.85,
"Development, Business & Housing",Property & Design,COAP,Premises-Related Expenditure,Gas,West Mercia Energy (WME),19/08/2013,241.92,
"Development, Business & Housing",Property & Design,COAP,Premises-Related Expenditure,Gas,West Mercia Energy (WME),19/08/2013,2407.92,
"Development, Business & Housing",Property & Design,COAP,Premises-Related Expenditure,Fuel Oil,West Mercia Energy (WME),19/08/2013,372.94,
"Development, Business & Housing",Property & Design,COAP,Premises-Related Expenditure,Gas,West Mercia Energy (WME),19/08/2013,1545.36,
"Development, Business & Housing",Property & Design,COAP,Premises-Related Expenditure,Gas,West Mercia Energy (WME),19/08/2013,417.59,
"Development, Business & Housing",Property & Design,COAP,Premises-Related Expenditure,Gas,West Mercia Energy (WME),19/08/2013,566.04,
"Development, Business & Housing",Property & Design,COAP,Premises-Related Expenditure,Gas,West Mercia Energy (WME),19/08/2013,242.59,
"Development, Business & Housing",Property & Design,COAP,Premises-Related Expenditure,Gas,West Mercia Energy (WME),19/08/2013,189.5,
"Development, Business & Housing",Property & Design,COAP,Premises-Related Expenditure,Gas,West Mercia Energy (WME),19/08/2013,629.24,
"Development, Business & Housing",Property & Design,COAP,Premises-Related Expenditure,Gas,West Mercia Energy (WME),19/08/2013,160.14,
"Development, Business & Housing",Property & Design,COAP,Premises-Related Expenditure,Gas,West Mercia Energy (WME),19/08/2013,169.77,
"Development, Business & Housing",Property & Design,COAP,Premises-Related Expenditure,Gas,West Mercia Energy (WME),19/08/2013,1585.66,
"Development, Business & Housing",Property & Design,COAP,Premises-Related Expenditure,Service Contracts,HOOD AIRPORT & ICE LTD,19/08/2013,1170.7,
"Development, Business & Housing",Property & Design,COAP,Premises-Related Expenditure,Service Contracts,AQUALOGIC (WC) LTD,19/08/2013,111.5,
"Development, Business & Housing",Property & Design,COAP,Premises-Related Expenditure,Service Contracts,MANSAW MACHINE TOOLS LTD,19/08/2013,380,
"Development, Business & Housing",Property & Design,COAP,Premises-Related Expenditure,R&M -Buildings DLO Charge,WINDOW & DOOR CONTRACT SERVICES,19/08/2013,297.64,
"Development, Business & Housing",Property & Design,COAP,Premises-Related Expenditure,R&M -Buildings DLO Charge,Protec Fire Detection PLC,19/08/2013,154.45,
"Development, Business & Housing",Property & Design,COAP,Premises-Related Expenditure,R&M -Buildings DLO Charge,ASLES (TOOL HIRE & SALES) LTD,19/08/2013,139,
"Development, Business & Housing",Property & Design,COAP,Premises-Related Expenditure,R&M -Buildings DLO Charge,TAYLORS MECHANICAL H & P SERVICES LTD,19/08/2013,658.29,
"Development, Business & Housing",Property & Design,COAP,Premises-Related Expenditure,Service Contracts,HOOD AIRPORT & ICE LTD,19/08/2013,636.5,
"Development, Business & Housing",Property & Design,COAP,Premises-Related Expenditure,Service Contracts,WELLINGTON INSULATION CO. LTD,19/08/2013,639.57,
"Development, Business & Housing",Property & Design,COAP,Premises-Related Expenditure,Service Contracts,WELLINGTON INSULATION CO. LTD,19/08/2013,150,
"Development, Business & Housing",Property & Design,COAP,Premises-Related Expenditure,Service Contracts,KOHLER MIRA LIMITED,19/08/2013,224.25,
"Development, Business & Housing",Property & Design,COAP,Premises-Related Expenditure,R&M -Buildings DLO Charge,PRISM MEDICAL WESTHOLME DIVISION,19/08/2013,619.85,
"Development, Business & Housing",Property & Design,COAP,Premises-Related Expenditure,R&M -Buildings DLO Charge,AQUA LEISURE LIMITED,19/08/2013,1214,
"Development, Business & Housing",Property & Design,COAP,Premises-Related Expenditure,R&M -Buildings DLO Charge,JONES & HAMPTON LTD,19/08/2013,181.67,
"Development, Business & Housing",Property & Design,COAP,Premises-Related Expenditure,Service Contracts,SHROPSHIRE HEATING SERVICES LTD,19/08/2013,310.23,
"Development, Business & Housing",Property & Design,COAP,Premises-Related Expenditure,Service Contracts,SHROPSHIRE HEATING SERVICES LTD,19/08/2013,117.75,
"Development, Business & Housing",Property & Design,COAP,Premises-Related Expenditure,R&M -Buildings DLO Charge,SECURITY WISE LTD,19/08/2013,130,
"Development, Business & Housing",Property & Design,COAP,Premises-Related Expenditure,R&M -Buildings DLO Charge,NYKE ENERGY SERVICES LIMITED,19/08/2013,701.72,
"Development, Business & Housing",Property & Design,COAP,Premises-Related Expenditure,R&M -Buildings DLO Charge,JONES & HAMPTON LTD,19/08/2013,627.25,
"Development, Business & Housing",Property & Design,COAP,Premises-Related Expenditure,R&M -Buildings DLO Charge,PRYCE (BUILDERS) LTD,19/08/2013,212.25,
"Development, Business & Housing",Property & Design,COAP,Premises-Related Expenditure,Service Contracts,KOHLER MIRA LIMITED,19/08/2013,692.07,
"Development, Business & Housing",Property & Design,COAP,Premises-Related Expenditure,R&M -Buildings DLO Charge,AQUA LEISURE LIMITED,19/08/2013,945,
"Development, Business & Housing",Property & Design,COAP,Premises-Related Expenditure,Gas,BRITISH GAS BUSINESS,19/08/2013,1753.44,
"Development, Business & Housing",Property & Design,COAP,Premises-Related Expenditure,Water Rates,SEVERN TRENT WATER LTD,19/08/2013,643.49,
"Development, Business & Housing",Property & Design,COAP,Premises-Related Expenditure,Water Rates,SEVERN TRENT WATER LTD,19/08/2013,275.78,
"Development, Business & Housing",Property & Design,COAP,Premises-Related Expenditure,Fuel Oil,West Mercia Energy (WME),19/08/2013,354.65,
"Development, Business & Housing",Property & Design,COAP,Premises-Related Expenditure,Electricity,West Mercia Energy (WME),19/08/2013,399.78,
"Development, Business & Housing",Property & Design,COAP,Premises-Related Expenditure,Fuel Oil,West Mercia Energy (WME),19/08/2013,443.49,
"Development, Business & Housing",Property & Design,COAP,Premises-Related Expenditure,Fuel Oil,West Mercia Energy (WME),19/08/2013,286.12,
"Development, Business & Housing",Property & Design,COAP,Premises-Related Expenditure,Electricity,West Mercia Energy (WME),19/08/2013,290.49,
"Development, Business & Housing",Property & Design,COAP,Premises-Related Expenditure,Electricity,West Mercia Energy (WME),19/08/2013,-2241.17,
"Development, Business & Housing",Property & Design,COAP,Premises-Related Expenditure,Gas,West Mercia Energy (WME),19/08/2013,165.95,
"Development, Business & Housing",Property & Design,COAP,Premises-Related Expenditure,Electricity,West Mercia Energy (WME),19/08/2013,1173.71,
"Development, Business & Housing",Property & Design,COAP,Premises-Related Expenditure,Electricity,West Mercia Energy (WME),19/08/2013,621.27,
"Development, Business & Housing",Property & Design,COAP,Premises-Related Expenditure,Electricity,West Mercia Energy (WME),19/08/2013,212.24,
"Development, Business & Housing",Property & Design,COAP,Premises-Related Expenditure,Electricity,West Mercia Energy (WME),19/08/2013,1079.75,
"Development, Business & Housing",Property & Design,COAP,Premises-Related Expenditure,Fuel Oil,West Mercia Energy (WME),19/08/2013,573.76,
"Development, Business & Housing",Property & Design,COAP,Premises-Related Expenditure,Electricity,West Mercia Energy (WME),19/08/2013,872.77,
"Development, Business & Housing",Property & Design,COAP,Premises-Related Expenditure,Electricity,West Mercia Energy (WME),19/08/2013,170.79,
"Development, Business & Housing",Property & Design,COAP,Premises-Related Expenditure,Gas,West Mercia Energy (WME),19/08/2013,1931.02,
"Development, Business & Housing",Property & Design,COAP,Premises-Related Expenditure,Electricity,West Mercia Energy (WME),19/08/2013,133.35,
"Development, Business & Housing",Property & Design,COAP,Premises-Related Expenditure,Electricity,West Mercia Energy (WME),19/08/2013,249.81,
"Development, Business & Housing",Property & Design,COAP,Premises-Related Expenditure,Electricity,West Mercia Energy (WME),19/08/2013,315.73,
"Development, Business & Housing",Property & Design,COAP,Premises-Related Expenditure,Electricity,West Mercia Energy (WME),19/08/2013,3188.6,
"Development, Business & Housing",Property & Design,COAP,Premises-Related Expenditure,Gas,West Mercia Energy (WME),19/08/2013,387.2,
"Development, Business & Housing",Property & Design,COAP,Premises-Related Expenditure,Electricity,West Mercia Energy (WME),19/08/2013,202.57,
"Development, Business & Housing",Property & Design,COAP,Premises-Related Expenditure,Electricity,West Mercia Energy (WME),19/08/2013,365.37,
"Development, Business & Housing",Property & Design,COAP,Premises-Related Expenditure,Electricity,West Mercia Energy (WME),19/08/2013,846.75,
"Development, Business & Housing",Property & Design,COAP,Premises-Related Expenditure,Gas,West Mercia Energy (WME),19/08/2013,-636.6,
"Development, Business & Housing",Property & Design,COAP,Premises-Related Expenditure,Gas,West Mercia Energy (WME),19/08/2013,-657.82,
"Development, Business & Housing",Property & Design,COAP,Premises-Related Expenditure,Electricity,West Mercia Energy (WME),19/08/2013,550.94,
"Development, Business & Housing",Property & Design,COAP,Premises-Related Expenditure,Electricity,West Mercia Energy (WME),19/08/2013,2141.51,
"Development, Business & Housing",Property & Design,COAP,Premises-Related Expenditure,Electricity,West Mercia Energy (WME),19/08/2013,8217.41,
"Development, Business & Housing",Property & Design,COAP,Premises-Related Expenditure,Electricity,West Mercia Energy (WME),19/08/2013,5138.88,
"Development, Business & Housing",Property & Design,COAP,Premises-Related Expenditure,Electricity,West Mercia Energy (WME),19/08/2013,591.01,
"Development, Business & Housing",Property & Design,COAP,Premises-Related Expenditure,Electricity,West Mercia Energy (WME),19/08/2013,853.31,
"Development, Business & Housing",Property & Design,COAP,Premises-Related Expenditure,Fuel Oil,West Mercia Energy (WME),19/08/2013,430.32,
"Development, Business & Housing",Property & Design,COAP,Premises-Related Expenditure,Fuel Oil,West Mercia Energy (WME),19/08/2013,407.28,
"Development, Business & Housing",Property & Design,COAP,Premises-Related Expenditure,Fuel Oil,West Mercia Energy (WME),19/08/2013,411.72,
"Development, Business & Housing",Property & Design,COAP,Premises-Related Expenditure,Electricity,West Mercia Energy (WME),19/08/2013,641.31,
"Development, Business & Housing",Property & Design,COAP,Premises-Related Expenditure,R&M -Buildings DLO Charge,NPOWER,20/08/2013,-114.31,
"Development, Business & Housing",Property & Design,COAP,Premises-Related Expenditure,R&M -Buildings DLO Charge,NPOWER,20/08/2013,-292.52,
"Development, Business & Housing",Property & Design,COAP,Premises-Related Expenditure,Service Contracts,WELLINGTON INSULATION CO. LTD,20/08/2013,989.64,
"Development, Business & Housing",Property & Design,COAP,Premises-Related Expenditure,R&M -Buildings DLO Charge,CHUBB FIRE & SECURITY LTD,20/08/2013,3238.2,
"Development, Business & Housing",Property & Design,COAP,Premises-Related Expenditure,R&M -Buildings DLO Charge,RENTOKIL INITIAL UK LIMITED,20/08/2013,156.26,
"Development, Business & Housing",Property & Design,COAP,Premises-Related Expenditure,R&M -Buildings DLO Charge,CONCEPT ELEVATORS (MIDLANDS) LIMITED,20/08/2013,494,
"Development, Business & Housing",Property & Design,COAP,Premises-Related Expenditure,R&M -Buildings DLO Charge,GREEN SKIPS LTD,01/08/2013,190,
"Development, Business & Housing",Property & Design,COAP,Premises-Related Expenditure,Non Domestic Rates,CYNGOR GWYNEDD COUNCIL,01/08/2013,1601,
"Development, Business & Housing",Property & Design,COAP,Premises-Related Expenditure,Service Contracts,WELLINGTON INSULATION CO. LTD,13/08/2013,150,
"Development, Business & Housing",Property & Design,COAP,Premises-Related Expenditure,Service Contracts,WELLINGTON INSULATION CO. LTD,13/08/2013,150,
"Development, Business & Housing",Property & Design,COAP,Premises-Related Expenditure,Service Contracts,WELLINGTON INSULATION CO. LTD,13/08/2013,150,
"Development, Business & Housing",Property & Design,COAP,Premises-Related Expenditure,R&M -Buildings DLO Charge,JONES & HAMPTON LTD,13/08/2013,178.21,
"Development, Business & Housing",Property & Design,COAP,Premises-Related Expenditure,R&M -Buildings DLO Charge,JONES & HAMPTON LTD,13/08/2013,222.11,
"Development, Business & Housing",Property & Design,COAP,Premises-Related Expenditure,R&M -Buildings DLO Charge,WINDOW & DOOR CONTRACT SERVICES,13/08/2013,164.35,
"Development, Business & Housing",Property & Design,COAP,Premises-Related Expenditure,R&M -Buildings DLO Charge,WINDOW & DOOR CONTRACT SERVICES,13/08/2013,333.12,
"Development, Business & Housing",Property & Design,COAP,Premises-Related Expenditure,R&M -Buildings DLO Charge,WINDOW & DOOR CONTRACT SERVICES,13/08/2013,262.72,
"Development, Business & Housing",Property & Design,COAP,Premises-Related Expenditure,Service Contracts,WELLINGTON INSULATION CO. LTD,13/08/2013,150,
"Development, Business & Housing",Property & Design,COAP,Premises-Related Expenditure,Service Contracts,WELLINGTON INSULATION CO. LTD,13/08/2013,150,
"Development, Business & Housing",Property & Design,COAP,Premises-Related Expenditure,Service Contracts,WELLINGTON INSULATION CO. LTD,13/08/2013,150,
"Development, Business & Housing",Property & Design,COAP,Premises-Related Expenditure,Service Contracts,WELLINGTON INSULATION CO. LTD,13/08/2013,300,
"Development, Business & Housing",Property & Design,COAP,Premises-Related Expenditure,R&M -Buildings DLO Charge,SHROPSHIRE HEATING SERVICES LTD,13/08/2013,200.1,
"Development, Business & Housing",Property & Design,COAP,Premises-Related Expenditure,R&M -Buildings DLO Charge,SHROPSHIRE HEATING SERVICES LTD,13/08/2013,106.13,
"Development, Business & Housing",Property & Design,COAP,Premises-Related Expenditure,R&M -Buildings DLO Charge,SHROPSHIRE HEATING SERVICES LTD,13/08/2013,212.02,
"Development, Business & Housing",Property & Design,COAP,Premises-Related Expenditure,R&M -Buildings DLO Charge,PP ELECTRICAL SERVICES (Shropshire) Ltd,13/08/2013,455,
"Development, Business & Housing",Property & Design,COAP,Premises-Related Expenditure,R&M -Buildings DLO Charge,SHROPSHIRE HEATING SERVICES LTD,13/08/2013,191.96,
"Development, Business & Housing",Property & Design,COAP,Premises-Related Expenditure,R&M -Buildings DLO Charge,CHUBB FIRE & SECURITY LTD,13/08/2013,138.78,
"Development, Business & Housing",Property & Design,COAP,Premises-Related Expenditure,R&M -Buildings DLO Charge,JONES & HAMPTON LTD,13/08/2013,115.48,
"Development, Business & Housing",Property & Design,COAP,Premises-Related Expenditure,R&M -Buildings DLO Charge,ADT FIRE & SECURITY PLC,13/08/2013,194,
"Development, Business & Housing",Property & Design,COAP,Premises-Related Expenditure,R&M -Buildings DLO Charge,ARJOHUNTLEIGH UK,13/08/2013,230.22,
"Development, Business & Housing",Property & Design,COAP,Premises-Related Expenditure,Service Contracts,CHUBB FIRE & SECURITY LTD,13/08/2013,251.05,
"Development, Business & Housing",Property & Design,COAP,Premises-Related Expenditure,R&M -Buildings DLO Charge,GRA-BERN,13/08/2013,112.42,
"Development, Business & Housing",Property & Design,COAP,Premises-Related Expenditure,R&M -Buildings DLO Charge,Wells Garden Services,13/08/2013,320,
"Development, Business & Housing",Property & Design,COAP,Premises-Related Expenditure,R&M -Buildings DLO Charge,SDT ELECTRICAL LTD,13/08/2013,125,
"Development, Business & Housing",Property & Design,COAP,Premises-Related Expenditure,R&M -Buildings DLO Charge,Protec Fire Detection PLC,13/08/2013,217.73,
"Development, Business & Housing",Property & Design,COAP,Premises-Related Expenditure,Service Contracts,CHUBB FIRE & SECURITY LTD,13/08/2013,317.98,
"Development, Business & Housing",Property & Design,COAP,Premises-Related Expenditure,R&M -Buildings DLO Charge,HORTON AUTOMATICS LTD,13/08/2013,289,
"Development, Business & Housing",Property & Design,COAP,Premises-Related Expenditure,R&M -Buildings DLO Charge,JCE & SONS LTD,13/08/2013,1100,
"Development, Business & Housing",Property & Design,COAP,Premises-Related Expenditure,R&M -Buildings DLO Charge,Baxi Heating UK Ltd,13/08/2013,311,
"Development, Business & Housing",Property & Design,COAP,Premises-Related Expenditure,R&M -Buildings DLO Charge,HORTON AUTOMATICS LTD,13/08/2013,120,
"Development, Business & Housing",Property & Design,COAP,Premises-Related Expenditure,R&M -Buildings DLO Charge,HORTON AUTOMATICS LTD,13/08/2013,170,
"Development, Business & Housing",Property & Design,COAP,Premises-Related Expenditure,R&M -Buildings DLO Charge,DALAIR LIMITED,13/08/2013,480,
"Development, Business & Housing",Property & Design,COAP,Premises-Related Expenditure,R&M -Buildings DLO Charge,WREKIN DRAIN SERVICES LTD,13/08/2013,240,
"Development, Business & Housing",Property & Design,COAP,Premises-Related Expenditure,R&M -Buildings DLO Charge,OSBORNE DELTA (LIGHTNING CONDUCTORS) LTD,13/08/2013,700,
"Development, Business & Housing",Property & Design,COAP,Premises-Related Expenditure,Water Rates,SEVERN TRENT WATER LTD,13/08/2013,3343.12,
"Development, Business & Housing",Property & Design,COAP,Premises-Related Expenditure,Water Rates,SEVERN TRENT WATER LTD,13/08/2013,1658.33,
"Development, Business & Housing",Property & Design,COAP,Premises-Related Expenditure,R&M -Buildings DLO Charge,WREKIN DRAIN SERVICES LTD,13/08/2013,170,
"Development, Business & Housing",Property & Design,COAP,Premises-Related Expenditure,R&M -Building Other,HUWS GRAY LTD,23/08/2013,121.22,
"Development, Business & Housing",Property & Design,COAP,Premises-Related Expenditure,R&M -Buildings DLO Charge,D P WILCOX & SON,23/08/2013,125,
"Development, Business & Housing",Property & Design,COAP,Premises-Related Expenditure,R&M -Buildings DLO Charge,D P WILCOX & SON,23/08/2013,334.25,
"Development, Business & Housing",Property & Design,COAP,Premises-Related Expenditure,Water Rates,SEVERN TRENT WATER LTD,23/08/2013,1877.26,
"Development, Business & Housing",Property & Design,COAP,Premises-Related Expenditure,Clean Mats & Toilet Requisites,KRYSTAL HYGIENE LIMITED,23/08/2013,496.77,
"Development, Business & Housing",Property & Design,COAP,Premises-Related Expenditure,R&M -Buildings DLO Charge,PROKILL UK LIMITED,27/08/2013,-102.6,
"Development, Business & Housing",Property & Design,COAP,Premises-Related Expenditure,R&M -Buildings DLO Charge,ADT FIRE & SECURITY PLC,14/08/2013,170,
"Development, Business & Housing",Property & Design,COAP,Premises-Related Expenditure,Clean Mats & Toilet Requisites,PROVAC CLEANING SUPPLIES LTD,14/08/2013,106.3,
"Development, Business & Housing",Property & Design,COAP,Premises-Related Expenditure,R&M -Buildings DLO Charge,PRYCE (BUILDERS) LTD,15/08/2013,7053,
"Development, Business & Housing",Property & Design,COAP,Premises-Related Expenditure,Gas,BRITISH GAS BUSINESS,27/08/2013,141.33,
"Development, Business & Housing",Property & Design,COAP,Premises-Related Expenditure,R&M -Buildings DLO Charge,JONES & HAMPTON LTD,27/08/2013,271.05,
"Development, Business & Housing",Property & Design,COAP,Premises-Related Expenditure,R&M -Buildings DLO Charge,JONES & HAMPTON LTD,27/08/2013,247.5,
"Development, Business & Housing",Property & Design,COAP,Premises-Related Expenditure,R&M -Buildings DLO Charge,JCE & SONS LTD,27/08/2013,593.28,
"Development, Business & Housing",Property & Design,COAP,Premises-Related Expenditure,R&M -Buildings DLO Charge,OSPREY WATER MANAGEMENT LTD,27/08/2013,305.23,
"Development, Business & Housing",Property & Design,COAP,Premises-Related Expenditure,R&M -Buildings DLO Charge,JONES & HAMPTON LTD,27/08/2013,1151.61,
"Development, Business & Housing",Property & Design,COAP,Premises-Related Expenditure,Gas,West Mercia Energy (WME),27/08/2013,636.6,
"Development, Business & Housing",Property & Design,COAP,Premises-Related Expenditure,Gas,West Mercia Energy (WME),27/08/2013,-657.82,
"Development, Business & Housing",Property & Design,COAP,Premises-Related Expenditure,Clean Mats & Toilet Requisites,PHS ALL CLEAR,27/08/2013,1085.5,
"Development, Business & Housing",Property & Design,COAP,Premises-Related Expenditure,Gas,West Mercia Energy (WME),27/08/2013,123.02,
"Development, Business & Housing",Property & Design,COAP,Premises-Related Expenditure,Gas,West Mercia Energy (WME),27/08/2013,140.36,
"Development, Business & Housing",Property & Design,COAP,Premises-Related Expenditure,Gas,West Mercia Energy (WME),27/08/2013,138.42,
"Development, Business & Housing",Property & Design,COAP,Premises-Related Expenditure,Electricity,West Mercia Energy (WME),27/08/2013,2866.29,
"Development, Business & Housing",Property & Design,COAP,Premises-Related Expenditure,Electricity,West Mercia Energy (WME),27/08/2013,4291.58,
"Development, Business & Housing",Property & Design,COAP,Premises-Related Expenditure,Fuel Oil,West Mercia Energy (WME),27/08/2013,704.38,
"Development, Business & Housing",Property & Design,COAP,Premises-Related Expenditure,Gas,West Mercia Energy (WME),27/08/2013,131.58,
"Development, Business & Housing",Property & Design,COAP,Premises-Related Expenditure,R&M -Buildings DLO Charge,JONES & HAMPTON LTD,07/08/2013,157.57,
"Development, Business & Housing",Property & Design,COAP,Premises-Related Expenditure,Electricity,West Mercia Energy (WME),02/08/2013,1197.38,
"Development, Business & Housing",Property & Design,COAP,Premises-Related Expenditure,Electricity,West Mercia Energy (WME),02/08/2013,1118.26,
"Development, Business & Housing",Property & Design,COAP,Premises-Related Expenditure,R&M -Buildings DLO Charge,CONCEPT ELEVATORS (MIDLANDS) LIMITED,07/08/2013,131.45,
"Development, Business & Housing",Property & Design,COAP,Premises-Related Expenditure,R&M -Buildings DLO Charge,JONES & HAMPTON LTD,02/08/2013,224.21,
"Development, Business & Housing",Property & Design,COAP,Premises-Related Expenditure,Gas,BRITISH GAS BUSINESS,05/08/2013,229.86,
"Development, Business & Housing",Property & Design,COAP,Premises-Related Expenditure,Clean Mats & Toilet Requisites,SERCHEM LTD,07/08/2013,376.75,
"Development, Business & Housing",Property & Design,COAP,Premises-Related Expenditure,R&M -Buildings DLO Charge,D P WILCOX & SON,01/08/2013,180,
"Development, Business & Housing",Property & Design,COAP,Premises-Related Expenditure,R&M -Buildings DLO Charge,PP ELECTRICAL SERVICES (Shropshire) Ltd,01/08/2013,180,
"Development, Business & Housing",Property & Design,COAP,Premises-Related Expenditure,R&M -Buildings DLO Charge,PP ELECTRICAL SERVICES (Shropshire) Ltd,01/08/2013,180.77,
"Development, Business & Housing",Property & Design,COAP,Premises-Related Expenditure,R&M -Buildings DLO Charge,JONES & HAMPTON LTD,01/08/2013,113.38,
"Development, Business & Housing",Property & Design,COAP,Premises-Related Expenditure,R&M -Buildings DLO Charge,JONES & HAMPTON LTD,07/08/2013,115.56,
"Development, Business & Housing",Property & Design,COAP,Premises-Related Expenditure,R&M -Buildings DLO Charge,JONES & HAMPTON LTD,07/08/2013,409.66,
"Development, Business & Housing",Property & Design,COAP,Premises-Related Expenditure,R&M -Buildings DLO Charge,JONES & HAMPTON LTD,07/08/2013,145.05,
"Development, Business & Housing",Property & Design,COAP,Premises-Related Expenditure,R&M -Buildings DLO Charge,SHROPSHIRE HEATING SERVICES LTD,07/08/2013,212.5,
"Development, Business & Housing",Property & Design,COAP,Premises-Related Expenditure,R&M -Buildings DLO Charge,ADT FIRE & SECURITY PLC,07/08/2013,253.03,
"Development, Business & Housing",Property & Design,COAP,Premises-Related Expenditure,Gas,BRITISH GAS BUSINESS,07/08/2013,1507.5,
"Development, Business & Housing",Property & Design,COAP,Premises-Related Expenditure,Contract Cleaning,CLEANIT CLEANING SERVICES,07/08/2013,677.25,
"Development, Business & Housing",Property & Design,COAP,Premises-Related Expenditure,R&M -Buildings DLO Charge,ADT FIRE & SECURITY PLC,07/08/2013,284,
"Development, Business & Housing",Property & Design,COAP,Premises-Related Expenditure,R&M -Buildings DLO Charge,ADT FIRE & SECURITY PLC,07/08/2013,120,
"Development, Business & Housing",Property & Design,COAP,Premises-Related Expenditure,R&M -Buildings DLO Charge,TAYLORS MECHANICAL H & P SERVICES LTD,07/08/2013,207,
"Development, Business & Housing",Property & Design,COAP,Premises-Related Expenditure,Service Contracts,PROKILL UK LIMITED,07/08/2013,108.94,
"Development, Business & Housing",Property & Design,COAP,Premises-Related Expenditure,R&M -Buildings DLO Charge,SDT ELECTRICAL LTD,07/08/2013,213.11,
"Development, Business & Housing",Property & Design,COAP,Premises-Related Expenditure,R&M -Buildings DLO Charge,WINDOW & DOOR CONTRACT SERVICES,07/08/2013,249.68,
"Development, Business & Housing",Property & Design,COAP,Premises-Related Expenditure,Service Contracts,SHROPSHIRE HEATING SERVICES LTD,07/08/2013,214.18,
"Development, Business & Housing",Property & Design,COAP,Premises-Related Expenditure,Service Contracts,CHRIS BREEZE LTD,07/08/2013,215.68,
"Development, Business & Housing",Property & Design,COAP,Premises-Related Expenditure,Service Contracts,CHRIS BREEZE LTD,07/08/2013,174.74,
"Development, Business & Housing",Property & Design,COAP,Premises-Related Expenditure,R&M -Buildings DLO Charge,SHROPSHIRE HEATING SERVICES LTD,07/08/2013,112.5,
"Development, Business & Housing",Property & Design,COAP,Premises-Related Expenditure,R&M -Buildings DLO Charge,AQUALOGIC (WC) LTD,07/08/2013,189.5,
"Development, Business & Housing",Property & Design,COAP,Premises-Related Expenditure,Contract Cleaning,CLEANIT CLEANING SERVICES,07/08/2013,677.25,
"Development, Business & Housing",Property & Design,COAP,Premises-Related Expenditure,Contract Cleaning,CLEANIT CLEANING SERVICES,07/08/2013,677.25,
"Development, Business & Housing",Property & Design,COAP,Premises-Related Expenditure,Contract Cleaning,CLEANIT CLEANING SERVICES,07/08/2013,677.25,
"Development, Business & Housing",Property & Design,COAP,Premises-Related Expenditure,Water Rates,SEVERN TRENT WATER LTD,07/08/2013,2127.32,
"Development, Business & Housing",Property & Design,COAP,Premises-Related Expenditure,Water Rates,SEVERN TRENT WATER LTD,07/08/2013,1935.74,
"Development, Business & Housing",Property & Design,COAP,Premises-Related Expenditure,Clean Mats & Toilet Requisites,WEST MERCIA SUPPLIES Catalogue Supplies (None Utility),07/08/2013,146.91,
"Development, Business & Housing",Property & Design,COAP,Premises-Related Expenditure,R&M -Buildings DLO Charge,CONCEPT ELEVATORS (MIDLANDS) LIMITED,07/08/2013,131.45,
"Development, Business & Housing",Property & Design,COAP,Premises-Related Expenditure,Service Contracts,OSBORNE DELTA (LIGHTNING CONDUCTORS) LTD,07/08/2013,105,
"Development, Business & Housing",Property & Design,COAP,Premises-Related Expenditure,Service Contracts,KOHLER MIRA LIMITED,07/08/2013,138.26,
"Development, Business & Housing",Property & Design,COAP,Premises-Related Expenditure,Service Contracts,KOHLER MIRA LIMITED,07/08/2013,352.81,
"Development, Business & Housing",Property & Design,COAP,Premises-Related Expenditure,Service Contracts,SHROPSHIRE HEATING SERVICES LTD,07/08/2013,137,
"Development, Business & Housing",Property & Design,COAP,Premises-Related Expenditure,Hygiene Services,PHS GROUP LTD,19/08/2013,162.25,
"Development, Business & Housing",Property & Design,COAP,Premises-Related Expenditure,Trade Refuse,FCC RECYCLING (UK) LIMITED,13/08/2013,300,
"Development, Business & Housing",Property & Design,COAP,Premises-Related Expenditure,Trade Refuse,FCC RECYCLING (UK) LIMITED,13/08/2013,174.6,
"Development, Business & Housing",Property & Design,COAP,Premises-Related Expenditure,Trade Refuse,FCC RECYCLING (UK) LIMITED,13/08/2013,512.46,
"Development, Business & Housing",Property & Design,COAP,Premises-Related Expenditure,Trade Refuse,FCC RECYCLING (UK) LIMITED,13/08/2013,168,
"Development, Business & Housing",Property & Design,COAP,Premises-Related Expenditure,Trade Refuse,OCEAN CONTRACT CLEANING LTD,13/08/2013,3321.46,
"Development, Business & Housing",Property & Design,COAP,Premises-Related Expenditure,Trade Refuse,FCC RECYCLING (UK) LIMITED,27/08/2013,189.15,
"Development, Business & Housing",Property & Design,COAP,Premises-Related Expenditure,Grounds Maintenance - Other,SCREWFIX DIRECT LTD T/A TRADE UK,07/08/2013,103.29,
"Development, Business & Housing",Property & Design,COAP,Premises-Related Expenditure,Hygiene Services,PHS GROUP LTD,07/08/2013,138.84,
"Development, Business & Housing",Property & Design,COAP,Supplies & Services,Security Services,BUSINESS WATCH GUARDING LIMITED,20/08/2013,592.6,
"Development, Business & Housing",Property & Design,COAP,Supplies & Services,Security Services,LEISURE SEC PLC,20/08/2013,202.5,
"Development, Business & Housing",Property & Design,COAP,Supplies & Services,Security Services,LEISURE SEC PLC,20/08/2013,255,
"Development, Business & Housing",Property & Design,COAP,Supplies & Services,Security Services,BUSINESS WATCH GUARDING LIMITED,20/08/2013,346.52,
"Development, Business & Housing",Property & Design,COAP,Supplies & Services,Chemicals/Cleaning Products,KRYSTAL HYGIENE LIMITED,21/08/2013,134.5,
"Development, Business & Housing",Property & Design,COAP,Supplies & Services,Security Services,LEISURE SEC PLC,13/08/2013,255,
"Development, Business & Housing",Property & Design,COAP,Supplies & Services,Service Contracts,SRCL LTD,23/08/2013,917.27,
"Development, Business & Housing",Property & Design,COAP,Supplies & Services,Chemicals/Cleaning Products,PROVAC CLEANING SUPPLIES LTD,14/08/2013,135.37,
"Development, Business & Housing",Property & Design,COAP,Supplies & Services,Chemicals/Cleaning Products,AIRQUEE LTD,05/08/2013,120,
"Development, Business & Housing",Property & Design,COAP,Supplies & Services,Chemicals/Cleaning Products,AIRQUEE LTD,05/08/2013,119.8,
"Development, Business & Housing",Property & Design,COAP,Transport-Related Expenditure,Licences,PRS FOR MUSIC,19/08/2013,151.22,
"Development, Business & Housing",Property & Design,COAP,Transport-Related Expenditure,Licences,PRS FOR MUSIC,19/08/2013,195.21,
"Development, Business & Housing",Property & Design,COAP,Transport-Related Expenditure,Licences,PRS FOR MUSIC,19/08/2013,231.36,
"Development, Business & Housing",Property & Design,COAP,Transport-Related Expenditure,Licences,PRS FOR MUSIC,27/08/2013,113.36,
"Development, Business & Housing",Property & Design,WCAY,Capital Expenditure,Payments to Contractor,KRM CONTRACTORS LTD,21/08/2013,-702.21,
"Development, Business & Housing",Property & Design,WCAY,Capital Expenditure,Payments to Contractor,GREEN SKIPS LTD,01/08/2013,360,
"Development, Business & Housing",Property & Design,WCAY,Capital Expenditure,Payments to Contractor,SENATOR INTERNATIONAL,01/08/2013,264,
"Development, Business & Housing",Property & Design,WCAY,Capital Expenditure,Payments to Contractor,CHRISBEON OFFICE SUPPLIES,01/08/2013,1530.2,
"Development, Business & Housing",Property & Design,WCAY,Capital Expenditure,Payments to Contractor,SENATOR INTERNATIONAL,01/08/2013,3460.86,
"Development, Business & Housing",Property & Design,WCAY,Capital Expenditure,Payments to Contractor,SPACEOASIS LTD,01/08/2013,332,
"Development, Business & Housing",Property & Design,WCAY,Capital Expenditure,Payments to Contractor,SENATOR INTERNATIONAL,01/08/2013,3559.24,
"Development, Business & Housing",Property & Design,WCAY,Capital Expenditure,Payments to Contractor,HTL WINDOWS & DOORS LTD,01/08/2013,850,
"Development, Business & Housing",Property & Design,WCAY,Capital Expenditure,Payments to Contractor,KRM CONTRACTORS LTD,13/08/2013,585.59,
"Development, Business & Housing",Property & Design,WCAY,Capital Expenditure,Payments to Contractor,SENATOR INTERNATIONAL,13/08/2013,8890.83,
"Development, Business & Housing",Property & Design,WCAY,Capital Expenditure,Payments to Contractor,THYSSENKRUPP ELEVATOR (UK) LIMITED,13/08/2013,3589,
"Development, Business & Housing",Property & Design,WCAY,Capital Expenditure,Payments to Contractor,E.ON,02/08/2013,491.44,
"Development, Business & Housing",Property & Design,WCAY,Capital Expenditure,Payments to Contractor,THYSSENKRUPP ELEVATOR (UK) LIMITED,13/08/2013,5511.3,
"Development, Business & Housing",Property & Design,WCBA,Capital Expenditure,Payments to Contractor,TAYLORS MECHANICAL H & P SERVICES LTD,19/08/2013,5850,
"Development, Business & Housing",Property & Design,WCBA,Capital Expenditure,Payments to Contractor,PP ELECTRICAL SERVICES (Shropshire) Ltd,23/08/2013,4994.94,
"Development, Business & Housing",Property & Design,WCBA,Capital Expenditure,Payments to Contractor,Burrows Home Comfort Ltd,07/08/2013,489.5,
"Development, Business & Housing",Property & Design,WCBA,Capital Expenditure,Payments to Contractor,Burrows Home Comfort Ltd,07/08/2013,203.5,
"Development, Business & Housing",Property & Design,WCBA,Capital Expenditure,Payments to Contractor,PP ELECTRICAL SERVICES (Shropshire) Ltd,23/08/2013,1907.8,
"Development, Business & Housing",Property & Design,WCBA,Capital Expenditure,Payments to Contractor,SDT ELECTRICAL LTD,15/08/2013,173,
"Development, Business & Housing",Property & Design,WCBA,Capital Expenditure,Payments to Contractor,G A Young Associates,15/08/2013,4225,
"Development, Business & Housing",Property & Design,WFBH,Capital Expenditure,Payments to Contractor,PP ELECTRICAL SERVICES (Shropshire) Ltd,19/08/2013,902.5,
"Development, Business & Housing",Property & Design,WFBH,Capital Expenditure,Payments to Contractor,PP ELECTRICAL SERVICES (Shropshire) Ltd,19/08/2013,914.7,
"Development, Business & Housing",Property & Design,WFBH,Capital Expenditure,Payments to Contractor,JGS Electrical,22/08/2013,8195,
"Development, Business & Housing",Property & Design,WFBH,Capital Expenditure,Payments to Contractor,OSBORNE DELTA (LIGHTNING CONDUCTORS) LTD,23/08/2013,5718.92,
"Development, Business & Housing",Property & Design,WGBH,Capital Expenditure,Payments to Contractor,PRYCE (BUILDERS) LTD,15/08/2013,12196.78,
"Development, Business & Housing",Property & Design,WGCB,Capital Expenditure,Payments to Contractor,QUEST 88 LIMITED,12/08/2013,7950,
"Development, Business & Housing",Property & Design,WGCF,Capital Expenditure,Payments to Contractor,PP ELECTRICAL SERVICES (Shropshire) Ltd,19/08/2013,954,
"Development, Business & Housing",Property & Design,WGCF,Capital Expenditure,Payments to Contractor,PP ELECTRICAL SERVICES (Shropshire) Ltd,19/08/2013,3397,
"Development, Business & Housing",Property & Design,WGCF,Capital Expenditure,Payments to Contractor,PP ELECTRICAL SERVICES (Shropshire) Ltd,19/08/2013,3270,
"Development, Business & Housing",Property & Design,WGCF,Capital Expenditure,Payments to Contractor,PP ELECTRICAL SERVICES (Shropshire) Ltd,19/08/2013,4619,
"Development, Business & Housing",Property & Design,WGCF,Capital Expenditure,Payments to Contractor,PP ELECTRICAL SERVICES (Shropshire) Ltd,19/08/2013,3021,
"Development, Business & Housing",Property & Design,WGCF,Capital Expenditure,Payments to Contractor,PP ELECTRICAL SERVICES (Shropshire) Ltd,19/08/2013,2257,
"Development, Business & Housing",Property & Design,WGCF,Capital Expenditure,Payments to Contractor,PP ELECTRICAL SERVICES (Shropshire) Ltd,19/08/2013,3332,
"Development, Business & Housing",Property & Design,WGCF,Capital Expenditure,Payments to Contractor,PP ELECTRICAL SERVICES (Shropshire) Ltd,19/08/2013,975,
"Development, Business & Housing",Property & Design,WGCF,Capital Expenditure,Payments to Contractor,PP ELECTRICAL SERVICES (Shropshire) Ltd,19/08/2013,940,
"Development, Business & Housing",Property & Design,WGCF,Capital Expenditure,Payments to Contractor,PP ELECTRICAL SERVICES (Shropshire) Ltd,19/08/2013,2402,
"Development, Business & Housing",Property & Design,WGCF,Capital Expenditure,Payments to Contractor,PP ELECTRICAL SERVICES (Shropshire) Ltd,19/08/2013,1036,
"Development, Business & Housing",Property & Design,WGCF,Capital Expenditure,Payments to Contractor,PP ELECTRICAL SERVICES (Shropshire) Ltd,19/08/2013,7314,
"Development, Business & Housing",Property & Design,WGCF,Capital Expenditure,Payments to Contractor,PP ELECTRICAL SERVICES (Shropshire) Ltd,19/08/2013,1628,
"Development, Business & Housing",Property & Design,WGCF,Capital Expenditure,Payments to Contractor,PP ELECTRICAL SERVICES (Shropshire) Ltd,19/08/2013,4884,
"Development, Business & Housing",Property & Design,WGCF,Capital Expenditure,Payments to Contractor,GRA-BERN,07/08/2013,2696,
"Development, Business & Housing",Property & Design,WGCF,Capital Expenditure,Payments to Contractor,PP ELECTRICAL SERVICES (Shropshire) Ltd,15/08/2013,1295,
"Development, Business & Housing",Property & Design,WGCF,Capital Expenditure,Payments to Contractor,PP ELECTRICAL SERVICES (Shropshire) Ltd,15/08/2013,2257,
"Development, Business & Housing",Property & Design,WGCF,Capital Expenditure,Payments to Contractor,PP ELECTRICAL SERVICES (Shropshire) Ltd,15/08/2013,3422,
"Development, Business & Housing",Property & Design,WGCF,Capital Expenditure,Payments to Contractor,PP ELECTRICAL SERVICES (Shropshire) Ltd,15/08/2013,2368,
"Development, Business & Housing",Property & Design,WGCF,Capital Expenditure,Payments to Contractor,PP ELECTRICAL SERVICES (Shropshire) Ltd,15/08/2013,3401,
"Development, Business & Housing",Property & Design,WGCF,Capital Expenditure,Payments to Contractor,PP ELECTRICAL SERVICES (Shropshire) Ltd,15/08/2013,1984,
"Development, Business & Housing",Property & Design,WGCF,Capital Expenditure,Payments to Contractor,PP ELECTRICAL SERVICES (Shropshire) Ltd,15/08/2013,2257,
"Development, Business & Housing",Property & Design,WGCF,Capital Expenditure,Payments to Contractor,PP ELECTRICAL SERVICES (Shropshire) Ltd,15/08/2013,3342,
"Development, Business & Housing",Property & Design,WGCF,Capital Expenditure,Payments to Contractor,PP ELECTRICAL SERVICES (Shropshire) Ltd,15/08/2013,1295,
"Development, Business & Housing",Property & Design,WGCF,Capital Expenditure,Payments to Contractor,PP ELECTRICAL SERVICES (Shropshire) Ltd,15/08/2013,2114,
"Development, Business & Housing",Property & Design,WGCF,Capital Expenditure,Payments to Contractor,PP ELECTRICAL SERVICES (Shropshire) Ltd,15/08/2013,740,
"Development, Business & Housing",Property & Design,WGCF,Capital Expenditure,Payments to Contractor,PP ELECTRICAL SERVICES (Shropshire) Ltd,15/08/2013,1030,
"Development, Business & Housing",Property & Design,WINE,Capital Expenditure,Payments to Contractor,THOMAS CONSULTING,19/08/2013,415.75,
"Development, Business & Housing",Property & Design,WPCW,Capital Expenditure,Payments to Contractor,Baart Harries Newall,08/08/2013,22975,
"Development, Business & Housing",Property & Design,WPCW,Capital Expenditure,Payments to Contractor,WELLINGTON INSULATION CO. LTD,19/08/2013,950,
"Development, Business & Housing",Property & Design,WPHW,Capital Expenditure,Payments to Contractor,JORDAN LEWIS ASSOCIATES LTD,19/08/2013,2946.71,
"Development, Business & Housing",Property & Design,WPHW,Capital Expenditure,Payments to Contractor,GRANVILLE CONSTRUCTION & MAINTENANCE LTD,12/08/2013,4000,
"Development, Business & Housing",Property & Design,WPHW,Capital Expenditure,Payments to Contractor,GRANVILLE CONSTRUCTION & MAINTENANCE LTD,12/08/2013,6000,
"Development, Business & Housing",Property & Design,WPHW,Capital Expenditure,Payments to Contractor,GRANVILLE CONSTRUCTION & MAINTENANCE LTD,07/08/2013,4200,
"Development, Business & Housing",Property & Design,WPHW,Capital Expenditure,Payments to Contractor,GRANVILLE CONSTRUCTION & MAINTENANCE LTD,07/08/2013,1800,
"Development, Business & Housing",Property & Design,WPHW,Capital Expenditure,Payments to Contractor,GRANVILLE CONSTRUCTION & MAINTENANCE LTD,07/08/2013,6000,
"Development, Business & Housing",Property & Design,WPHW,Capital Expenditure,Payments to Contractor,GRANVILLE CONSTRUCTION & MAINTENANCE LTD,07/08/2013,4000,
"Development, Business & Housing",Property & Design,WPLA,Capital Expenditure,Payments to Contractor,ARJOHUNTLEIGH UK,15/08/2013,4172.25,
"Development, Business & Housing",Property & Design,WPLL,Capital Expenditure,Payments to Contractor,MOTT MACDONALD LIMITED,19/08/2013,2416.73,
"Development, Business & Housing",Property & Design,WPLL,Capital Expenditure,Payments to Contractor,MOTT MACDONALD LIMITED,19/08/2013,7579.5,
"Development, Business & Housing",Property & Design,WPMB,Capital Expenditure,Payments to Contractor,GRANVILLE CONSTRUCTION & MAINTENANCE LTD,01/08/2013,677,
"Development, Business & Housing",Property & Design,WPMD,Capital Expenditure,Payments to Contractor,GRA-BERN,20/08/2013,24500,
"Development, Business & Housing",Property & Design,WPMU,Capital Expenditure,Payments to Contractor,JORDAN LEWIS ASSOCIATES LTD,19/08/2013,323.66,
"Development, Business & Housing",Property & Design,WPMU,Capital Expenditure,Payments to Contractor,ALAN BROUGH ASSOCIATES,19/08/2013,1470.84,
"Development, Business & Housing",Property & Design,WPMU,Capital Expenditure,Payments to Contractor,J Harper & Sons (Leominster) Ltd,02/08/2013,72094.64,
"Development, Business & Housing",Property & Design,WPND,Capital Expenditure,Payments to Contractor,EUROPEAN ELECTRONIQUE LTD,19/08/2013,5998.5,
"Development, Business & Housing",Property & Design,WPND,Capital Expenditure,Payments to Contractor,JORDAN LEWIS ASSOCIATES LTD,19/08/2013,1962.36,
"Development, Business & Housing",Property & Design,WPND,Capital Expenditure,Payments to Contractor,Tree Health Consulting Limited,12/08/2013,300,
"Development, Business & Housing",Property & Design,WPNE,Capital Expenditure,Payments to Contractor,SOVEREIGN PLANNED SERVICES LIMITED,01/08/2013,3530.86,
"Development, Business & Housing",Property & Design,WPSW,Capital Expenditure,Payments to Contractor,TAYLORS MECHANICAL H & P SERVICES LTD,19/08/2013,5250,
"Development, Business & Housing",Property & Design,WPTB,Capital Expenditure,Payments to Contractor,PAVE AWAYS LTD,07/08/2013,13291.63,
"Development, Business & Housing",Property & Design,WPTB,Capital Expenditure,Payments to Contractor,TELFORD & WREKIN SERVICES LTD,07/08/2013,2550,
"Development, Business & Housing",Property Investment,WCAJ,Capital Expenditure,Marketing / Advertising,Jonathan Harris Studio Glass Ltd,20/08/2013,500,
"Development, Business & Housing",Property Investment,WCAJ,Capital Expenditure,Marketing / Advertising,UK Tech Events Limited,20/08/2013,3640.5,
"Development, Business & Housing",Property Investment,WCAJ,Capital Expenditure,Land Purchase,MARTIN KAYE,19/08/2013,130000,
"Development, Business & Housing",Property Investment,WCJB,Capital Expenditure,Payments to Contractor,MCPHILLIPS (WELLINGTON) LTD,12/08/2013,167657.44,
"Development, Business & Housing",Property Investment,WCJB,Capital Expenditure,Payments to Contractor,FREEMANS OF TELFORD LTD,09/08/2013,340,
"Development, Business & Housing",Property Investment,WCJB,Capital Expenditure,Payments to Contractor,JACOBS UK LIMITED,09/08/2013,6869.82,
"Development, Business & Housing",Property Investment,WCSP,Capital Expenditure,Marketing / Advertising,3S PRINT & DISPLAY LIMITED,14/08/2013,249,
"Development, Business & Housing",Property Investment,WCSP,Capital Expenditure,External Professional Fees,BARRY LOWE SURVEYS LTD,09/08/2013,1850,
"Development, Business & Housing",Property Investment,WCSP,Capital Expenditure,Other Capital Expenditure,Geldards LLP,19/08/2013,831,
"Development, Business & Housing",Property Investment,WCSP,Capital Expenditure,External Professional Fees,CA PLANNING,15/08/2013,1430,
"Development, Business & Housing",Property Investment,WCSP,Capital Expenditure,External Professional Fees,CA PLANNING,15/08/2013,1950,
"Development, Business & Housing",Property Investment,WGNE,Capital Expenditure,External Professional Fees,MARTIN ROBESON & PARTNERS LTD,30/08/2013,2500,
"Development, Business & Housing",Regeneration & Investment,CEAC,Premises-Related Expenditure,R&M -Buildings DLO Charge,COFELY LIMITED,20/08/2013,204.22,
"Development, Business & Housing",Regeneration & Investment,CEAC,Premises-Related Expenditure,Electricity,West Mercia Energy (WME),20/08/2013,778.7,
"Development, Business & Housing",Regeneration & Investment,CEAC,Premises-Related Expenditure,Contract Cleaning,VEOLIA ES (UK) LTD,20/08/2013,298.45,
"Development, Business & Housing",Regeneration & Investment,CEAC,Premises-Related Expenditure,Electricity,E.ON UK ENERGY SERVICES LTD,09/08/2013,305,
"Development, Business & Housing",Regeneration & Investment,CEAC,Premises-Related Expenditure,Lift Maintenance,SCHINDLER LTD,09/08/2013,2475.92,
"Development, Business & Housing",Regeneration & Investment,CEAC,Premises-Related Expenditure,R&M -Buildings DLO Charge,PRYCE (BUILDERS) LTD,06/08/2013,-5000,
"Development, Business & Housing",Regeneration & Investment,CEAC,Premises-Related Expenditure,R&M -Buildings DLO Charge,JONES & HAMPTON LTD,01/08/2013,135.02,
"Development, Business & Housing",Regeneration & Investment,CEAC,Premises-Related Expenditure,Building Cleaning DSO,INITIAL WASHROOM SOLUTIONS,01/08/2013,1136.97,
"Development, Business & Housing",Regeneration & Investment,CEAC,Premises-Related Expenditure,Building Cleaning DSO,VEOLIA ES (UK) LTD,01/08/2013,202.8,
"Development, Business & Housing",Regeneration & Investment,CEAC,Premises-Related Expenditure,R&M -Building Other,SCHINDLER LTD,01/08/2013,190.71,
"Development, Business & Housing",Regeneration & Investment,CEAC,Premises-Related Expenditure,Electricity,West Mercia Energy (WME),01/08/2013,1124.43,
"Development, Business & Housing",Regeneration & Investment,CEAC,Supplies & Services,Security Services,BUSINESS WATCH GUARDING LIMITED,20/08/2013,2235.42,
"Development, Business & Housing",Regeneration & Investment,CEAC,Supplies & Services,Security Services,BUSINESS WATCH GUARDING LIMITED,20/08/2013,310.08,
"Development, Business & Housing",Regeneration & Investment,CEAD,Premises-Related Expenditure,Electricity,West Mercia Energy (WME),20/08/2013,1659.78,
"Development, Business & Housing",Regeneration & Investment,CEAD,Premises-Related Expenditure,Electricity,West Mercia Energy (WME),01/08/2013,1137.26,
"Development, Business & Housing",Regeneration & Investment,CEAD,Supplies & Services,Consultants Fees,JOHNSON FELLOWS,09/08/2013,800,
"Development, Business & Housing",Regeneration & Investment,CEAD,Supplies & Services,Consultants Fees,JOHNSON FELLOWS,09/08/2013,700,
"Development, Business & Housing",Regeneration & Investment,CEAD,Supplies & Services,Consultants Fees,JOHNSON FELLOWS,09/08/2013,800,
"Development, Business & Housing",Regeneration & Investment,CEAE,Premises-Related Expenditure,R&M -Building Other,ASLES (TOOL HIRE & SALES) LTD,20/08/2013,288,
"Development, Business & Housing",Regeneration & Investment,CEAE,Premises-Related Expenditure,R&M -Building Other,ASLES (TOOL HIRE & SALES) LTD,09/08/2013,360,
"Development, Business & Housing",Regeneration & Investment,CEAE,Premises-Related Expenditure,R&M -Building Other,PP ELECTRICAL SERVICES (Shropshire) Ltd,09/08/2013,528,
"Development, Business & Housing",Regeneration & Investment,CEAE,Premises-Related Expenditure,R&M -Building Other,PP ELECTRICAL SERVICES (Shropshire) Ltd,09/08/2013,1057,
"Development, Business & Housing",Regeneration & Investment,CEAE,Premises-Related Expenditure,R&M -Building Other,JONES & HAMPTON LTD,20/08/2013,106.73,
"Development, Business & Housing",Regeneration & Investment,CEAE,Premises-Related Expenditure,R&M -Building Other,JONES & HAMPTON LTD,20/08/2013,125.77,
"Development, Business & Housing",Regeneration & Investment,CEAE,Premises-Related Expenditure,R&M -Building Other,SHROPSHIRE HEATING SERVICES LTD,15/08/2013,1009,
"Development, Business & Housing",Regeneration & Investment,CEAE,Premises-Related Expenditure,R&M -Building Other,BRITISH GAS SERVICES (COMMERCIAL) LTD,15/08/2013,664.47,
"Development, Business & Housing",Regeneration & Investment,CEAE,Premises-Related Expenditure,R&M -Building Other,JONES & HAMPTON LTD,15/08/2013,121.4,
"Development, Business & Housing",Regeneration & Investment,CEAE,Premises-Related Expenditure,R&M -Building Other,JONES & HAMPTON LTD,15/08/2013,138.79,
"Development, Business & Housing",Regeneration & Investment,CEAE,Premises-Related Expenditure,R&M -Buildings DLO Charge,TELFORD WINDOW BLINDS LTD,15/08/2013,190,
"Development, Business & Housing",Regeneration & Investment,CEAE,Premises-Related Expenditure,R&M -Buildings DLO Charge,SHIRES FIRE AND SAFETY LTD,15/08/2013,1346.72,
"Development, Business & Housing",Regeneration & Investment,CEAE,Premises-Related Expenditure,Fire Alarms & Emergency Light,VANGUARD ALARMS LIMITED,15/08/2013,123,
"Development, Business & Housing",Regeneration & Investment,CEAE,Premises-Related Expenditure,R&M -Buildings DLO Charge,WINDOW & DOOR CONTRACT SERVICES,01/08/2013,2770,
"Development, Business & Housing",Regeneration & Investment,CEAE,Premises-Related Expenditure,R&M -Buildings DLO Charge,WREKIN DRAIN SERVICES LTD,01/08/2013,870,
"Development, Business & Housing",Regeneration & Investment,CEAE,Premises-Related Expenditure,R&M -Building Other,LOCSAFE SECURITY SYSTEMS,01/08/2013,243.64,
"Development, Business & Housing",Regeneration & Investment,CEAE,Supplies & Services,Telephones,MIDLAND TML,20/08/2013,1339.63,
"Development, Business & Housing",Regeneration & Investment,CEAE,Supplies & Services,Security Services,BUSINESS WATCH GUARDING LIMITED,15/08/2013,250,
"Development, Business & Housing",Regeneration & Investment,CEAE,Supplies & Services,Security Services,BUSINESS WATCH GUARDING LIMITED,15/08/2013,2043.09,
"Development, Business & Housing",Regeneration & Investment,CEAE,Supplies & Services,Postages,FREELANCE BUSINESS ASSOCIATES,15/08/2013,115,
"Development, Business & Housing",Regeneration & Investment,CEAE,Supplies & Services,Telephones,MIDLAND TML,01/08/2013,577.47,
"Development, Business & Housing",Regeneration & Investment,CEAE,Supplies & Services,Telephones,VIRGIN MEDIA BUSINESS,01/08/2013,273.3,
"Development, Business & Housing",Regeneration & Investment,CEAH,Premises-Related Expenditure,R&M -Building Other,SHROPSHIRE ROADSWEEPERS,16/08/2013,250,
"Development, Business & Housing",Regeneration & Investment,CEAH,Premises-Related Expenditure,R&M -Building Other,GRANVILLE CONSTRUCTION & MAINTENANCE LTD,14/08/2013,1488,
"Development, Business & Housing",Regeneration & Investment,CEAH,Premises-Related Expenditure,R&M -Buildings DLO Charge,LOCSAFE SECURITY SYSTEMS,20/08/2013,154.18,
"Development, Business & Housing",Regeneration & Investment,CEAH,Premises-Related Expenditure,Dilapidations,GRANVILLE CONSTRUCTION & MAINTENANCE LTD,09/08/2013,1014,
"Development, Business & Housing",Regeneration & Investment,CEAH,Premises-Related Expenditure,R&M -Building Other,JONES & HAMPTON LTD,09/08/2013,400.39,
"Development, Business & Housing",Regeneration & Investment,CEAH,Premises-Related Expenditure,R&M -Building Other,JONES & HAMPTON LTD,20/08/2013,411.05,
"Development, Business & Housing",Regeneration & Investment,CEAH,Premises-Related Expenditure,Dilapidations,GRA-BERN,20/08/2013,1168.13,
"Development, Business & Housing",Regeneration & Investment,CEAH,Premises-Related Expenditure,R&M -Buildings DLO Charge,SDT ELECTRICAL LTD,13/08/2013,150,
"Development, Business & Housing",Regeneration & Investment,CEAH,Premises-Related Expenditure,R&M -Buildings DLO Charge,SHROPSHIRE HEATING SERVICES LTD,13/08/2013,240.9,
"Development, Business & Housing",Regeneration & Investment,CEAH,Premises-Related Expenditure,R&M -Buildings DLO Charge,WINDOW & DOOR CONTRACT SERVICES,13/08/2013,150.64,
"Development, Business & Housing",Regeneration & Investment,CEAH,Premises-Related Expenditure,R&M -Buildings DLO Charge,GRA-BERN,13/08/2013,162.73,
"Development, Business & Housing",Regeneration & Investment,CEAH,Premises-Related Expenditure,Dilapidations,JONES & HAMPTON LTD,14/08/2013,208.03,
"Development, Business & Housing",Regeneration & Investment,CEAH,Premises-Related Expenditure,R&M -Building Other,JONES & HAMPTON LTD,14/08/2013,230,
"Development, Business & Housing",Regeneration & Investment,CEAH,Premises-Related Expenditure,R&M -Building Other,WREKIN DRAIN SERVICES LTD,14/08/2013,170,
"Development, Business & Housing",Regeneration & Investment,CEAH,Premises-Related Expenditure,Dilapidations,JCE & SONS LTD,14/08/2013,270,
"Development, Business & Housing",Regeneration & Investment,CEAH,Premises-Related Expenditure,R&M -Building Other,R M F LANDSCAPING LTD,15/08/2013,896,
"Development, Business & Housing",Regeneration & Investment,CEAH,Premises-Related Expenditure,R&M -Building Other,PRYCE (BUILDERS) LTD,15/08/2013,568,
"Development, Business & Housing",Regeneration & Investment,CEAH,Premises-Related Expenditure,R&M -Building Other,LOCSAFE SECURITY SYSTEMS,15/08/2013,174.35,
"Development, Business & Housing",Regeneration & Investment,CEAH,Premises-Related Expenditure,Dilapidations,JONES & HAMPTON LTD,01/08/2013,2883.14,
"Development, Business & Housing",Regeneration & Investment,CEAH,Premises-Related Expenditure,R&M -Building Other,JONES & HAMPTON LTD,01/08/2013,763,
"Development, Business & Housing",Regeneration & Investment,CEAH,Premises-Related Expenditure,R&M -Building Other,JONES & HAMPTON LTD,01/08/2013,168.18,
"Development, Business & Housing",Regeneration & Investment,CEAH,Premises-Related Expenditure,R&M -Building Other,RCS ROOFING CONSTRUCTION SERVICES LTD,01/08/2013,484.6,
"Development, Business & Housing",Regeneration & Investment,CEAH,Premises-Related Expenditure,R&M -Building Other,RCS ROOFING CONSTRUCTION SERVICES LTD,01/08/2013,317.8,
"Development, Business & Housing",Regeneration & Investment,CEAH,Premises-Related Expenditure,Electricity,BRITISH GAS BUSINESS (ELECTRICITY),16/08/2013,110.46,
"Development, Business & Housing",Regeneration & Investment,CEAH,Premises-Related Expenditure,Electricity,BRITISH GAS BUSINESS,09/08/2013,179.46,
"Development, Business & Housing",Regeneration & Investment,CEAH,Premises-Related Expenditure,Electricity,NPOWER,09/08/2013,228.42,
"Development, Business & Housing",Regeneration & Investment,CEAH,Premises-Related Expenditure,Insurance Loss Over 250,R Thomson Carpentry & Joinery,09/08/2013,410,
"Development, Business & Housing",Regeneration & Investment,CEAH,Premises-Related Expenditure,Electricity,E.ON,01/08/2013,110.76,
"Development, Business & Housing",Regeneration & Investment,CEAH,Premises-Related Expenditure,Water Rates,SEVERN TRENT WATER LTD,01/08/2013,324.71,
"Development, Business & Housing",Regeneration & Investment,CEAH,Premises-Related Expenditure,Grounds Maintenance - L&CS,R M F LANDSCAPING LTD,06/08/2013,171.32,
"Development, Business & Housing",Regeneration & Investment,CEAH,Supplies & Services,Advertising,3S PRINT & DISPLAY LIMITED,22/08/2013,395,
"Development, Business & Housing",Regeneration & Investment,CEAH,Supplies & Services,Payment Of Income Collected,HSBC EQUIPMENT FINANCE (UK) LIMITED,05/08/2013,1500,
"Development, Business & Housing",Regeneration & Investment,CEAH,Supplies & Services,Advertising,3S PRINT & DISPLAY LIMITED,01/08/2013,145,
"Development, Business & Housing",Regeneration & Investment,CEAN,Premises-Related Expenditure,R&M -Buildings DLO Charge,R M F LANDSCAPING LTD,16/08/2013,1089,
"Development, Business & Housing",Regeneration & Investment,CEAN,Premises-Related Expenditure,R&M -Buildings DLO Charge,PP ELECTRICAL SERVICES (Shropshire) Ltd,20/08/2013,378.16,
"Development, Business & Housing",Regeneration & Investment,CEAN,Premises-Related Expenditure,R&M -Buildings DLO Charge,WINDOW & DOOR CONTRACT SERVICES,09/08/2013,165.6,
"Development, Business & Housing",Regeneration & Investment,CEAN,Premises-Related Expenditure,R&M -Buildings DLO Charge,CONTRACT FIRE SECURITY,14/08/2013,297.52,
"Development, Business & Housing",Regeneration & Investment,CEAN,Premises-Related Expenditure,Fire Alarms & Emergency Light,ADT FIRE & SECURITY PLC,15/08/2013,300.23,
"Development, Business & Housing",Regeneration & Investment,CEAN,Premises-Related Expenditure,R&M -Buildings DLO Charge,SHROPSHIRE HEATING SERVICES LTD,02/08/2013,112,
"Development, Business & Housing",Regeneration & Investment,CEAN,Premises-Related Expenditure,R&M -Buildings DLO Charge,CONCEPT ELEVATORS (MIDLANDS) LIMITED,01/08/2013,2280.79,
"Development, Business & Housing",Regeneration & Investment,CEAN,Premises-Related Expenditure,Water Rates,SEVERN TRENT WATER LTD,16/08/2013,1305.21,
"Development, Business & Housing",Regeneration & Investment,CEAN,Premises-Related Expenditure,Grounds Maintenance - L&CS,P & W MAINTENANCE CONTRACTING LTD,16/08/2013,487,
"Development, Business & Housing",Regeneration & Investment,CEAN,Premises-Related Expenditure,Grounds Maintenance - L&CS,P & W MAINTENANCE CONTRACTING LTD,16/08/2013,374,
"Development, Business & Housing",Regeneration & Investment,CEAN,Premises-Related Expenditure,Contract Cleaning,FCC RECYCLING (UK) LIMITED,16/08/2013,256.23,
"Development, Business & Housing",Regeneration & Investment,CEAN,Premises-Related Expenditure,Contract Cleaning,BUSY BEE CLEANING,16/08/2013,156,
"Development, Business & Housing",Regeneration & Investment,CEAN,Premises-Related Expenditure,Electricity,BRITISH GAS BUSINESS (ELECTRICITY),01/08/2013,411.43,
"Development, Business & Housing",Regeneration & Investment,CEAN,Premises-Related Expenditure,Water Rates,SEVERN TRENT WATER LTD,01/08/2013,1242.17,
"Development, Business & Housing",Regeneration & Investment,CEAN,Premises-Related Expenditure,Building Cleaning DSO,BUSY BEE CLEANING,08/08/2013,318,
"Development, Business & Housing",Regeneration & Investment,CEAN,Premises-Related Expenditure,Gas,West Mercia Energy (WME),19/08/2013,187.57,
"Development, Business & Housing",Regeneration & Investment,CEAN,Premises-Related Expenditure,Electricity,West Mercia Energy (WME),19/08/2013,365.1,
"Development, Business & Housing",Regeneration & Investment,CEAN,Premises-Related Expenditure,Electricity,West Mercia Energy (WME),19/08/2013,291.19,
"Development, Business & Housing",Regeneration & Investment,CEAN,Premises-Related Expenditure,Electricity,West Mercia Energy (WME),19/08/2013,576.92,
"Development, Business & Housing",Regeneration & Investment,CEAN,Premises-Related Expenditure,Electricity,West Mercia Energy (WME),19/08/2013,307.72,
"Development, Business & Housing",Regeneration & Investment,CEAN,Premises-Related Expenditure,Electricity,West Mercia Energy (WME),19/08/2013,135.02,
"Development, Business & Housing",Regeneration & Investment,CEAN,Premises-Related Expenditure,Building Cleaning DSO,BUSY BEE CLEANING,09/08/2013,252.48,
"Development, Business & Housing",Regeneration & Investment,CEAN,Premises-Related Expenditure,Grounds Maintenance - L&CS,SHROPSHIRE ROADSWEEPERS,20/08/2013,125,
"Development, Business & Housing",Regeneration & Investment,CEAN,Premises-Related Expenditure,Electricity,BRITISH GAS BUSINESS (ELECTRICITY),20/08/2013,396.91,
"Development, Business & Housing",Regeneration & Investment,CEAN,Premises-Related Expenditure,Grounds Maintenance - L&CS,R M F LANDSCAPING LTD,20/08/2013,472.79,
"Development, Business & Housing",Regeneration & Investment,CEAN,Premises-Related Expenditure,Water Rates,SEVERN TRENT WATER LTD,09/08/2013,145.38,
"Development, Business & Housing",Regeneration & Investment,CEAN,Premises-Related Expenditure,Building Cleaning DSO,BUSY BEE CLEANING,09/08/2013,166,
"Development, Business & Housing",Regeneration & Investment,CEAN,Premises-Related Expenditure,Gas,E.ON,12/08/2013,411.83,
"Development, Business & Housing",Regeneration & Investment,CEAN,Premises-Related Expenditure,Grounds Maintenance - L&CS,R M F LANDSCAPING LTD,12/08/2013,258.6,
"Development, Business & Housing",Regeneration & Investment,CEAN,Premises-Related Expenditure,Grounds Maintenance - L&CS,JONES & HAMPTON LTD,12/08/2013,106.25,
"Development, Business & Housing",Regeneration & Investment,CEAN,Premises-Related Expenditure,Grounds Maintenance - L&CS,R M F LANDSCAPING LTD,12/08/2013,392.62,
"Development, Business & Housing",Regeneration & Investment,CEAN,Premises-Related Expenditure,Building Cleaning DSO,PHS GROUP LTD,13/08/2013,315.39,
"Development, Business & Housing",Regeneration & Investment,CEAN,Premises-Related Expenditure,Water Rates,WELLINGTON INSULATION CO. LTD,13/08/2013,150,
"Development, Business & Housing",Regeneration & Investment,CEAN,Premises-Related Expenditure,Electricity,NPOWER LIMITED,14/08/2013,2708.01,
"Development, Business & Housing",Regeneration & Investment,CEAN,Premises-Related Expenditure,Contract Cleaning,VEOLIA ES (UK) LTD,14/08/2013,114.15,
"Development, Business & Housing",Regeneration & Investment,CEAN,Premises-Related Expenditure,Contract Cleaning,BUSY BEE CLEANING,14/08/2013,189.5,
"Development, Business & Housing",Regeneration & Investment,CEAN,Premises-Related Expenditure,Grounds Maintenance - L&CS,NOBRIDGE LTD,14/08/2013,350,
"Development, Business & Housing",Regeneration & Investment,CEAN,Premises-Related Expenditure,R&M -Building Other,OSBORNE DELTA (LIGHTNING CONDUCTORS) LTD,14/08/2013,700,
"Development, Business & Housing",Regeneration & Investment,CEAN,Premises-Related Expenditure,Grounds Maintenance - L&CS,R M F LANDSCAPING LTD,15/08/2013,745,
"Development, Business & Housing",Regeneration & Investment,CEAN,Premises-Related Expenditure,R&M -Building Other,CONCEPT ELEVATORS (MIDLANDS) LIMITED,15/08/2013,3442.8,
"Development, Business & Housing",Regeneration & Investment,CEAN,Premises-Related Expenditure,Grounds Maintenance - L&CS,SHROPSHIRE ROADSWEEPERS,15/08/2013,259.25,
"Development, Business & Housing",Regeneration & Investment,CEAN,Premises-Related Expenditure,Gas,West Mercia Energy (WME),27/08/2013,1518.94,
"Development, Business & Housing",Regeneration & Investment,CEAN,Premises-Related Expenditure,Gas,West Mercia Energy (WME),27/08/2013,-887.39,
"Development, Business & Housing",Regeneration & Investment,CEAN,Premises-Related Expenditure,R&M -Building Other,GRANVILLE CONSTRUCTION & MAINTENANCE LTD,01/08/2013,1316,
"Development, Business & Housing",Regeneration & Investment,CEAN,Premises-Related Expenditure,R&M -Building Other,GRANVILLE CONSTRUCTION & MAINTENANCE LTD,01/08/2013,328,
"Development, Business & Housing",Regeneration & Investment,CEAN,Premises-Related Expenditure,Grounds Maintenance - L&CS,R M F LANDSCAPING LTD,06/08/2013,258.6,
"Development, Business & Housing",Regeneration & Investment,CEAN,Premises-Related Expenditure,Grounds Maintenance - L&CS,R M F LANDSCAPING LTD,06/08/2013,392.62,
"Development, Business & Housing",Regeneration & Investment,CEAN,Supplies & Services,Security Services,LOCKLEY SECURITY,12/08/2013,112,
"Development, Business & Housing",Regeneration & Investment,CEAN,Supplies & Services,Legal Expenses,FBC MANBY BOWDLER LLP,12/08/2013,500,
"Development, Business & Housing",Regeneration & Investment,CEAN,Supplies & Services,Advertising,3S PRINT & DISPLAY LIMITED,01/08/2013,349,
"Development, Business & Housing",Regeneration & Investment,WCCA,Capital Expenditure,Payments to Contractor,THOMAS CONSULTING,30/08/2013,909.85,
"Development, Business & Housing",Regeneration & Investment,WCCA,Capital Expenditure,External Professional Fees,CALFORDSEADEN LLP,30/08/2013,665,
